Workbook

Sheet Global Parameters
B1: Description | C1: Quantity/Percentage | D1: Unit | E1: Notes/References | F1: Hours in a year | G1: 8760
B2: Project Lifespan | C2: 20 | D2: Years
B3: Discount Rate For Money | C3: 0.035 | E3: HM Treasury, “The Green Book : Appraisal and Evaluation in Central Government,” London, 2003.
B5: $/£ Exch Rate | C5: 0.704596 | E5: XE.Com 09/03/2016
B6: €/£ Exch Rate | C6: 0.773936 | E6: XE.Com 09/03/2016
B7: Strike Price WTs | C7: 155 | D7: per MWH | E7: CfD
B8: Strike Price WEC | C8: 305 | D8: per MWH | E8: CfD
B10: Export Cable Length | C10: 75 | D10: KM
B11: WT Rated Power | C11: =Rated_Power/1000 -> 6 | D11: MW
B12: Site Water Depth | C12: 100 | D12: m
B14: WT Availability | C14: 0.93
B15: Electrical Array Losses | C15: 0.018
B16: Aerodynamic Array Losses | C16: 0.07
B17: Other Losses | C17: 0.02
B18: WEC Availability | C18: 0.9
B19: WT Spares Cost | C19: 0.01387818681
C22: Variable Inputs
C23: Global Fixed Inputs that Should not need Changed
C24: Cells that have assumptions that need refined
C25: Intermediate Calculated Cells (Cells with no background may also be int. calc. cells)
C26: Outputs

Sheet TETHYS NPV
H1: LOW CASE PROJECT VARIABLES | K1: HI CASE PROJECT VARIABLES
G2: Number of Platform Turbines | H2: 2 | J2: Number of Platform Turbines | K2: 2
G3: Number of Floating Turbines | H3: 4 | J3: Number of Floating Turbines | K3: 14
G4: Water Depth | H4: =Depth -> 100 | J4: Water Depth | K4: =Depth -> 100
G5: Inter Array Cable Length Required | H5: =WTs_No_LO_FL*1.9 -> 7.6 | I5: KM | J5: Inter Array Cable Length Required | K5: =WTs_No_HI_FL*1.9 -> 26.6 | L5: KM
G6: Inter-Array Cable Cost | H6: =H5*Inter_Array_Cable_Cost -> 2135600 | I6: (total for wind turbine array) | J6: Inter-Array Cable Cost | K6: =K5*Inter_Array_Cable_Cost -> 7474600 | L6: (total for wind turbine array)
G7: Inter-Array Cable Installation | H7: =H5*Int_Array_Installation -> 1444000 | I7: (total for wind turbine array) | J7: Inter-Array Cable Installation | K7: =K5*Int_Array_Installation -> 5054000 | L7: (total for wind turbine array)
G8: Total Rated Power WTs & Tethys) | H8: =(WTs_No_LO_PL+WTs_No_LO_FL)*WT_Rated_MW+WEC_Rated -> 64.8 | I8: MW | J8: Total Rated Power WTs & Tethys) | K8: =(WTs_No_HI_PL+WTs_No_HI_FL)*WT_Rated_MW+WEC_Rated -> 124.8 | L8: MW
G9: Susbtation & Export Cable Cost | H9: =Export_Cable_Length*HV_DC_Export_Cable*H8+H8*Substation_perMW -> 27144720 | I9: Platform + WTs + Distance | J9: Susbtation & Export Cable Cost | K9: =Export_Cable_Length*HV_DC_Export_Cable*'TETHYS NPV'!K8+'TETHYS NPV'!K8*Substation_perMW -> 52278720 | L9: Platform + WTs + Distance | X9: Sales
D10: Cost for system PSP | G10: Cost for WTs Low Case | J10: Cost for WTs High Case | M10: Wave Energy (MWH) | O10: Wind Energy (MWH) | Q10: Total Energy NPV (MWH) | V10: Wave Energy (MWH) | X10: Wind Energy (MWH) | Z10: Total Sales (£m) | AB10: Total Sales NPV (£m)
B11: Generation Year | C11: Year | D11: One Off | E11: Recurrent | F11: NPV | G11: One Off | H11: Recurrent | I11: NPV | J11: One Off | K11: Recurrent | L11: NPV1 | M11: Low | N11: High | O11: Low | P11: High | Q11: Low | R11: High | V11: Low | W11: High | X11: Low | Y11: High | Z11: Low | AA11: High | AB11: Low | AC11: High
C13: 1 | D13: ='PSP Cost-1'!E74 -> 342915108.8 | E13: 0 | F13: =(E13+D13)/((1+Discount_Rate)^(C13-1)) -> 342915108.8 | G13: =WTs_No_LO_PL*WT_CX_PLAT+WTs_No_LO_FL*WT_CX_TETHYS+H6+H9 -> 88475935.33 | H13: 0 | I13: =G13+H13 -> 88475935.33 | J13: =WTs_No_HI_PL*WT_CX_PLAT+WTs_No_HI_FL*WT_CX_TETHYS+K6+K9 -> 226831744 | K13: 0 | L13: =(K13+J13)/((1+Discount_Rate)^($C13-1)) -> 226831744
C14: 2 | E14: 0 | F14: 0 | H14: 0 | I14: =(H14+G14)/((1+Discount_Rate)^($C14-1)) -> 0 | K14: 0 | L14: =(K14+J14)/((1+Discount_Rate)^($C14-1)) -> 0
C15: 3 | E15: 0 | F15: 0 | H15: 0 | I15: 0 | J15: ='PSP Installation'!Q9 -> 0 | K15: 0 | L15: 0
C16: 4 | D16: ='PSP Installation'!K9 -> 1627576.065 | E16: 0 | F16: 1467980.36 | G16: =H7+WTs_No_LO_FL*WT_INST_TETHYS+WTs_No_LO_PL*WT_INST_PL -> 9350220.602 | H16: 0 | I16: 8433363.268 | J16: =K7+WTs_No_HI_FL*WT_INST_TETHYS+WTs_No_HI_PL*WT_INST_PL -> 27685126.94 | K16: 0 | L16: 24970398.3 | M16: 0 | N16: 0 | O16: 0 | P16: 0 | Q16: =O16+M16 -> 0 | R16: =P16+N16 -> 0
B17: 1 | C17: 5 | E17: =PSP_OPEX -> 12612712.01 | F17: 10991249.85 | H17: =WT_OPEX_TETHYS*WTs_No_LO_FL+WT_OPEX_PLAT*WTs_No_LO_PL+WTs_No_LO_FL*10810+548974+0.01*$H$9 -> 2568883.794 | I17: 2238633.816 | K17: =WT_OPEX_TETHYS*WTs_No_HI_FL+WT_OPEX_PLAT*WTs_No_HI_PL+WTs_No_HI_FL*10810+548974+0.01*$K$9 -> 5770361.451 | L17: 5028536.638 | M17: =WEC_Yield_LO -> 34058.88 | N17: =WEC_Yield_Hi -> 93094.272 | O17: =WT_ANN_ENRGY_ADJ*(WTs_No_LO_FL+WTs_No_LO_PL) -> 137882.962 | P17: =WT_ANN_ENRGY_ADJ*(WTs_No_HI_FL+WTs_No_HI_PL) -> 367687.8986 | Q17: =(O17+M17)/((1+Discount_Rate)^($C17-1)) -> 149837.3818 | R17: =(P17+N17)/((1+Discount_Rate)^($C17-1)) -> 401545.0412 | V17: =M17*Strike_Price_WEC -> 10387958.4 | W17: =N17*Strike_Price_WEC -> 28393752.96 | X17: =O17*Strike_Price_WTs -> 21371859.1 | Y17: =P17*Strike_Price_WTs -> 56991624.28 | Z17: =(V17+X17)/1000000 -> 31.7598175 | AA17: =(W17+Y17)/1000000 -> 85.38537724 | AB17: =Z17/((1+Discount_Rate)^($C17-1)) -> 27.67684612 | AC17: =AA17/((1+Discount_Rate)^($C17-1)) -> 74.40842335 | AE17: =W17+Y17 -> 85385377.24 | AF17: =W17/AE17 -> 0.332536482
B18: 2 | C18: 6 | E18: 12612712.01 | F18: =(E18+D18)/((1+Discount_Rate)^(C18-1)) -> 10619565.07 | H18: 2568883.794 | I18: 2162931.223 | K18: 5770361.451 | L18: 4858489.505 | M18: 34058.88 | N18: 93094.272 | O18: 137882.962 | P18: 367687.8986 | Q18: 144770.4172 | R18: 387966.2234 | V18: 10387958.4 | W18: 28393752.96 | X18: 21371859.1 | Y18: 56991624.28 | Z18: =(V18+X18)/1000000 -> 31.7598175 | AA18: =(W18+Y18)/1000000 -> 85.38537724 | AB18: =Z18/((1+Discount_Rate)^($C18-1)) -> 26.74091412 | AC18: =AA18/((1+Discount_Rate)^($C18-1)) -> 71.89219648
B19: 3 | C19: 7 | E19: 12612712.01 | F19: 10260449.35 | H19: 2568883.794 | I19: 2089788.622 | K19: 5770361.451 | L19: 4694192.758 | M19: 34058.88 | N19: 93094.272 | O19: 137882.962 | P19: 367687.8986 | Q19: 139874.7992 | R19: 374846.5926 | V19: 10387958.4 | W19: 28393752.96 | X19: 21371859.1 | Y19: 56991624.28 | Z19: 31.7598175 | AA19: 85.38537724 | AB19: 25.836632 | AC19: 69.4610594
B20: 4 | C20: 8 | E20: 12612712.01 | F20: 9913477.629 | H20: 2568883.794 | I20: 2019119.441 | K20: 5770361.451 | L20: 4535451.94 | M20: 34058.88 | N20: 93094.272 | O20: 137882.962 | P20: 367687.8986 | Q20: 135144.7335 | R20: 362170.6209 | V20: 10387958.4 | W20: 28393752.96 | X20: 21371859.1 | Y20: 56991624.28 | Z20: 31.7598175 | AA20: 85.38537724 | AB20: 24.96292947 | AC20: 67.11213468
B21: 5 | C21: 9 | E21: 12612712.01 | F21: 9578239.255 | H21: 2568883.794 | I21: 1950840.04 | K21: 5770361.451 | L21: 4382079.169 | M21: 34058.88 | N21: 93094.272 | O21: 137882.962 | P21: 367687.8986 | Q21: 130574.6218 | R21: 349923.3052 | V21: 10387958.4 | W21: 28393752.96 | X21: 21371859.1 | Y21: 56991624.28 | Z21: 31.7598175 | AA21: 85.38537724 | AB21: 24.11877244 | AC21: 64.84264221
B22: 6 | C22: 10 | E22: 12612712.01 | F22: 9254337.444 | H22: 2568883.794 | I22: 1884869.604 | K22: 5770361.451 | L22: 4233892.917 | M22: 34058.88 | N22: 93094.272 | O22: 137882.962 | P22: 367687.8986 | Q22: 126159.0549 | R22: 338090.15 | V22: 10387958.4 | W22: 28393752.96 | X22: 21371859.1 | Y22: 56991624.28 | Z22: 31.7598175 | AA22: 85.38537724 | AB22: 23.30316177 | AC22: 62.64989585
B23: 7 | C23: 11 | E23: 12612712.01 | F23: 8941388.835 | H23: 2568883.794 | I23: 1821130.052 | K23: 5770361.451 | L23: 4090717.795 | M23: 34058.88 | N23: 93094.272 | O23: 137882.962 | P23: 367687.8986 | Q23: 121892.8066 | R23: 326657.1497 | V23: 10387958.4 | W23: 28393752.96 | X23: 21371859.1 | Y23: 56991624.28 | Z23: 31.7598175 | AA23: 85.38537724 | AB23: 22.51513215 | AC23: 60.53130034
B24: 8 | C24: 12 | E24: 12612712.01 | F24: 8639023.029 | H24: 2568883.794 | I24: 1759545.944 | K24: 5770361.451 | L24: 3952384.343 | M24: 34058.88 | N24: 93094.272 | O24: 137882.962 | P24: 367687.8986 | Q24: 117770.8277 | R24: 315610.7727 | V24: 10387958.4 | W24: 28393752.96 | X24: 21371859.1 | Y24: 56991624.28 | Z24: 31.7598175 | AA24: 85.38537724 | AB24: 21.75375087 | AC24: 58.48434815
B25: 9 | C25: 13 | E25: 12612712.01 | F25: 8346882.154 | H25: 2568883.794 | I25: 1700044.39 | K25: 5770361.451 | L25: 3818728.833 | M25: 34058.88 | N25: 93094.272 | O25: 137882.962 | P25: 367687.8986 | Q25: 113788.2393 | R25: 304937.9446 | V25: 10387958.4 | W25: 28393752.96 | X25: 21371859.1 | Y25: 56991624.28 | Z25: 31.7598175 | AA25: 85.38537724 | AB25: 21.01811678 | AC25: 56.50661657
B26: 10 | C26: 14 | E26: 12612712.01 | F26: 8064620.438 | H26: 2568883.794 | I26: 1642554.966 | K26: 5770361.451 | L26: 3689593.076 | M26: 34058.88 | N26: 93094.272 | O26: 137882.962 | P26: 367687.8986 | Q26: 109940.3278 | R26: 294626.0335 | V26: 10387958.4 | W26: 28393752.96 | X26: 21371859.1 | Y26: 56991624.28 | Z26: 31.7598175 | AA26: 85.38537724 | AB26: 20.30735921 | AC26: 54.59576481
B27: 11 | C27: 15 | E27: 12612712.01 | F27: 7791903.805 | H27: 2568883.794 | I27: 1587009.629 | K27: 5770361.451 | L27: 3564824.228 | M27: 34058.88 | N27: 93094.272 | O27: 137882.962 | P27: 367687.8986 | Q27: 106222.539 | R27: 284662.8343 | V27: 10387958.4 | W27: 28393752.96 | X27: 21371859.1 | Y27: 56991624.28 | Z27: 31.7598175 | AA27: 85.38537724 | AB27: 19.62063692 | AC27: 52.74953121
B28: 12 | C28: 16 | E28: 12612712.01 | F28: 7528409.474 | H28: 2568883.794 | I28: 1533342.637 | K28: 5770361.451 | L28: 3444274.616 | M28: 34058.88 | N28: 93094.272 | O28: 137882.962 | P28: 367687.8986 | Q28: 102630.4724 | R28: 275036.5548 | V28: 10387958.4 | W28: 28393752.96 | X28: 21371859.1 | Y28: 56991624.28 | Z28: 31.7598175 | AA28: 85.38537724 | AB28: 18.95713712 | AC28: 50.96573064
B29: 13 | C29: 17 | E29: 12612712.01 | F29: 7273825.578 | H29: 2568883.794 | I29: 1481490.471 | K29: 5770361.451 | L29: 3327801.562 | M29: 34058.88 | N29: 93094.272 | O29: 137882.962 | P29: 367687.8986 | Q29: 99159.87673 | R29: 265735.8018 | V29: 10387958.4 | W29: 28393752.96 | X29: 21371859.1 | Y29: 56991624.28 | Z29: 31.7598175 | AA29: 85.38537724 | AB29: 18.31607451 | AC29: 49.24225183
B30: 14 | C30: 18 | E30: 12612712.01 | F30: 7027850.8 | H30: 2568883.794 | I30: 1431391.759 | K30: 5770361.451 | L30: 3215267.209 | M30: 34058.88 | N30: 93094.272 | O30: 137882.962 | P30: 367687.8986 | Q30: 95806.64419 | R30: 256749.5669 | V30: 10387958.4 | W30: 28393752.96 | X30: 21371859.1 | Y30: 56991624.28 | Z30: 31.7598175 | AA30: 85.38537724 | AB30: 17.69669035 | AC30: 47.57705491
B31: 15 | C31: 19 | E31: 12612712.01 | F31: 6790194.01 | H31: 2568883.794 | I31: 1382987.207 | K31: 5770361.451 | L31: 3106538.366 | M31: 34058.88 | N31: 93094.272 | O31: 137882.962 | P31: 367687.8986 | Q31: 92566.80598 | R31: 248067.2144 | V31: 10387958.4 | W31: 28393752.96 | X31: 21371859.1 | Y31: 56991624.28 | Z31: 31.7598175 | AA31: 85.38537724 | AB31: 17.09825154 | AC31: 45.96816899
B32: 16 | C32: 20 | E32: 12612712.01 | F32: 6560573.923 | H32: 2568883.794 | I32: 1336219.523 | K32: 5770361.451 | L32: 3001486.344 | M32: 34058.88 | N32: 93094.272 | O32: 137882.962 | P32: 367687.8986 | Q32: 89436.52751 | R32: 239678.4681 | V32: 10387958.4 | W32: 28393752.96 | X32: 21371859.1 | Y32: 56991624.28 | Z32: 31.7598175 | AA32: 85.38537724 | AB32: 16.5200498 | AC32: 44.41368985
B33: 17 | C33: 21 | E33: 12612712.01 | F33: 6338718.766 | H33: 2568883.794 | I33: 1291033.356 | K33: 5770361.451 | L33: 2899986.806 | M33: 34058.88 | N33: 93094.272 | O33: 137882.962 | P33: 367687.8986 | Q33: 86412.10388 | R33: 231573.3991 | V33: 10387958.4 | W33: 28393752.96 | X33: 21371859.1 | Y33: 56991624.28 | Z33: 31.7598175 | AA33: 85.38537724 | AB33: 15.96140077 | AC33: 42.91177763
B34: 18 | C34: 22 | E34: 12612712.01 | F34: 6124365.957 | H34: 2568883.794 | I34: 1247375.223 | K34: 5770361.451 | L34: 2801919.619 | M34: 34058.88 | N34: 93094.272 | O34: 137882.962 | P34: 367687.8986 | Q34: 83489.95544 | R34: 223742.4146 | V34: 10387958.4 | W34: 28393752.96 | X34: 21371859.1 | Y34: 56991624.28 | Z34: 31.7598175 | AA34: 85.38537724 | AB34: 15.42164326 | AC34: 41.46065471
B35: 19 | C35: 23 | E35: 12612712.01 | F35: 5917261.795 | H35: 2568883.794 | I35: 1205193.452 | K35: 5770361.451 | L35: 2707168.714 | M35: 34058.88 | N35: 93094.272 | O35: 137882.962 | P35: 367687.8986 | Q35: 80666.62361 | R35: 216176.246 | V35: 10387958.4 | W35: 28393752.96 | X35: 21371859.1 | Y35: 56991624.28 | Z35: 31.7598175 | AA35: 85.38537724 | AB35: 14.90013841 | AC35: 40.05860359
B36: 20 | C36: 24 | D36: =D16+0.1*D13 -> 35919086.95 | E36: 12612712.01 | F36: 21998767.24 | G36: =WT_DX_PL*WT_Rated_MW*(WTs_No_LO_FL+WTs_No_LO_PL) -> 2189929.306 | H36: 2568883.794 | I36: 2157101.611 | J36: =WT_DX_PL*WT_Rated_MW*(WTs_No_HI_PL+WTs_No_HI_FL) -> 5839811.482 | K36: 5770361.451 | L36: 5262724.594 | M36: 34058.88 | N36: 93094.272 | O36: 137882.962 | P36: 367687.8986 | Q36: 77938.76677 | R36: 208865.9381 | V36: 10387958.4 | W36: 28393752.96 | X36: 21371859.1 | Y36: 56991624.28 | Z36: 31.7598175 | AA36: 85.38537724 | AB36: 14.396269 | AC36: 38.70396482
C37: Total | F37: =SUM(F13:F36) -> 522344193.6 | I37: =SUM(I13:I36) -> 130831901.6 | L37: =SUM(L13:L36) -> 328418201.4 | M37: =SUM(M16:M36) -> 681177.6 | N37: 1861885.44 | O37: 2757659.239 | P37: 7353757.971 | Q37: 2204083.525 | R37: 5906662.272 | AB37: =SUM(AB17:AB36) -> 407.1219066 | AC37: =SUM(AC17:AC36) -> 1094.53581 | AE37: WEC REVENUE | AF37: =AC37*AF17 -> 363.9730877
F38: LCOE | O38: Low | P38: High | AA38: NPV | AB38: =AB37-(F37+I37)/1000000 -> -246.0541885 | AC38: =AC37-(L37+F37)/1000000 -> 243.773415 | AE38: WT REVENUE | AF38: =AC37-AF37 -> 730.5627224
N39: Wind/Wave Ratio | O39: =M37/(M37+O37) -> 0.1980837219 | P39: =N37/(N37+P37) -> 0.2020353172 | AA39: Proft % | AB39: =AB38/AB37 -> -0.6043747206 | AC39: =AC38/AC37 -> 0.2227185377
C40: LCOE | G40: =G13/(WTs_No_LO_FL+WTs_No_LO_PL) -> 14745989.22 | N40: Annual Sales (GWh) | O40: =(M17+O17)/1000 -> 171.941842 | P40: =(N17+P17)/1000 -> 460.7821706 | AA40: Profitability Index | AB40: =1000000*AB37/(F13+I13) -> 0.9437421386 | AC40: =AC37*1000000/(F13++L13) -> 1.921091454
C41: Low | D41: High | G41: =G40/6 -> 2457664.87 | N41: MWh | O41: =O40*1000 -> 171941.842 | P41: =P40*1000 -> 460782.1706
C42: =(F37+I37)/Q37 -> 296.3481591 | D42: =(L37+F37)/R37 -> 144.0343727 | E42: per MWH | G42: =G41/Exch_Rate_Euro -> 3175540.187 | H42: per MW Capex | AA42: NPV Total Costs | AB42: =(F37+I37)/1000000 -> 653.1760952 | AC42: =(F37+L37)/1000000 -> 850.762395
AA43: NPV Sales | AB43: =AB37 -> 407.1219066 | AC43: =AC37 -> 1094.53581
J46: %
G47: CAPEX | H47: WT/Tower/Found | I47: =I13 -> 88475935.33 | J47: =I47/$I$54 -> 0.1389896483 | K47: =J47*$C$42 -> 41.18932641 | L47: =L13 -> 226831744 | M47: =L47/$L$54 -> 0.2732777002 | N47: =M47*$D$42 -> 39.36138212 | O47: =AF38*1000000 -> 730562722.4 | P47: Costs
H48: Platform | I48: =F13 -> 342915108.8 | J48: 0.5386962026 | K48: 159.6416279 | L48: =I48 -> 342915108.8 | M48: 0.4131302376 | N48: 59.5049546 | O48: =AF37*1000000 -> 363973087.7 | P48: Revenue
G49: OPEX | H49: WTs | I49: =SUM(I17:I36)-I51 -> 32929939.47 | J49: 0.05173068462 | K49: 15.33029316 | L49: =SUM(L17:L36)-L51 -> 73968956.39 | M49: 0.08911480345 | N49: 12.83559481
H50: Platform | I50: =SUM(F17:F36)-I52 -> 172243943.2 | J50: 0.2705834644 | K50: 80.18691156 | L50: =I50 -> 172243943.2 | M50: 0.2075125282 | N50: 29.88893682
G51: DECEX | H51: WTs | I51: =G36/((1+Discount_Rate)^(C36-1)) -> 992663.4928 | J51: 0.001559406513 | K51: 0.4621272493 | L51: =J36/((1+Discount_Rate)^(C36-1)) -> 2647102.647 | M51: 0.003189122081 | N51: 0.4593431984
H52: Platform | I52: =E36/((1+Discount_Rate)^(C36-1)) -> 5717161.154 | J52: 0.008981269487 | K52: 2.661582679 | L52: =I52 -> 5717161.154 | M52: 0.006887804255 | N52: 0.992080565
J53: =SUM(J47:J52) -> 1.010540676 | L53: =E36/((1+Discount_Rate)^(C36-1)) -> 5717161.154 | M53: =SUM(M47:M52) -> 0.9931121957
H54: total | I54: =SUM(I47:I50) -> 636564926.9 | L54: =SUM(L47:L53) -> 830041177.5
I58: 0.15 | J58: 0.41
H59: WT CAPEX | I59: =K47 -> 41.18932641 | J59: =N47 -> 39.36138212
H60: Platform CAPEX | I60: 159.6416279 | J60: 59.5049546
H61: WT OPEX | I61: 15.33029316 | J61: 12.83559481
H62: Platform OPEX | I62: 80.18691156 | J62: 29.88893682
H63: WT DECEX | I63: 0.4621272493 | J63: 0.4593431984
H64: Platform DECEX | I64: 2.661582679 | J64: 0.992080565

Sheet TETHYS vs Mothership(50-200WTs)
G1: LOW CASE PROJECT VARIABLES | J1: HI CASE PROJECT VARIABLES | M1: Mothership PROJECT VARIABLES
B2: Wind farm Size | F2: Number of Platform Turbines | G2: 2 | I2: Number of Platform Turbines | J2: 2
B3: =G3+G2 -> 25 | C3: Turbines | F3: Number of Floating Turbines | G3: 23 | I3: Number of Floating Turbines | J3: 23 | L3: Number of Floating Turbines | M3: 25
B4: =G47+G46 -> 50 | C4: Turbines | F4: Water Depth | G4: =Depth -> 100 | I4: Water Depth | J4: =Depth -> 100 | L4: Water Depth | M4: =Depth -> 100
B5: =G97+G96 -> 100 | C5: Turbines | F5: Inter Array Cable Length Required | G5: =G3*1.9 -> 43.7 | H5: KM | I5: Inter Array Cable Length Required | J5: =J3*1.9 -> 43.7 | K5: KM | L5: Inter Array Cable Length Required | M5: =M3*1.9 -> 47.5 | N5: KM
B6: =G148+G147 -> 150 | C6: Turbines | F6: Inter-Array Cable Cost | G6: =G5*Inter_Array_Cable_Cost -> 12279700 | H6: (total for wind turbine array) | I6: Inter-Array Cable Cost | J6: =J5*Inter_Array_Cable_Cost -> 12279700 | K6: (total for wind turbine array) | L6: Inter-Array Cable Cost | M6: =M5*Inter_Array_Cable_Cost -> 13347500 | N6: (total for wind turbine array)
F7: Inter-Array Cable Installation | G7: =G5*Int_Array_Installation -> 8303000 | H7: (total for wind turbine array) | I7: Inter-Array Cable Installation | J7: =J5*Int_Array_Installation -> 8303000 | K7: (total for wind turbine array) | L7: Inter-Array Cable Installation | M7: =M5*Int_Array_Installation -> 9025000 | N7: (total for wind turbine array) | AC7: Sales
F8: Total Rated Power WTs & Tethys) | G8: =(G2+G3)*WT_Rated_MW+WEC_Rated -> 178.8 | H8: MW | I8: Total Rated Power WTs & Tethys | J8: =(J2+J3)*WT_Rated_MW+WEC_Rated -> 178.8 | K8: MW
F9: Substation & Export Cable Cost | G9: =Export_Cable_Length*HV_DC_Export_Cable*'TETHYS vs Mothership(50-200WTs)'!G8+'TETHYS vs Mothership(50-200WTs)'!G8*Substation_perMW -> 74899320 | H9: Platform + WTs + Distance | I9: Substation & Export Cable Cost | J9: =Export_Cable_Length*HV_DC_Export_Cable*J8+J8*Substation_perMW -> 74899320 | K9: Platform + WTs + Distance | L9: Substation & Export Cable Cost | N9: Included in CAPEX | T9: DISCOUNTED | AF9: DISCOUNTED
C10: Cost for system PSP | F10: Cost for WTs Low Case | I10: Cost for WTs High Case | L10: Cost for WTs Mothership Version | O10: Wave Energy (MWH) | Q10: Wind Energy (MWH) | T10: Total Energy NPV (MWH) | Y10: Wave Energy (MWH) | AA10: Wind Energy (MWH) | AC10: Total Sales (£m) | AF10: Total Sales NPV (£m)
B11: Year | C11: One Off | D11: Recurrent | E11: NPV | F11: One Off | G11: Recurrent | H11: NPV | I11: One Off | J11: Recurrent | K11: NPV1 | L11: One Off | M11: Recurrent | N11: NPV1 | O11: Low | P11: High | Q11: Low | R11: High | S11: Mothership | T11: Low | U11: High | V11: Mothership | Y11: Low | Z11: High | AA11: Low | AB11: High | AC11: Low | AD11: High | AE11: Mothership | AF11: Low | AG11: High | AH11: Mothership
B13: 1 | C13: ='PSP Cost-1'!$E$74 -> 342915108.8 | D13: 0 | E13: =(D13+C13)/((1+Discount_Rate)^(B13-1)) -> 342915108.8 | F13: =G2*WT_CX_PLAT+G3*WT_CX_TETHYS+G6+G9 -> 351351971.9 | G13: 0 | H13: =F13+G13 -> 351351971.9 | I13: =J2*WT_CX_PLAT+J3*WT_CX_TETHYS+J6+J9 -> 351351971.9 | J13: 0 | K13: =(J13+I13)/((1+Discount_Rate)^($B13-1)) -> 351351971.9 | L13: =M3*WT_CX_STD+M6 -> 358009681.6 | M13: 0 | N13: =(M13+L13)/((1+Discount_Rate)^($B13-1)) -> 358009681.6
B14: 2 | D14: 0 | E14: =(D14+C14)/((1+Discount_Rate)^(B14-1)) -> 0 | G14: 0 | H14: =(G14+F14)/((1+Discount_Rate)^(E14-1)) -> 0 | J14: 0 | K14: 0 | M14: 0 | N14: 0
B15: 3 | D15: 0 | E15: =(D15+C15)/((1+Discount_Rate)^(B15-1)) -> 0 | G15: 0 | H15: =(G15+F15)/((1+Discount_Rate)^(B15-1)) -> 0 | J15: 0 | K15: 0 | M15: 0 | N15: 0
B16: 4 | C16: ='PSP Installation'!$K$9 -> 1627576.065 | D16: 0 | E16: =(D16+C16)/((1+Discount_Rate)^(B16-1)) -> 1467980.36 | F16: =G7+G3*WT_INST_TETHYS+G2*WT_INST_PL -> 44186542.64 | G16: 0 | H16: 39853729.82 | I16: =J7+J3*WT_INST_TETHYS+J2*WT_INST_PL -> 44186542.64 | J16: 0 | K16: 39853729.82 | L16: =M7+M3*WT_INST_STD -> 54961971.28 | M16: 0 | N16: 49572549.09 | O16: 0 | P16: 0 | Q16: 0 | R16: 0 | T16: =Q16+O16 -> 0 | U16: =R16+P16 -> 0
B17: 5 | D17: =PSP_OPEX -> 12612712.01 | E17: =(D17+C17)/((1+Discount_Rate)^(B17-1)) -> 10991249.85 | G17: =WT_OPEX_TETHYS*$G$3+WT_OPEX_PLAT*$G$2+$G$3*10810+548974+0.01*$G$9 -> 8651691.342 | H17: 7539449.177 | J17: =WT_OPEX_TETHYS*$J$3+WT_OPEX_PLAT*$J$2+$J$3*10810+548974+0.01*$J$9 -> 8651691.342 | K17: 7539449.177 | M17: =WT_OPEX_STD*$M$3+Mshpp_no_CTV+$M$3*10810+548974 -> 30482832.05 | N17: 26564027.07 | O17: =WEC_Yield_LO -> 34058.88 | P17: =WEC_Yield_Hi -> 93094.272 | Q17: =($G$2+$G$3)*WT_ANN_ENRGY_ADJ -> 574512.3415 | R17: =($J$2+$J$3)*WT_ANN_ENRGY_ADJ -> 574512.3415 | S17: =$M$3*WT_ANN_ENRGY_ADJ -> 574512.3415 | T17: =(Q17+O17)/((1+Discount_Rate)^($B17-1)) -> 530334.661 | U17: =(R17+P17)/((1+Discount_Rate)^($B17-1)) -> 581780.5945 | V17: =S17/((1+Discount_Rate)^($B17-1)) -> 500654.3147 | Y17: =O17*Strike_Price_WEC -> 10387958.4 | Z17: =P17*Strike_Price_WEC -> 28393752.96 | AA17: =Q17*Strike_Price_WTs -> 89049412.94 | AB17: =R17*Strike_Price_WTs -> 89049412.94 | AC17: =(Y17+AA17)/1000000 -> 99.43737134 | AD17: =(Z17+AB17)/1000000 -> 117.4431659 | AE17: =S17*Strike_Price_WTs/1000000 -> 89.04941294 | AF17: =AC17/((1+Discount_Rate)^($B17-1)) -> 86.65392439 | AG17: =AD17/((1+Discount_Rate)^($B17-1)) -> 102.3449341 | AH17: =AE17/((1+Discount_Rate)^($B17-1)) -> 77.60141878
B18: 6 | D18: 12612712.01 | E18: 10619565.07 | G18: 8651691.342 | H18: 7284491.958 | J18: 8651691.342 | K18: 7284491.958 | M18: 30482832.05 | N18: 25665726.64 | O18: 34058.88 | P18: 93094.272 | Q18: 574512.3415 | R18: 574512.3415 | S18: 574512.3415 | T18: 512400.6386 | U18: 562106.8546 | V18: 483723.9756 | Y18: 10387958.4 | Z18: 28393752.96 | AA18: 89049412.94 | AB18: 89049412.94 | AC18: =(Y18+AA18)/1000000 -> 99.43737134 | AD18: =(Z18+AB18)/1000000 -> 117.4431659 | AE18: 89.04941294 | AF18: 83.72359845 | AG18: 98.88399432 | AH18: 74.97721622
B19: 7 | D19: 12612712.01 | E19: 10260449.35 | G19: 8651691.342 | H19: 7038156.481 | J19: 8651691.342 | K19: 7038156.481 | M19: 30482832.05 | N19: 24797803.51 | O19: 34058.88 | P19: 93094.272 | Q19: 574512.3415 | R19: 574512.3415 | S19: 574512.3415 | T19: 495073.0808 | U19: 543098.4102 | V19: 467366.16 | Y19: 10387958.4 | Z19: 28393752.96 | AA19: 89049412.94 | AB19: 89049412.94 | AC19: 99.43737134 | AD19: 117.4431659 | AE19: 89.04941294 | AF19: 80.89236565 | AG19: 95.54009113 | AH19: 72.4417548
B20: 8 | D20: 12612712.01 | E20: 9913477.629 | G20: 8651691.342 | H20: 6800151.19 | J20: 8651691.342 | K20: 6800151.19 | M20: 30482832.05 | N20: 23959230.45 | O20: 34058.88 | P20: 93094.272 | Q20: 574512.3415 | R20: 574512.3415 | S20: 574512.3415 | T20: 478331.479 | U20: 524732.7635 | V20: 451561.5072 | Y20: 10387958.4 | Z20: 28393752.96 | AA20: 89049412.94 | AB20: 89049412.94 | AC20: 99.43737134 | AD20: 117.4431659 | AE20: 89.04941294 | AF20: 78.15687502 | AG20: 92.30926679 | AH20: 69.99203362
B21: 9 | D21: 12612712.01 | E21: 9578239.255 | G21: 8651691.342 | H21: 6570194.386 | J21: 8651691.342 | K21: 6570194.386 | M21: 30482832.05 | N21: 23149014.92 | O21: 34058.88 | P21: 93094.272 | Q21: 574512.3415 | R21: 574512.3415 | S21: 574512.3415 | T21: 462156.0184 | U21: 506988.1773 | V21: 436291.3113 | Y21: 10387958.4 | Z21: 28393752.96 | AA21: 89049412.94 | AB21: 89049412.94 | AC21: 99.43737134 | AD21: 117.4431659 | AE21: 89.04941294 | AF21: 75.51388891 | AG21: 89.18769738 | AH21: 67.62515326
B22: 10 | D22: 12612712.01 | E22: 9254337.444 | G22: 8651691.342 | H22: 6348013.9 | J22: 8651691.342 | K22: 6348013.9 | M22: 30482832.05 | N22: 22366197.99 | O22: 34058.88 | P22: 93094.272 | Q22: 574512.3415 | R22: 574512.3415 | S22: 574512.3415 | T22: 446527.554 | U22: 489843.6496 | V22: 421537.4989 | Y22: 10387958.4 | Z22: 28393752.96 | AA22: 89049412.94 | AB22: 89049412.94 | AC22: 99.43737134 | AD22: 117.4431659 | AE22: 89.04941294 | AF22: 72.96027914 | AG22: 86.17168829 | AH22: 65.33831233
B23: 11 | D23: 12612712.01 | E23: 8941388.835 | G23: 8651691.342 | H23: 6133346.763 | J23: 8651691.342 | K23: 6133346.763 | M23: 30482832.05 | N23: 21609853.13 | O23: 34058.88 | P23: 93094.272 | Q23: 574512.3415 | R23: 574512.3415 | S23: 574512.3415 | T23: 431427.5884 | U23: 473278.8885 | V23: 407282.6076 | Y23: 10387958.4 | Z23: 28393752.96 | AA23: 89049412.94 | AB23: 89049412.94 | AC23: 99.43737134 | AD23: 117.4431659 | AE23: 89.04941294 | AF23: 70.49302333 | AG23: 83.25766985 | AH23: 63.12880418
B24: 12 | D24: 12612712.01 | E24: 8639023.029 | G24: 8651691.342 | H24: 5925938.901 | J24: 8651691.342 | K24: 5925938.901 | M24: 30482832.05 | N24: 20879085.15 | O24: 34058.88 | P24: 93094.272 | Q24: 574512.3415 | R24: 574512.3415 | S24: 574512.3415 | T24: 416838.2497 | U24: 457274.2884 | V24: 393509.7658 | Y24: 10387958.4 | Z24: 28393752.96 | AA24: 89049412.94 | AB24: 89049412.94 | AC24: 99.43737134 | AD24: 117.4431659 | AE24: 89.04941294 | AF24: 68.10920128 | AG24: 80.44219309 | AH24: 60.9940137
B25: 13 | D25: 12612712.01 | E25: 8346882.154 | G25: 8651691.342 | H25: 5725544.832 | J25: 8651691.342 | K25: 5725544.832 | M25: 30482832.05 | N25: 20173029.13 | O25: 34058.88 | P25: 93094.272 | Q25: 574512.3415 | R25: 574512.3415 | S25: 574512.3415 | T25: 402742.2702 | U25: 441810.9067 | V25: 380202.6723 | Y25: 10387958.4 | Z25: 28393752.96 | AA25: 89049412.94 | AB25: 89049412.94 | AC25: 99.43737134 | AD25: 117.4431659 | AE25: 89.04941294 | AF25: 65.80599158 | AG25: 77.72192569 | AH25: 58.9314142
B26: 14 | D26: 12612712.01 | E26: 8064620.438 | G26: 8651691.342 | H26: 5531927.374 | J26: 8651691.342 | K26: 5531927.374 | M26: 30482832.05 | N26: 19490849.41 | O26: 34058.88 | P26: 93094.272 | Q26: 574512.3415 | R26: 574512.3415 | S26: 574512.3415 | T26: 389122.9664 | U26: 426870.4412 | V26: 367345.5771 | Y26: 10387958.4 | Z26: 28393752.96 | AA26: 89049412.94 | AB26: 89049412.94 | AC26: 99.43737134 | AD26: 117.4431659 | AE26: 89.04941294 | AF26: 63.58066819 | AG26: 75.09364801 | AH26: 56.93856445
B27: 15 | D27: 12612712.01 | E27: 7791903.805 | G27: 8651691.342 | H27: 5344857.366 | J27: 8651691.342 | K27: 5344857.366 | M27: 30482832.05 | N27: 18831738.56 | O27: 34058.88 | P27: 93094.272 | Q27: 574512.3415 | R27: 574512.3415 | S27: 574512.3415 | T27: 375964.2187 | U27: 412435.2089 | V27: 354923.2629 | Y27: 10387958.4 | Z27: 28393752.96 | AA27: 89049412.94 | AB27: 89049412.94 | AC27: 99.43737134 | AD27: 117.4431659 | AE27: 89.04941294 | AF27: 61.43059728 | AG27: 72.55424928 | AH27: 55.01310575
B28: 16 | D28: 12612712.01 | E28: 7528409.474 | G28: 8651691.342 | H28: 5164113.397 | J28: 8651691.342 | K28: 5164113.397 | M28: 30482832.05 | N28: 18194916.48 | O28: 34058.88 | P28: 93094.272 | Q28: 574512.3415 | R28: 574512.3415 | S28: 574512.3415 | T28: 363250.4529 | U28: 398488.1245 | V28: 342921.0269 | Y28: 10387958.4 | Z28: 28393752.96 | AA28: 89049412.94 | AB28: 89049412.94 | AC28: 99.43737134 | AD28: 117.4431659 | AE28: 89.04941294 | AF28: 59.35323409 | AG28: 70.10072394 | AH28: 53.15275918
B29: 17 | D29: 12612712.01 | E29: 7273825.578 | G29: 8651691.342 | H29: 4989481.543 | J29: 8651691.342 | K29: 4989481.543 | M29: 30482832.05 | N29: 17579629.45 | O29: 34058.88 | P29: 93094.272 | Q29: 574512.3415 | R29: 574512.3415 | S29: 574512.3415 | T29: 350966.6212 | U29: 385012.6807 | V29: 331324.6637 | Y29: 10387958.4 | Z29: 28393752.96 | AA29: 89049412.94 | AB29: 89049412.94 | AC29: 99.43737134 | AD29: 117.4431659 | AE29: 89.04941294 | AF29: 57.34611989 | AG29: 67.73016806 | AH29: 51.35532287
B30: 18 | D30: 12612712.01 | E30: 7027850.8 | G30: 8651691.342 | H30: 4820755.114 | J30: 8651691.342 | K30: 4820755.114 | M30: 30482832.05 | N30: 16985149.23 | O30: 34058.88 | P30: 93094.272 | Q30: 574512.3415 | R30: 574512.3415 | S30: 574512.3415 | T30: 339098.1847 | U30: 371992.9282 | V30: 320120.448 | Y30: 10387958.4 | Z30: 28393752.96 | AA30: 89049412.94 | AB30: 89049412.94 | AC30: 99.43737134 | AD30: 117.4431659 | AE30: 89.04941294 | AF30: 55.40687913 | AG30: 65.43977591 | AH30: 49.61866944
B31: 19 | D31: 12612712.01 | E31: 6790194.01 | G31: 8651691.342 | H31: 4657734.41 | J31: 8651691.342 | K31: 4657734.41 | M31: 30482832.05 | N31: 16410772.2 | O31: 34058.88 | P31: 93094.272 | Q31: 574512.3415 | R31: 574512.3415 | S31: 574512.3415 | T31: 327631.0963 | U31: 359413.4572 | V31: 309295.1189 | Y31: 10387958.4 | Z31: 28393752.96 | AA31: 89049412.94 | AB31: 89049412.94 | AC31: 99.43737134 | AD31: 117.4431659 | AE31: 89.04941294 | AF31: 53.53321655 | AG31: 63.22683662 | AH31: 47.94074342
B32: 20 | D32: 12612712.01 | E32: 6560573.923 | G32: 8651691.342 | H32: 4500226.483 | J32: 8651691.342 | K32: 4500226.483 | M32: 30482832.05 | N32: 15855818.55 | O32: 34058.88 | P32: 93094.272 | Q32: 574512.3415 | R32: 574512.3415 | S32: 574512.3415 | T32: 316551.7839 | U32: 347259.379 | V32: 298835.8636 | Y32: 10387958.4 | Z32: 28393752.96 | AA32: 89049412.94 | AB32: 89049412.94 | AC32: 99.43737134 | AD32: 117.4431659 | AE32: 89.04941294 | AF32: 51.72291454 | AG32: 61.08873104 | AH32: 46.31955886
B33: 21 | D33: 12612712.01 | E33: 6338718.766 | G33: 8651691.342 | H33: 4348044.911 | J33: 8651691.342 | K33: 4348044.911 | M33: 30482832.05 | N33: 15319631.45 | O33: 34058.88 | P33: 93094.272 | Q33: 574512.3415 | R33: 574512.3415 | S33: 574512.3415 | T33: 305847.1342 | U33: 335516.3082 | V33: 288730.303 | Y33: 10387958.4 | Z33: 28393752.96 | AA33: 89049412.94 | AB33: 89049412.94 | AC33: 99.43737134 | AD33: 117.4431659 | AE33: 89.04941294 | AF33: 49.97383047 | AG33: 59.02292854 | AH33: 44.75319697
B34: 22 | D34: 12612712.01 | E34: 6124365.957 | G34: 8651691.342 | H34: 4201009.576 | J34: 8651691.342 | K34: 4201009.576 | M34: 30482832.05 | N34: 14801576.28 | O34: 34058.88 | P34: 93094.272 | Q34: 574512.3415 | R34: 574512.3415 | S34: 574512.3415 | T34: 295504.4775 | U34: 324170.3461 | V34: 278966.4764 | Y34: 10387958.4 | Z34: 28393752.96 | AA34: 89049412.94 | AB34: 89049412.94 | AC34: 99.43737134 | AD34: 117.4431659 | AE34: 89.04941294 | AF34: 48.28389417 | AG34: 57.0269841 | AH34: 43.23980384
B35: 23 | D35: 12612712.01 | E35: 5917261.795 | G35: 8651691.342 | H35: 4058946.45 | J35: 8651691.342 | K35: 4058946.45 | M35: 30482832.05 | N35: 14301039.88 | O35: 34058.88 | P35: 93094.272 | Q35: 574512.3415 | R35: 574512.3415 | S35: 574512.3415 | T35: 285511.5724 | U35: 313208.0638 | V35: 269532.8274 | Y35: 10387958.4 | Z35: 28393752.96 | AA35: 89049412.94 | AB35: 89049412.94 | AC35: 99.43737134 | AD35: 117.4431659 | AE35: 89.04941294 | AF35: 46.65110548 | AG35: 55.09853536 | AH35: 41.77758825
B36: 24 | C36: =C15+0.1*C13 -> 34291510.88 | D36: 12612712.01 | E36: 21261010.39 | F36: =(G3*WT_DX_PL+G2*WT_DX_Tethys)*WT_Rated_MW -> 9124705.44 | G36: 8651691.342 | H36: 8057785.278 | I36: =(J3*WT_DX_Tethys+J2*WT_DX_PL)*WT_Rated_MW -> 9124705.44 | J36: 8651691.342 | K36: 8057785.278 | L36: =WT_DX_STD*WT_Rated_MW*M3 -> 18249410.88 | M36: 30482832.05 | N36: 22089625.61 | O36: 34058.88 | P36: 93094.272 | Q36: 574512.3415 | R36: 574512.3415 | S36: 574512.3415 | T36: 275856.5917 | U36: 302616.4868 | V36: 260418.1907 | Y36: 10387958.4 | Z36: 28393752.96 | AA36: 89049412.94 | AB36: 89049412.94 | AC36: 99.43737134 | AD36: 117.4431659 | AE36: 89.04941294 | AF36: 45.07353187 | AG36: 53.23529986 | AH36: 40.36481956
B37: Total Discounted Costs for PSP | E37: =SUM(E13:E36) -> 521606436.8 | G37: Total Discounted Costs for WTs | H37: =SUM(H13:H36) -> 506245871.2 | J37: Total Discounted Costs for WTs | K37: =SUM(K13:K36) -> 506245871.2 | L37: Total Discounted Costs for WTs | N37: =SUM(N13:N36) -> 806606945.8 | O37: =SUM(O16:O36) -> 681177.6 | P37: 1861885.44 | Q37: 11490246.83 | R37: 11490246.83 | S37: 11490246.83 | T37: 7801136.64 | U37: 8557897.958 | V37: =SUM(V17:V36) -> 7364543.572 | W37: Energy Equivalence Check | AE37: NPV | AF37: =SUM(AF17:AF36) -> 1274.665139 | AG37: =SUM(AG17:AG36) -> 1505.477341 | AH37: =SUM(AH17:AH36) -> 1141.504254
T38: =T37/U37 -> 0.911571589 | U38: =U37/U37 -> 1 | V38: =V37/U37 -> 0.8605551981 | W38: =IF(_xlfn.STDEV.P(T38:V38)<0.01,"OK","Check") -> Check | AE38: Profit | AF38: =AF37-(E37+H37)/1000000 -> 246.8128314 | AG38: =AG37-(E37+K37)/1000000 -> 477.6250334 | AH38: =AH37-N37/1000000 -> 334.8973079
AE39: Proft % | AF39: =AF38/AF37 -> 0.1936295454 | AG39: =AG38/AG37 -> 0.3172582013 | AH39: =AH38/AH37 -> 0.2933824441
B40: LCOE
B41: Low | C41: High | D41: MOTHERSHIP
B42: =(E37+H37)/T37 -> 131.7567369 | C42: =(K37+E37)/U37 -> 120.105698 | D42: =N37/V37 -> 109.5257212 | E42: per MWH
A43: Wind:Wave | B43: =O17/(O17+Q17) -> 0.05596531482 | C43: =P17/(P17+R17) -> 0.1394448019
G45: LOW CASE PROJECT VARIABLES | J45: HI CASE PROJECT VARIABLES | M45: Mothership PROJECT VARIABLES
F46: Number of Platform Turbines | G46: 2 | I46: Number of Platform Turbines | J46: 2
F47: Number of Floating Turbines | G47: 48 | I47: Number of Floating Turbines | J47: 48 | L47: Number of Floating Turbines | M47: 50
F48: Water Depth | G48: =Depth -> 100 | I48: Water Depth | J48: =Depth -> 100 | L48: Water Depth | M48: =Depth -> 100
F49: Inter Array Cable Length Required | G49: =G47*1.9 -> 91.2 | H49: KM | I49: Inter Array Cable Length Required | J49: =J47*1.9 -> 91.2 | K49: KM | L49: Inter Array Cable Length Required | M49: =M47*1.9 -> 95 | N49: KM
F50: Inter-Array Cable Cost | G50: =G49*Inter_Array_Cable_Cost -> 25627200 | H50: (total for wind turbine array) | I50: Inter-Array Cable Cost | J50: =J49*Inter_Array_Cable_Cost -> 25627200 | K50: (total for wind turbine array) | L50: Inter-Array Cable Cost | M50: =M49*Inter_Array_Cable_Cost -> 26695000 | N50: (total for wind turbine array)
F51: Inter-Array Cable Installation | G51: =G49*Int_Array_Installation -> 17328000 | H51: (total for wind turbine array) | I51: Inter-Array Cable Installation | J51: =J49*Int_Array_Installation -> 17328000 | K51: (total for wind turbine array) | L51: Inter-Array Cable Installation | M51: =M49*Int_Array_Installation -> 18050000 | N51: (total for wind turbine array)
F52: Total Rated Power WTs & Tethys) | G52: =(G46+G47)*WT_Rated_MW+WEC_Rated -> 328.8 | H52: MW | I52: Total Rated Power WTs & Tethys | J52: =(J46+J47)*WT_Rated_MW+WEC_Rated -> 328.8 | K52: MW
F53: Substation & Export Cable Cost | G53: =Export_Cable_Length*HV_DC_Export_Cable*'TETHYS vs Mothership(50-200WTs)'!G52+'TETHYS vs Mothership(50-200WTs)'!G52*Substation_perMW -> 137734320 | H53: Platform + WTs + Distance | I53: Substation & Export Cable Cost | J53: =Export_Cable_Length*HV_DC_Export_Cable*'TETHYS vs Mothership(50-200WTs)'!J52+'TETHYS vs Mothership(50-200WTs)'!J52*Substation_perMW -> 137734320 | K53: Platform + WTs + Distance | L53: Substation & Export Cable Cost | N53: Included in CAPEX | AA53: Sales | AF53: DISCOUNTED
C54: Cost for system PSP | F54: Cost for WTs Low Case | I54: Cost for WTs High Case | L54: Cost for WTs Mothership Version | O54: Wave Energy (MWH) | Q54: Wind Energy (MWH) | T54: Total Energy NPV (MWH) | Y54: Wave Energy (MWH) | AA54: Wind Energy (MWH) | AC54: Total Sales (£m) | AF54: Total Sales NPV (£m)
B55: Year | C55: One Off | D55: Recurrent | E55: NPV | F55: One Off | G55: Recurrent | H55: NPV | I55: One Off | J55: Recurrent | K55: NPV1 | L55: One Off | M55: Recurrent | N55: NPV1 | O55: Low | P55: High | Q55: Low | R55: High | S55: Mothership | T55: Low | U55: High | V55: Mothership | Y55: Low | Z55: High | AA55: Low | AB55: High | AC55: Low | AD55: High | AE55: Mothership | AF55: Low | AG55: High | AH55: Mothership | AI55: WEC NPV Sales | AJ55: WEC NPV Sales
B57: 1 | C57: ='PSP Cost-1'!$E$74 -> 342915108.8 | D57: 0 | E57: =C57+D57 -> 342915108.8 | F57: =G46*WT_CX_PLAT+G47*WT_CX_TETHYS+G50+G53 -> 697241493.7 | G57: 0 | H57: =F57+G57 -> 697241493.7 | I57: =J46*WT_CX_PLAT+J47*WT_CX_TETHYS+J50+J53 -> 697241493.7 | J57: 0 | K57: =(J57+I57)/((1+Discount_Rate)^($B57-1)) -> 697241493.7 | L57: =M47*WT_CX_STD+M50 -> 716019363.3 | M57: 0 | N57: =L57+M57 -> 716019363.3
B58: 2 | D58: 0 | E58: =(D58+C58)/((1+Discount_Rate)^(B58-1)) -> 0 | G58: 0 | H58: =(G58+F58)/((1+Discount_Rate)^(B58-1)) -> 0 | J58: 0 | K58: =(J58+I58)/((1+Discount_Rate)^($B58-1)) -> 0 | M58: 0 | N58: =(M58+L58)/((1+Discount_Rate)^($B58-1)) -> 0
B59: 3 | D59: 0 | G59: 0 | H59: 0 | J59: 0 | K59: =(J59+I59)/((1+Discount_Rate)^($B59-1)) -> 0 | M59: 0 | N59: 0
B60: 4 | C60: ='PSP Installation'!$K$9 -> 1627576.065 | D60: 0 | E60: =(D60+C60)/((1+Discount_Rate)^(B60-1)) -> 1467980.36 | F60: =G51+G47*WT_INST_TETHYS+G46*WT_INST_PL -> 90023808.48 | G60: 0 | H60: 81196317.39 | I60: =J51+J47*WT_INST_TETHYS+J46*WT_INST_PL -> 90023808.48 | J60: 0 | K60: =(J60+I60)/((1+Discount_Rate)^($B60-1)) -> 81196317.39 | L60: =M51+M47*WT_INST_STD -> 109923942.6 | M60: 0 | N60: 99145098.17 | O60: 0 | P60: 0 | Q60: 0 | R60: 0 | T60: =Q60+O60 -> 0 | U60: =R60+P60 -> 0
B61: 5 | D61: =PSP_OPEX -> 12612712.01 | E61: =(D61+C61)/((1+Discount_Rate)^(B61-1)) -> 10991249.85 | G61: =WT_OPEX_TETHYS*$G$47+WT_OPEX_PLAT*$G$46+$G$46*10810+548974+0.01*$G$53 -> 16158125.48 | H61: 14080872.87 | J61: =WT_OPEX_TETHYS*$J$47+WT_OPEX_PLAT*$J$46+$J$46*10810+548974+0.01*$J$53 -> 16158125.48 | K61: =(J61+I61)/((1+Discount_Rate)^($B61-1)) -> 14080872.87 | M61: =WT_OPEX_STD*$M$47+Mshpp_no_CTV+$M$47*10810+548974 -> 41968722.69 | N61: 36573317.2 | O61: =WEC_Yield_LO -> 34058.88 | P61: =WEC_Yield_Hi -> 93094.272 | Q61: =($G$46+$G$47)*WT_ANN_ENRGY_ADJ -> 1149024.683 | R61: =($J$46+$J$47)*WT_ANN_ENRGY_ADJ -> 1149024.683 | S61: =$M$47*WT_ANN_ENRGY_ADJ -> 1149024.683 | T61: =(Q61+O61)/((1+Discount_Rate)^($B17-1)) -> 1030988.976 | U61: =(R61+P61)/((1+Discount_Rate)^($B61-1)) -> 1082434.909 | V61: =S61/((1+Discount_Rate)^($B61-1)) -> 1001308.629 | Y61: =O61*Strike_Price_WEC -> 10387958.4 | Z61: =P61*Strike_Price_WEC -> 28393752.96 | AA61: =Q61*Strike_Price_WTs -> 178098825.9 | AB61: =R61*Strike_Price_WTs -> 178098825.9 | AC61: =(Y61+AA61)/1000000 -> 188.4867843 | AD61: =(Z61+AB61)/1000000 -> 206.4925788 | AE61: =S61*Strike_Price_WTs/1000000 -> 178.0988259 | AF61: =AC61/((1+Discount_Rate)^($B61-1)) -> 164.2553432 | AG61: =AD61/((1+Discount_Rate)^($B61-1)) -> 179.9463529 | AH61: =AE61/((1+Discount_Rate)^($B61-1)) -> 155.2028376 | AI61: =Y61/((1+Discount_Rate)^($B61-1)) -> 9052505.609 | AJ61: =Z61/((1+Discount_Rate)^($B61-1)) -> 24743515.33
B62: 6 | D62: 12612712.01 | E62: 10619565.07 | G62: 16158125.48 | H62: 13604708.08 | J62: 16158125.48 | K62: 13604708.08 | M62: 41968722.69 | N62: 35336538.35 | O62: 34058.88 | P62: 93094.272 | Q62: 1149024.683 | R62: 1149024.683 | S62: 1149024.683 | T62: 996124.6142 | U62: 1045830.83 | V62: 967447.9512 | Y62: 10387958.4 | Z62: 28393752.96 | AA62: 178098825.9 | AB62: 178098825.9 | AC62: =(Y62+AA62)/1000000 -> 188.4867843 | AD62: =(Z62+AB62)/1000000 -> 206.4925788 | AE62: 178.0988259 | AF62: 158.7008147 | AG62: 173.8612105 | AH62: 149.9544324 | AI62: 8746382.231 | AJ62: 23906778.1
B63: 7 | D63: 12612712.01 | E63: 10260449.35 | G63: 16158125.48 | H63: 13144645.49 | J63: 16158125.48 | K63: 13144645.49 | M63: 41968722.69 | N63: 34141582.95 | O63: 34058.88 | P63: 93094.272 | Q63: 1149024.683 | R63: 1149024.683 | S63: 1149024.683 | T63: 962439.2408 | U63: 1010464.57 | V63: 934732.32 | Y63: 10387958.4 | Z63: 28393752.96 | AA63: 178098825.9 | AB63: 178098825.9 | AC63: 188.4867843 | AD63: 206.4925788 | AE63: 178.0988259 | AF63: 153.3341204 | AG63: 167.9818459 | AH63: 144.8835096 | AI63: 8450610.851 | AJ63: 23098336.33
B64: 8 | D64: 12612712.01 | E64: 9913477.629 | G64: 16158125.48 | H64: 12700140.57 | J64: 16158125.48 | K64: 12700140.57 | M64: 41968722.69 | N64: 32987036.67 | O64: 34058.88 | P64: 93094.272 | Q64: 1149024.683 | R64: 1149024.683 | S64: 1149024.683 | T64: 929892.9863 | U64: 976294.2708 | V64: 903123.0145 | Y64: 10387958.4 | Z64: 28393752.96 | AA64: 178098825.9 | AB64: 178098825.9 | AC64: 188.4867843 | AD64: 206.4925788 | AE64: 178.0988259 | AF64: 148.1489086 | AG64: 162.3013004 | AH64: 139.9840672 | AI64: 8164841.402 | AJ64: 22317233.17
B65: 9 | D65: 12612712.01 | E65: 9578239.255 | G65: 16158125.48 | H65: 12270667.22 | J65: 16158125.48 | K65: 12270667.22 | M65: 41968722.69 | N65: 31871533.01 | O65: 34058.88 | P65: 93094.272 | Q65: 1149024.683 | R65: 1149024.683 | S65: 1149024.683 | T65: 898447.3297 | U65: 943279.4887 | V65: 872582.6227 | Y65: 10387958.4 | Z65: 28393752.96 | AA65: 178098825.9 | AB65: 178098825.9 | AC65: 188.4867843 | AD65: 206.4925788 | AE65: 178.0988259 | AF65: 143.1390422 | AG65: 156.8128506 | AH65: 135.2503065 | AI65: 7888735.654 | AJ65: 21562544.12
B66: 10 | D66: 12612712.01 | E66: 9254337.444 | G66: 16158125.48 | H66: 11855717.12 | J66: 16158125.48 | K66: 11855717.12 | M66: 41968722.69 | N66: 30793751.7 | O66: 34058.88 | P66: 93094.272 | Q66: 1149024.683 | R66: 1149024.683 | S66: 1149024.683 | T66: 868065.0529 | U66: 911381.1485 | V66: 843074.9978 | Y66: 10387958.4 | Z66: 28393752.96 | AA66: 178098825.9 | AB66: 178098825.9 | AC66: 188.4867843 | AD66: 206.4925788 | AE66: 178.0988259 | AF66: 138.2985915 | AG66: 151.5100006 | AH66: 130.6766247 | AI66: 7621966.816 | AJ66: 20833375.96
B67: 11 | D67: 12612712.01 | E67: 8941388.835 | G67: 16158125.48 | H67: 11454799.15 | J67: 16158125.48 | K67: 11454799.15 | M67: 41968722.69 | N67: 29752417.1 | O67: 34058.88 | P67: 93094.272 | Q67: 1149024.683 | R67: 1149024.683 | S67: 1149024.683 | T67: 838710.196 | U67: 880561.4961 | V67: 814565.2152 | Y67: 10387958.4 | Z67: 28393752.96 | AA67: 178098825.9 | AB67: 178098825.9 | AC67: 188.4867843 | AD67: 206.4925788 | AE67: 178.0988259 | AF67: 133.6218275 | AG67: 146.386474 | AH67: 126.2576084 | AI67: 7364219.146 | AJ67: 20128865.67
B68: 12 | D68: 12612712.01 | E68: 8639023.029 | G68: 16158125.48 | H68: 11067438.79 | J68: 16158125.48 | K68: 11067438.79 | M68: 41968722.69 | N68: 28746296.72 | O68: 34058.88 | P68: 93094.272 | Q68: 1149024.683 | R68: 1149024.683 | S68: 1149024.683 | T68: 810348.0155 | U68: 850784.0542 | V68: 787019.5316 | Y68: 10387958.4 | Z68: 28393752.96 | AA68: 178098825.9 | AB68: 178098825.9 | AC68: 188.4867843 | AD68: 206.4925788 | AE68: 178.0988259 | AF68: 129.103215 | AG68: 141.4362068 | AH68: 121.9880274 | AI68: 7115187.58 | AJ68: 19448179.39
B69: 13 | D69: 12612712.01 | E69: 8346882.154 | G69: 16158125.48 | H69: 10693177.58 | J69: 16158125.48 | K69: 10693177.58 | M69: 41968722.69 | N69: 27774199.73 | O69: 34058.88 | P69: 93094.272 | Q69: 1149024.683 | R69: 1149024.683 | S69: 1149024.683 | T69: 782944.9425 | U69: 822013.5789 | V69: 760405.3446 | Y69: 10387958.4 | Z69: 28393752.96 | AA69: 178098825.9 | AB69: 178098825.9 | AC69: 188.4867843 | AD69: 206.4925788 | AE69: 178.0988259 | AF69: 124.7374058 | AG69: 136.6533399 | AH69: 117.8628284 | AI69: 6874577.372 | AJ69: 18790511.48
B70: 14 | D70: 12612712.01 | E70: 8064620.438 | G70: 16158125.48 | H70: 10331572.54 | J70: 16158125.48 | K70: 10331572.54 | M70: 41968722.69 | N70: 26834975.58 | O70: 34058.88 | P70: 93094.272 | Q70: 1149024.683 | R70: 1149024.683 | S70: 1149024.683 | T70: 756468.5435 | U70: 794216.0183 | V70: 734691.1542 | Y70: 10387958.4 | Z70: 28393752.96 | AA70: 178098825.9 | AB70: 178098825.9 | AC70: 188.4867843 | AD70: 206.4925788 | AE70: 178.0988259 | AF70: 120.5192326 | AG70: 132.0322125 | AH70: 113.8771289 | AI70: 6642103.741 | AJ70: 18155083.56
B71: 15 | D71: 12612712.01 | E71: 7791903.805 | G71: 16158125.48 | H71: 9982195.689 | J71: 16158125.48 | K71: 9982195.689 | M71: 41968722.69 | N71: 25927512.64 | O71: 34058.88 | P71: 93094.272 | Q71: 1149024.683 | R71: 1149024.683 | S71: 1149024.683 | T71: 730887.4816 | U71: 767358.4718 | V71: 709846.5258 | Y71: 10387958.4 | Z71: 28393752.96 | AA71: 178098825.9 | AB71: 178098825.9 | AC71: 188.4867843 | AD71: 206.4925788 | AE71: 178.0988259 | AF71: 116.443703 | AG71: 127.567355 | AH71: 110.0262115 | AI71: 6417491.538 | AJ71: 17541143.54
B72: 16 | D72: 12612712.01 | E72: 7528409.474 | G72: 16158125.48 | H72: 9644633.516 | J72: 16158125.48 | K72: 9644633.516 | M72: 41968722.69 | N72: 25050736.85 | O72: 34058.88 | P72: 93094.272 | Q72: 1149024.683 | R72: 1149024.683 | S72: 1149024.683 | T72: 706171.4798 | U72: 741409.1515 | V72: 685842.0539 | Y72: 10387958.4 | Z72: 28393752.96 | AA72: 178098825.9 | AB72: 178098825.9 | AC72: 188.4867843 | AD72: 206.4925788 | AE72: 178.0988259 | AF72: 112.5059933 | AG72: 123.2534831 | AH72: 106.3055184 | AI72: 6200474.916 | AJ72: 16947964.77
B73: 17 | D73: 12612712.01 | E73: 7273825.578 | G73: 16158125.48 | H73: 9318486.489 | J73: 16158125.48 | K73: 9318486.489 | M73: 41968722.69 | N73: 24203610.48 | O73: 34058.88 | P73: 93094.272 | Q73: 1149024.683 | R73: 1149024.683 | S73: 1149024.683 | T73: 682291.2849 | U73: 716337.3444 | V73: 662649.3274 | Y73: 10387958.4 | Z73: 28393752.96 | AA73: 178098825.9 | AB73: 178098825.9 | AC73: 188.4867843 | AD73: 206.4925788 | AE73: 178.0988259 | AF73: 108.7014428 | AG73: 119.0854909 | AH73: 102.7106457 | AI73: 5990797.02 | AJ73: 16374845.19
B74: 18 | D74: 12612712.01 | E74: 7027850.8 | G74: 16158125.48 | H74: 9003368.589 | J74: 16158125.48 | K74: 9003368.589 | M74: 41968722.69 | N74: 23385130.9 | O74: 34058.88 | P74: 93094.272 | Q74: 1149024.683 | R74: 1149024.683 | S74: 1149024.683 | T74: 659218.6327 | U74: 692113.3763 | V74: 640240.8961 | Y74: 10387958.4 | Z74: 28393752.96 | AA74: 178098825.9 | AB74: 178098825.9 | AC74: 188.4867843 | AD74: 206.4925788 | AE74: 178.0988259 | AF74: 105.0255486 | AG74: 115.0584454 | AH74: 99.23733889 | AI74: 5788209.681 | AJ74: 15821106.46
B75: 19 | D75: 12612712.01 | E75: 6790194.01 | G75: 16158125.48 | H75: 8698906.849 | J75: 16158125.48 | K75: 8698906.849 | M75: 41968722.69 | N75: 22594329.37 | O75: 34058.88 | P75: 93094.272 | Q75: 1149024.683 | R75: 1149024.683 | S75: 1149024.683 | T75: 636926.2152 | U75: 668708.5761 | V75: 618590.2377 | Y75: 10387958.4 | Z75: 28393752.96 | AA75: 178098825.9 | AB75: 178098825.9 | AC75: 188.4867843 | AD75: 206.4925788 | AE75: 178.0988259 | AF75: 101.47396 | AG75: 111.16758 | AH75: 95.88148685 | AI75: 5592473.122 | AJ75: 15286093.2
B76: 20 | D76: 12612712.01 | E76: 6560573.923 | G76: 16158125.48 | H76: 8404740.917 | J76: 16158125.48 | K76: 8404740.917 | M76: 41968722.69 | N76: 21830269.93 | O76: 34058.88 | P76: 93094.272 | Q76: 1149024.683 | R76: 1149024.683 | S76: 1149024.683 | T76: 615387.6475 | U76: 646095.2426 | V76: 597671.7273 | Y76: 10387958.4 | Z76: 28393752.96 | AA76: 178098825.9 | AB76: 178098825.9 | AC76: 188.4867843 | AD76: 206.4925788 | AE76: 178.0988259 | AF76: 98.0424734 | AG76: 107.4082899 | AH76: 92.63911773 | AI76: 5403355.673 | AJ76: 14769172.17
B77: 21 | D77: 12612712.01 | E77: 6338718.766 | G77: 16158125.48 | H77: 8120522.625 | J77: 16158125.48 | K77: 8120522.625 | M77: 41968722.69 | N77: 21092048.24 | O77: 34058.88 | P77: 93094.272 | Q77: 1149024.683 | R77: 1149024.683 | S77: 1149024.683 | T77: 594577.4372 | U77: 624246.6112 | V77: 577460.6061 | Y77: 10387958.4 | Z77: 28393752.96 | AA77: 178098825.9 | AB77: 178098825.9 | AC77: 188.4867843 | AD77: 206.4925788 | AE77: 178.0988259 | AF77: 94.72702744 | AG77: 103.7761255 | AH77: 89.50639394 | AI77: 5220633.501 | AJ77: 14269731.57
B78: 22 | D78: 12612712.01 | E78: 6124365.957 | G78: 16158125.48 | H78: 7845915.58 | J78: 16158125.48 | K78: 7845915.58 | M78: 41968722.69 | N78: 20378790.57 | O78: 34058.88 | P78: 93094.272 | Q78: 1149024.683 | R78: 1149024.683 | S78: 1149024.683 | T78: 574470.9538 | U78: 603136.8224 | V78: 557932.9527 | Y78: 10387958.4 | Z78: 28393752.96 | AA78: 178098825.9 | AB78: 178098825.9 | AC78: 188.4867843 | AD78: 206.4925788 | AE78: 178.0988259 | AF78: 91.52369801 | AG78: 100.2667879 | AH78: 86.47960767 | AI78: 5044090.339 | AJ78: 13787180.26
B79: 23 | D79: 12612712.01 | E79: 5917261.795 | G79: 16158125.48 | H79: 7580594.763 | J79: 16158125.48 | K79: 7580594.763 | M79: 41968722.69 | N79: 19689652.72 | O79: 34058.88 | P79: 93094.272 | Q79: 1149024.683 | R79: 1149024.683 | S79: 1149024.683 | T79: 555044.3998 | U79: 582740.8912 | V79: 539065.6548 | Y79: 10387958.4 | Z79: 28393752.96 | AA79: 178098825.9 | AB79: 178098825.9 | AC79: 188.4867843 | AD79: 206.4925788 | AE79: 178.0988259 | AF79: 88.42869373 | AG79: 96.87612361 | AH79: 83.55517649 | AI79: 4873517.236 | AJ79: 13320947.11
B80: 24 | C80: =C59+0.1*C57 -> 34291510.88 | D80: 12612712.01 | E80: 21261010.39 | F80: =(G47*WT_DX_PL+G46*WT_DX_Tethys)*WT_Rated_MW -> 18249410.88 | G80: 16158125.48 | H80: 15596441.92 | I80: =(J47*WT_DX_Tethys+J46*WT_DX_PL)*WT_Rated_MW -> 18249410.88 | J80: 16158125.48 | K80: 15596441.92 | L80: =WT_DX_STD*WT_Rated_MW*'TETHYS vs Mothership(50-200WTs)'!M47 -> 36498821.76 | M80: 41968722.69 | N80: 35568210.6 | O80: 34058.88 | P80: 93094.272 | Q80: 1149024.683 | R80: 1149024.683 | S80: 1149024.683 | T80: 536274.7825 | U80: 563034.6775 | V80: 520836.3815 | Y80: 10387958.4 | Z80: 28393752.96 | AA80: 178098825.9 | AB80: 178098825.9 | AC80: 188.4867843 | AD80: 206.4925788 | AE80: 178.0988259 | AF80: 85.43835143 | AG80: 93.60011943 | AH80: 80.72963913 | AI80: 4708712.305 | AJ80: 12870480.3
B81: Total Discounted Costs for PSP | E81: =SUM(E57:E80) -> 521606436.8 | G81: Total Discounted Costs for WTs | H81: =SUM(H57:H80) -> 993837357.4 | J81: Total Discounted Costs for WTs | K81: =SUM(K57:K80) -> 993837357.4 | L81: Total Discounted Costs for WTs | M81: =SUM(M61:M80) -> 839374453.9 | N81: =SUM(N57:N80) -> 1369696403 | O81: =SUM(O60:O80) -> 681177.6 | P81: 1861885.44 | Q81: 22980493.66 | R81: 22980493.66 | S81: 22980493.66 | T81: 15165680.21 | U81: 15922441.53 | V81: =SUM(V61:V80) -> 14729087.14 | W81: Energy Equivalence Check | AE81: NPV | AF81: =SUM(AF61:AF80) -> 2416.169393 | AG81: =SUM(AG61:AG80) -> 2646.981595 | AH81: =SUM(AH61:AH80) -> 2283.008507 | AI81: =SUM(AI61:AI80) -> 133160885.7 | AJ81: =SUM(AJ61:AJ80) -> 363973087.7
T82: =T81/U81 -> 0.9524720303 | U82: =U81/U81 -> 1 | V82: =V81/U81 -> 0.9250520479 | W82: =IF(_xlfn.STDEV.P(T82:V82)<0.01,"OK","Check") -> Check | AE82: Profit | AF82: =AF81-(E81+H81)/1000000 -> 900.7255989 | AG82: =AG81-(E81+K81)/1000000 -> 1131.537801 | AH82: =AH81-N81/1000000 -> 913.3121046
AE83: Proft % | AF83: =AF82/AF81 -> 0.3727907495 | AG83: =AG82/AG81 -> 0.4274823078 | AH83: =AH82/AH81 -> 0.4000476133
B84: LCOE | H84: 0.15 | K84: 0.41 | N84: Mothership | S84: 0.15 | T84: 0.41 | U84: Mothership | X84: Low | Y84: High | Z84: Mothership
B85: Low | C85: High | D85: MOTHERSHIP | G85: Platform CAPEX | H85: =E57+E59 -> 342915108.8 | I85: =H85/$H$91 -> 0.2209288176 | J85: =I85*$B$86 -> 22.07650437 | K85: =H85 -> 342915108.8 | L85: =K85/$K$91 -> 0.2209288176 | M85: =L85*$C$86 -> 21.02725294 | N85: 0 | R85: =G86 -> Wind Turbine CAPEX | S85: =J86 -> 50.1149856 | T85: =M86 -> 47.73312209 | U85: =P86 -> 55.34385488 | W85: Total OPEX | X85: =(H87+H88)/(Project_Lifespan*1000000) -> 20.34915238 | Y85: =X85 -> 20.34915238 | Z85: =N88/(Project_Lifespan*1000000) -> 26.89937749
B86: =(E81+H81)/T81 -> 99.92587032 | C86: =(K81+E81)/U81 -> 95.17659659 | D86: =N81/V81 -> 92.99261994 | E86: per MWH | G86: Wind Turbine CAPEX | H86: =H57+H60 -> 778437811.1 | I86: 0.5015216324 | J86: 50.1149856 | K86: =K57+K60 -> 778437811.1 | L86: =K86/$H$91 -> 0.5015216324 | M86: 47.73312209 | N86: =N57+N60 -> 815164461.5 | O86: =N86/$N$91 -> 0.5951424416 | P86: =O86*$D$86 -> 55.34385488 | R86: =G85 -> Platform CAPEX | S86: =J85 -> 22.07650437 | T86: =M85 -> 21.02725294 | U86: =P85 -> 0 | W86: WEC Sales | X86: =AI81/(Project_Lifespan*1000000) -> 6.658044287 | Y86: =AJ81/(Project_Lifespan*1000000) -> 18.19865438 | Z86: 0
A87: Wind:Wave | B87: =O61/(O61+Q61) -> 0.02878822854 | C87: =P61/(P61+R61) -> 0.07494795214 | G87: Platform OPEX | H87: =SUM(H61:H80)-H89 -> 199855697.1 | I87: 0.1287603891 | J87: 12.86649395 | K87: =H87 -> 199855697.1 | L87: =K87/$H$91 -> 0.1287603891 | M87: 12.25497561 | N87: 0 | R87: =G87 -> Platform OPEX | S87: =J87 -> 12.86649395 | T87: =M87 -> 12.25497561 | U87: =P87 -> 0 | W87: Total Sales | X87: =AF81/Project_Lifespan -> 120.8084697 | Y87: =AG81/Project_Lifespan -> 132.3490798 | Z87: =AH81/Project_Lifespan -> 114.1504254
G88: Wind Turbine OPEX | H88: =SUM(H61:H80)-H90 -> 207127350.6 | I88: 0.133445274 | J88: 13.33463514 | K88: =SUM(K61:K80)-K90 -> 207127350.6 | L88: =K88/$H$91 -> 0.133445274 | M88: 12.70086701 | N88: =SUM(N61:N80)-N90 -> 537987549.8 | O88: =N88/$N$91 -> 0.3927786834 | P88: =O88*$D$86 -> 36.52551883 | R88: =G88 -> Wind Turbine OPEX | S88: =J88 -> 13.33463514 | T88: =M88 -> 12.70086701 | U88: =P88 -> 36.52551883 | X88: =X86/X87 -> 0.05511239655 | Y88: =Y86/Y87 -> 0.137504956
G89: Platform DECEX | H89: =C80/((1+Discount_Rate)^(B80-1)) -> 15543849.24 | I89: 0.0100143859 | J89: 1.000696227 | K89: =H89 -> 15543849.24 | L89: =K89/$H$91 -> 0.0100143859 | M89: 0.9531351673 | R89: =G89 -> Platform DECEX | S89: =J89 -> 1.000696227 | T89: =M89 -> 0.9531351673 | U89: =P89 -> 0
G90: Wind Turbine DECEX | H90: =F80/((1+Discount_Rate)^(B80-1)) -> 8272195.773 | I90: 0.005329501045 | J90: 0.5325550303 | K90: =I80/((1+Discount_Rate)^(B80-1)) -> 8272195.773 | L90: =K90/$H$91 -> 0.005329501045 | M90: 0.507243771 | N90: =L80/((1+Discount_Rate)^(B80-1)) -> 16544391.55 | O90: =N90/$N$91 -> 0.01207887493 | P90: =O90*$D$86 -> 1.123246226 | R90: =G90 -> Wind Turbine DECEX | S90: =J90 -> 0.5325550303 | T90: =M90 -> 0.507243771 | U90: =P90 -> 1.123246226
H91: =SUM(H85:H90) -> 1552152013 | I91: 1 | J91: 99.92587032 | K91: 1552152013 | L91: 1 | M91: 95.17659659 | N91: 1369696403 | O91: =SUM(O85:O90) -> 1 | P91: =SUM(P85:P90) -> 92.99261994 | R91: =G91 -> 0
G95: LOW CASE PROJECT VARIABLES | J95: HI CASE PROJECT VARIABLES | M95: Mothership PROJECT VARIABLES
F96: Number of Platform Turbines | G96: 2 | I96: Number of Platform Turbines | J96: 2
F97: Number of Floating Turbines | G97: 98 | I97: Number of Floating Turbines | J97: 98 | L97: Number of Floating Turbines | M97: 100
F98: Water Depth | G98: =Depth -> 100 | I98: Water Depth | J98: =Depth -> 100 | L98: Water Depth | M98: =Depth -> 100
F99: Inter Array Cable Length Required | G99: =G97*1.9 -> 186.2 | H99: KM | I99: Inter Array Cable Length Required | J99: =J97*1.9 -> 186.2 | K99: KM | L99: Inter Array Cable Length Required | M99: =M97*1.9 -> 190 | N99: KM
F100: Inter-Array Cable Cost | G100: =G99*Inter_Array_Cable_Cost -> 52322200 | H100: (total for wind turbine array) | I100: Inter-Array Cable Cost | J100: =J99*Inter_Array_Cable_Cost -> 52322200 | K100: (total for wind turbine array) | L100: Inter-Array Cable Cost | M100: =M99*Inter_Array_Cable_Cost -> 53390000 | N100: (total for wind turbine array)
F101: Inter-Array Cable Installation | G101: =G99*Int_Array_Installation -> 35378000 | H101: (total for wind turbine array) | I101: Inter-Array Cable Installation | J101: =J99*Int_Array_Installation -> 35378000 | K101: (total for wind turbine array) | L101: Inter-Array Cable Installation | M101: =M99*Int_Array_Installation -> 36100000 | N101: (total for wind turbine array)
F102: Total Rated Power WTs & Tethys) | G102: =(G97+G96)*WT_Rated_MW+WEC_Rated -> 628.8 | H102: MW | I102: Total Rated Power WTs & Tethys | J102: =(J97+J96)*WT_Rated_MW+WEC_Rated -> 628.8 | K102: MW
F103: Substation & Export Cable Cost | G103: =Export_Cable_Length*HV_DC_Export_Cable*G102+G102*Substation_perMW -> 263404320 | H103: Platform + WTs + Distance | I103: Substation & Export Cable Cost | J103: =Export_Cable_Length*HV_DC_Export_Cable*G102+G102*Substation_perMW -> 263404320 | K103: Platform + WTs + Distance | L103: Substation & Export Cable Cost | N103: Included in CAPEX | AA103: Sales | AF103: DISCOUNTED
C104: Cost for system PSP | F104: Cost for WTs Low Case | I104: Cost for WTs High Case | L104: Cost for WTs Mothership Version | O104: Wave Energy (MWH) | Q104: Wind Energy (MWH) | T104: Total Energy NPV (MWH) | Y104: Wave Energy (MWH) | AA104: Wind Energy (MWH) | AC104: Total Sales (£m) | AF104: Total Sales NPV (£m)
B105: Year | C105: One Off | D105: Recurrent | E105: NPV | F105: One Off | G105: Recurrent | H105: NPV | I105: One Off | J105: Recurrent | K105: NPV1 | L105: One Off | M105: Recurrent | N105: NPV1 | O105: Low | P105: High | Q105: Low | R105: High | S105: Mothership | T105: Low | U105: High | V105: Mothership | Y105: Low | Z105: High | AA105: Low | AB105: High | AC105: Low | AD105: High | AE105: Mothership | AF105: Low | AG105: High | AH105: Mothership
B107: 1 | C107: ='PSP Cost-1'!$E$74 -> 342915108.8 | D107: 0 | E107: =C107+D107 -> 342915108.8 | F107: =G96*WT_CX_PLAT+G97*WT_CX_TETHYS+G100+G103 -> 1389020537 | G107: 0 | H107: =F107+G107 -> 1389020537 | I107: =J96*WT_CX_PLAT+J97*WT_CX_TETHYS+J100+J103 -> 1389020537 | J107: 0 | K107: =(J107+I107)/((1+Discount_Rate)^($B107-1)) -> 1389020537 | L107: =M97*WT_CX_STD+M100 -> 1432038727 | M107: 0 | N107: =L107+M107 -> 1432038727
B108: 2 | D108: 0 | E108: =(D108+C108)/((1+Discount_Rate)^(B108-1)) -> 0 | G108: 0 | H108: =(G108+F108)/((1+Discount_Rate)^(E108-1)) -> 0 | J108: 0 | K108: =(J108+I108)/((1+Discount_Rate)^($B108-1)) -> 0 | M108: 0 | N108: =(M108+L108)/((1+Discount_Rate)^($B108-1)) -> 0
B109: 3 | D109: 0 | G109: 0 | H109: =(G109+F109)/((1+Discount_Rate)^(B109-1)) -> 0 | J109: 0 | K109: =(J109+I109)/((1+Discount_Rate)^($B109-1)) -> 0 | M109: 0 | N109: 0
B110: 4 | C110: ='PSP Installation'!$K$9 -> 1627576.065 | D110: 0 | E110: =(D110+C110)/((1+Discount_Rate)^(B110-1)) -> 1467980.36 | F110: =G101+G97*WT_INST_TETHYS+G96*WT_INST_PL -> 181698340.2 | G110: 0 | H110: =(G110+F110)/((1+Discount_Rate)^(B110-1)) -> 163881492.5 | I110: =J101+J97*WT_INST_TETHYS+J96*WT_INST_PL -> 181698340.2 | J110: 0 | K110: =(J110+I110)/((1+Discount_Rate)^($B110-1)) -> 163881492.5 | L110: =M101+M97*WT_INST_STD -> 219847885.1 | M110: 0 | N110: 198290196.3 | O110: 0 | P110: 0 | Q110: 0 | R110: 0 | T110: =Q110+O110 -> 0 | U110: =R110+P110 -> 0
B111: 5 | D111: =PSP_OPEX -> 12612712.01 | E111: =(D111+C111)/((1+Discount_Rate)^(B111-1)) -> 10991249.85 | G111: =WT_OPEX_TETHYS*$G$97+WT_OPEX_PLAT*$G$96+$G$96*10810+548974+0.01*$G$103 -> 31625013.77 | H111: 27559372.45 | J111: =WT_OPEX_TETHYS*$J$97+WT_OPEX_PLAT*$J$96+$J$96*10810+548974+0.01*$J$103 -> 31625013.77 | K111: =(J111+I111)/((1+Discount_Rate)^($B111-1)) -> 27559372.45 | M111: =WT_OPEX_STD*$M$97+Mshpp_no_CTV+$M$97*10810+548974 -> 64940503.98 | N111: 56591897.46 | O111: =WEC_Yield_LO -> 34058.88 | P111: =WEC_Yield_Hi -> 93094.272 | Q111: =($G$96+$G$97)*WT_ANN_ENRGY_ADJ -> 2298049.366 | R111: =($J$96+$J$97)*WT_ANN_ENRGY_ADJ -> 2298049.366 | S111: =$M$97*WT_ANN_ENRGY_ADJ -> 2298049.366 | T111: =(Q111+O111)/((1+Discount_Rate)^($B17-1)) -> 2032297.605 | U111: =(R111+P111)/((1+Discount_Rate)^($B17-1)) -> 2083743.539 | V111: =S111/((1+Discount_Rate)^($B111-1)) -> 2002617.259 | Y111: =O111*Strike_Price_WEC -> 10387958.4 | Z111: =P111*Strike_Price_WEC -> 28393752.96 | AA111: =Q111*Strike_Price_WTs -> 356197651.7 | AB111: =R111*Strike_Price_WTs -> 356197651.7 | AC111: =(Y111+AA111)/1000000 -> 366.5856101 | AD111: =(Z111+AB111)/1000000 -> 384.5914047 | AE111: =S111*Strike_Price_WTs/1000000 -> 356.1976517 | AF111: =AC111/((1+Discount_Rate)^($B111-1)) -> 319.4581807 | AG111: =AD111/((1+Discount_Rate)^($B111-1)) -> 335.1491905 | AH111: =AE111/((1+Discount_Rate)^($B111-1)) -> 310.4056751
B112: 6 | D112: 12612712.01 | E112: 10619565.07 | G112: 31625013.77 | H112: 26627413 | J112: 31625013.77 | K112: 26627413 | M112: 64940503.98 | N112: 54678161.79 | O112: 34058.88 | P112: 93094.272 | Q112: 2298049.366 | R112: 2298049.366 | S112: =$M$97*WT_ANN_ENRGY_ADJ -> 2298049.366 | T112: 1963572.565 | U112: 2013278.781 | V112: 1934895.902 | Y112: 10387958.4 | Z112: 28393752.96 | AA112: 356197651.7 | AB112: 356197651.7 | AC112: =(Y112+AA112)/1000000 -> 366.5856101 | AD112: =(Z112+AB112)/1000000 -> 384.5914047 | AE112: 356.1976517 | AF112: 308.6552471 | AG112: 323.815643 | AH112: 299.9088649
B113: 7 | D113: 12612712.01 | E113: 10260449.35 | G113: 31625013.77 | H113: 25726969.08 | J113: 31625013.77 | K113: 25726969.08 | M113: 64940503.98 | N113: 52829141.83 | O113: 34058.88 | P113: 93094.272 | Q113: 2298049.366 | R113: 2298049.366 | S113: 2298049.366 | T113: 1897171.561 | U113: 1945196.89 | V113: 1869464.64 | Y113: 10387958.4 | Z113: 28393752.96 | AA113: 356197651.7 | AB113: 356197651.7 | AC113: 366.5856101 | AD113: 384.5914047 | AE113: 356.1976517 | AF113: 298.21763 | AG113: 312.8653555 | AH113: 289.7670192
B114: 8 | D114: 12612712.01 | E114: 9913477.629 | G114: 31625013.77 | H114: 24856974.95 | J114: 31625013.77 | K114: 24856974.95 | M114: 64940503.98 | N114: 51042649.11 | O114: 34058.88 | P114: 93094.272 | Q114: 2298049.366 | R114: 2298049.366 | S114: 2298049.366 | T114: 1833016.001 | U114: 1879417.285 | V114: 1806246.029 | Y114: 10387958.4 | Z114: 28393752.96 | AA114: 356197651.7 | AB114: 356197651.7 | AC114: 366.5856101 | AD114: 384.5914047 | AE114: 356.1976517 | AF114: 288.1329759 | AG114: 302.2853677 | AH114: 279.9681345
B115: 9 | D115: 12612712.01 | E115: 9578239.255 | G115: 31625013.77 | H115: 24016400.92 | J115: 31625013.77 | K115: 24016400.92 | M115: 64940503.98 | N115: 49316569.19 | O115: 34058.88 | P115: 93094.272 | Q115: 2298049.366 | R115: 2298049.366 | S115: 2298049.366 | T115: 1771029.952 | U115: 1815862.111 | V115: 1745165.245 | Y115: 10387958.4 | Z115: 28393752.96 | AA115: 356197651.7 | AB115: 356197651.7 | AC115: 366.5856101 | AD115: 384.5914047 | AE115: 356.1976517 | AF115: 278.3893487 | AG115: 292.0631572 | AH115: 270.500613
B116: 10 | D116: 12612712.01 | E116: 9254337.444 | G116: 31625013.77 | H116: 23204252.1 | J116: 31625013.77 | K116: 23204252.1 | M116: 64940503.98 | N116: 47648859.12 | O116: 34058.88 | P116: 93094.272 | Q116: 2298049.366 | R116: 2298049.366 | S116: 2298049.366 | T116: 1711140.051 | U116: 1754456.146 | V116: 1686149.996 | Y116: 10387958.4 | Z116: 28393752.96 | AA116: 356197651.7 | AB116: 356197651.7 | AC116: 366.5856101 | AD116: 384.5914047 | AE116: 356.1976517 | AF116: 268.9752161 | AG116: 282.1866253 | AH116: 261.3532493
B117: 11 | D117: 12612712.01 | E117: 8941388.835 | G117: 31625013.77 | H117: 22419567.24 | J117: 31625013.77 | K117: 22419567.24 | M117: 64940503.98 | N117: 46037545.04 | O117: 34058.88 | P117: 93094.272 | Q117: 2298049.366 | R117: 2298049.366 | S117: 2298049.366 | T117: 1653275.411 | U117: 1695126.711 | V117: 1629130.43 | Y117: 10387958.4 | Z117: 28393752.96 | AA117: 356197651.7 | AB117: 356197651.7 | AC117: 366.5856101 | AD117: 384.5914047 | AE117: 356.1976517 | AF117: 259.8794359 | AG117: 272.6440824 | AH117: 252.5152167
B118: 12 | D118: 12612712.01 | E118: 8639023.029 | G118: 31625013.77 | H118: 21661417.63 | J118: 31625013.77 | K118: 21661417.63 | L118: 0 | M118: 64940503.98 | N118: 44480719.85 | O118: 34058.88 | P118: 93094.272 | Q118: 2298049.366 | R118: 2298049.366 | S118: 2298049.366 | T118: 1597367.547 | U118: 1637803.586 | V118: 1574039.063 | Y118: 10387958.4 | Z118: 28393752.96 | AA118: 356197651.7 | AB118: 356197651.7 | AC118: 366.5856101 | AD118: 384.5914047 | AE118: 356.1976517 | AF118: 251.0912424 | AG118: 263.4242342 | AH118: 243.9760548
B119: 13 | D119: 12612712.01 | E119: 8346882.154 | G119: 31625013.77 | H119: 20928905.92 | J119: 31625013.77 | K119: 20928905.92 | M119: 64940503.98 | N119: 42976540.92 | O119: 34058.88 | P119: 93094.272 | Q119: 2298049.366 | R119: 2298049.366 | S119: 2298049.366 | T119: 1543350.287 | U119: 1582418.923 | V119: 1520810.689 | Y119: 10387958.4 | Z119: 28393752.96 | AA119: 356197651.7 | AB119: 356197651.7 | AC119: 366.5856101 | AD119: 384.5914047 | AE119: 356.1976517 | AF119: 242.6002342 | AG119: 254.5161683 | AH119: 235.7256568
B120: 14 | D120: 12612712.01 | E120: 8064620.438 | G120: 31625013.77 | H120: 20221165.14 | J120: 31625013.77 | K120: 20221165.14 | M120: 64940503.98 | N120: 41523227.94 | O120: 34058.88 | P120: 93094.272 | Q120: 2298049.366 | R120: 2298049.366 | S120: 2298049.366 | T120: 1491159.698 | U120: 1528907.172 | V120: 1469382.308 | Y120: 10387958.4 | Z120: 28393752.96 | AA120: 356197651.7 | AB120: 356197651.7 | AC120: 366.5856101 | AD120: 384.5914047 | AE120: 356.1976517 | AF120: 234.3963615 | AG120: 245.9093414 | AH120: 227.7542578
B121: 15 | D121: 12612712.01 | E121: 7791903.805 | G121: 31625013.77 | H121: 19537357.62 | J121: 31625013.77 | K121: 19537357.62 | M121: 64940503.98 | N121: 40119060.81 | O121: 34058.88 | P121: 93094.272 | Q121: 2298049.366 | R121: 2298049.366 | S121: 2298049.366 | T121: 1440734.007 | U121: 1477204.998 | V121: 1419693.052 | Y121: 10387958.4 | Z121: 28393752.96 | AA121: 356197651.7 | AB121: 356197651.7 | AC121: 366.5856101 | AD121: 384.5914047 | AE121: 356.1976517 | AF121: 226.4699145 | AG121: 237.5935665 | AH121: 220.052423
B122: 16 | D122: 12612712.01 | E122: 7528409.474 | G122: 31625013.77 | H122: 18876674.03 | J122: 31625013.77 | K122: 18876674.03 | M122: 64940503.98 | N122: 38762377.59 | O122: 34058.88 | P122: 93094.272 | Q122: 2298049.366 | R122: 2298049.366 | S122: 2298049.366 | T122: 1392013.534 | U122: 1427251.205 | V122: 1371684.108 | Y122: 10387958.4 | Z122: 28393752.96 | AA122: 356197651.7 | AB122: 356197651.7 | AC122: 366.5856101 | AD122: 384.5914047 | AE122: 356.1976517 | AF122: 218.8115116 | AG122: 229.5590015 | AH122: 212.6110367
B123: 17 | D123: 12612712.01 | E123: 7273825.578 | G123: 31625013.77 | H123: 18238332.4 | J123: 31625013.77 | K123: 18238332.4 | M123: 64940503.98 | N123: 37451572.56 | O123: 34058.88 | P123: 93094.272 | Q123: 2298049.366 | R123: 2298049.366 | S123: 2298049.366 | T123: 1344940.612 | U123: 1378986.672 | V123: 1325298.655 | Y123: 10387958.4 | Z123: 28393752.96 | AA123: 356197651.7 | AB123: 356197651.7 | AC123: 366.5856101 | AD123: 384.5914047 | AE123: 356.1976517 | AF123: 211.4120885 | AG123: 221.7961367 | AH123: 205.4212915
B124: 18 | D124: 12612712.01 | E124: 7027850.8 | G124: 31625013.77 | H124: 17621577.2 | J124: 31625013.77 | K124: 17621577.2 | M124: 64940503.98 | N124: 36185094.26 | O124: 34058.88 | P124: 93094.272 | Q124: 2298049.366 | R124: 2298049.366 | S124: 2298049.366 | T124: 1299459.529 | U124: 1332354.272 | V124: 1280481.792 | Y124: 10387958.4 | Z124: 28393752.96 | AA124: 356197651.7 | AB124: 356197651.7 | AC124: 366.5856101 | AD124: 384.5914047 | AE124: 356.1976517 | AF124: 204.2628875 | AG124: 214.2957842 | AH124: 198.4746778
B125: 19 | D125: 12612712.01 | E125: 6790194.01 | G125: 31625013.77 | H125: 17025678.45 | J125: 31625013.77 | K125: 17025678.45 | M125: 64940503.98 | N125: 34961443.73 | O125: 34058.88 | P125: 93094.272 | Q125: 2298049.366 | R125: 2298049.366 | S125: 2298049.366 | T125: 1255516.453 | U125: 1287298.814 | V125: 1237180.475 | Y125: 10387958.4 | Z125: 28393752.96 | AA125: 356197651.7 | AB125: 356197651.7 | AC125: 366.5856101 | AD125: 384.5914047 | AE125: 356.1976517 | AF125: 197.3554468 | AG125: 207.0490669 | AH125: 191.7629737
B126: 20 | D126: 12612712.01 | E126: 6560573.923 | G126: 31625013.77 | H126: 16449930.87 | J126: 31625013.77 | K126: 16449930.87 | M126: 64940503.98 | N126: 33779172.68 | O126: 34058.88 | P126: 93094.272 | Q126: 2298049.366 | R126: 2298049.366 | S126: 2298049.366 | T126: 1213059.375 | U126: 1243766.97 | V126: 1195343.455 | Y126: 10387958.4 | Z126: 28393752.96 | AA126: 356197651.7 | AB126: 356197651.7 | AC126: 366.5856101 | AD126: 384.5914047 | AE126: 356.1976517 | AF126: 190.6815911 | AG126: 200.0474076 | AH126: 185.2782355
B127: 21 | D127: 12612712.01 | E127: 6338718.766 | G127: 31625013.77 | H127: 15893653.02 | J127: 31625013.77 | K127: 15893653.02 | M127: 64940503.98 | N127: 32636881.82 | O127: 34058.88 | P127: 93094.272 | Q127: 2298049.366 | R127: 2298049.366 | S127: 2298049.366 | T127: 1172038.043 | U127: 1201707.217 | V127: 1154921.212 | Y127: 10387958.4 | Z127: 28393752.96 | AA127: 356197651.7 | AB127: 356197651.7 | AC127: 366.5856101 | AD127: 384.5914047 | AE127: 356.1976517 | AF127: 184.2334214 | AG127: 193.2825194 | AH127: 179.0127879
B128: 22 | D128: 12612712.01 | E128: 6124365.957 | G128: 31625013.77 | H128: 15356186.49 | J128: 31625013.77 | K128: 15356186.49 | M128: 64940503.98 | N128: 31533219.15 | O128: 34058.88 | P128: 93094.272 | Q128: 2298049.366 | R128: 2298049.366 | S128: 2298049.366 | T128: 1132403.907 | U128: 1161069.775 | V128: 1115865.905 | Y128: 10387958.4 | Z128: 28393752.96 | AA128: 356197651.7 | AB128: 356197651.7 | AC128: 366.5856101 | AD128: 384.5914047 | AE128: 356.1976517 | AF128: 178.0033057 | AG128: 186.7463956 | AH128: 172.9592153
B129: 23 | D129: 12612712.01 | E129: 5917261.795 | G129: 31625013.77 | H129: 14836895.16 | J129: 31625013.77 | K129: 14836895.16 | M129: 64940503.98 | N129: 30466878.4 | O129: 34058.88 | P129: 93094.272 | Q129: 2298049.366 | R129: 2298049.366 | S129: 2298049.366 | T129: 1094110.055 | U129: 1121806.546 | V129: 1078131.31 | Y129: 10387958.4 | Z129: 28393752.96 | AA129: 356197651.7 | AB129: 356197651.7 | AC129: 366.5856101 | AD129: 384.5914047 | AE129: 356.1976517 | AF129: 171.9838702 | AG129: 180.4313001 | AH129: 167.110353
B130: 24 | C130: =C109+0.1*C107 -> 34291510.88 | D130: 12612712.01 | E130: 21261010.39 | F130: =(G97*WT_DX_Tethys+G96*WT_DX_PL)*WT_Rated_MW -> 36498821.76 | G130: 31625013.77 | H130: 30879555.95 | I130: =(J97*WT_DX_Tethys+J96*WT_DX_PL)*WT_Rated_MW -> 36498821.76 | J130: 31625013.77 | K130: 30879555.95 | L130: =WT_DX_STD*WT_Rated_MW*'TETHYS vs Mothership(50-200WTs)'!M97 -> 72997643.52 | M130: 64940503.98 | N130: 62525380.58 | O130: 34058.88 | P130: 93094.272 | Q130: 2298049.366 | R130: 2298049.366 | S130: 2298049.366 | T130: 1057111.164 | U130: 1083871.059 | V130: 1041672.763 | Y130: 10387958.4 | Z130: 28393752.96 | AA130: 356197651.7 | AB130: 356197651.7 | AC130: 366.5856101 | AD130: 384.5914047 | AE130: 356.1976517 | AF130: 166.1679906 | AG130: 174.3297586 | AH130: 161.4592783
B131: Total Discounted Costs for PSP | E131: =SUM(E107:E130) -> 521606436.8 | G131: Total Discounted Costs for WTs | H131: =SUM(H107:H130) -> 1974840309 | J131: Total Discounted Costs for WTs | K131: =SUM(K107:K130) -> 1974840309 | M131: Total Discounted Costs for WTs | N131: =SUM(N107:N130) -> 2495875317 | O131: =SUM(O110:O130) -> 681177.6 | P131: 1861885.44 | Q131: 45960987.32 | R131: 45960987.32 | S131: 45960987.32 | T131: 29894767.36 | U131: 30651528.67 | V131: =SUM(V111:V130) -> 29458174.29 | W131: Energy Equivalence Check | AE131: NPV | AF131: =SUM(AF111:AF130) -> 4699.1779 | AG131: =SUM(AG111:AG130) -> 4929.990102 | AH131: =SUM(AH111:AH130) -> 4566.017015
T132: =T131/U131 -> 0.9753108132 | U132: =U131/U131 -> 1 | V132: =V131/U131 -> 0.9610670515 | W132: =IF(_xlfn.STDEV.P(T132:V132)<0.01,"OK","Check") -> Check | AE132: Profit | AF132: =AF131-(E131+H131)/1000000 -> 2202.731154 | AG132: =AG131-(E131+K131)/1000000 -> 2433.543356 | AH132: =AH131-N131/1000000 -> 2070.141698
AE133: Proft % | AF133: =AF132/AF131 -> 0.468748194 | AG133: =AG132/AG131 -> 0.493620333 | AH133: =AH132/AH131 -> 0.4533801979
B134: LCOE | H134: 0.15 | K134: 0.41 | N134: Mothership
B135: Low | C135: High | D135: MOTHERSHIP | G135: Platform CAPEX | H135: =E107+E109 -> 342915108.8 | I135: =H135/$H$141 -> 0.1251654917 | J135: =I135*$B$136 -> 10.45229691 | K135: =E107 -> 342915108.8 | N135: 0
B136: =(E131+H131)/T131 -> 83.50781648 | C136: =(K131+E131)/U131 -> 81.4460764 | D136: =N131/V131 -> 84.72606932 | E136: per MWH | G136: Wind Turbine CAPEX | H136: =H107+H110 -> 1552902030 | I136: 0.5668159295 | J136: 47.33356062 | K136: =K107+K110 -> 1552902030
A137: Wind:Wave | B137: =O111/(O111+Q111) -> 0.01460433068 | C137: =P111/(P111+R111) -> 0.03893294845 | D137: =D136/Exch_Rate_Euro -> 109.474258 | G137: Platform OPEX | H137: =SUM(H111:H130)-H139 -> 406394430.4 | I137: 0.1483357175 | J137: 12.38719187 | K137: =H137 -> 406394430.4
G138: Wind Turbine OPEX | H138: =SUM(H111:H130)-H140 -> 405393888.1 | I138: 0.1479705152 | J138: 12.35669463
G139: Platform DECEX | H139: =C130/((1+Discount_Rate)^(B130-1)) -> 15543849.24 | I139: 0.005673571921 | J139: 0.4737876028 | K139: =H139 -> 15543849.24
G140: Wind Turbine DECEX | H140: 16544391.55 | I140: 0.006038774174 | J140: 0.5042848455
H141: =SUM(H135:H140) -> 2739693698 | I141: =SUM(I135:I140) -> 1
G146: LOW CASE PROJECT VARIABLES | J146: HI CASE PROJECT VARIABLES | M146: Mothership PROJECT VARIABLES
F147: Number of Platform Turbines | G147: 2 | I147: Number of Platform Turbines | J147: 2
F148: Number of Floating Turbines | G148: 148 | I148: Number of Floating Turbines | J148: 148 | L148: Number of Floating Turbines | M148: 150
F149: Water Depth | G149: =Depth -> 100 | I149: Water Depth | J149: =Depth -> 100 | L149: Water Depth | M149: =Depth -> 100
F150: Inter Array Cable Length Required | G150: =G148*1.9 -> 281.2 | H150: KM | I150: Inter Array Cable Length Required | J150: =J148*1.9 -> 281.2 | K150: KM | L150: Inter Array Cable Length Required | M150: =M148*1.9 -> 285 | N150: KM
F151: Inter-Array Cable Cost | G151: =G150*Inter_Array_Cable_Cost -> 79017200 | H151: (total for wind turbine array) | I151: Inter-Array Cable Cost | J151: =J150*Inter_Array_Cable_Cost -> 79017200 | K151: (total for wind turbine array) | L151: Inter-Array Cable Cost | M151: =M150*Inter_Array_Cable_Cost -> 80085000 | N151: (total for wind turbine array)
F152: Inter-Array Cable Installation | G152: =G150*Int_Array_Installation -> 53428000 | H152: (total for wind turbine array) | I152: Inter-Array Cable Installation | J152: =J150*Int_Array_Installation -> 53428000 | K152: (total for wind turbine array) | L152: Inter-Array Cable Installation | M152: =M150*Int_Array_Installation -> 54150000 | N152: (total for wind turbine array)
F153: Total Rated Power WTs & Tethys) | G153: =(G148+G147)*WT_Rated_MW+WEC_Rated -> 928.8 | H153: MW | I153: Total Rated Power WTs & Tethys | J153: =(J148+J147)*WT_Rated_MW+WEC_Rated -> 928.8 | K153: MW
F154: Substation & Export Cable Cost | G154: =Export_Cable_Length*HV_DC_Export_Cable*G153+G153*Substation_perMW -> 389074320 | H154: Platform + WTs + Distance | I154: Substation & Export Cable Cost | J154: =Export_Cable_Length*HV_DC_Export_Cable*J153+G153*Substation_perMW -> 389074320 | K154: Platform + WTs + Distance | L154: Substation & Export Cable Cost | N154: Included in CAPEX | AA154: Sales | AF154: DISCOUNTED
C155: Cost for system PSP | F155: Cost for WTs Low Case | I155: Cost for WTs High Case | L155: Cost for WTs Mothership Version | O155: Wave Energy (MWH) | Q155: Wind Energy (MWH) | T155: Total Energy NPV (MWH) | Y155: Wave Energy (MWH) | AA155: Wind Energy (MWH) | AC155: Total Sales (£m) | AF155: Total Sales NPV (£m)
B156: Year | C156: One Off | D156: Recurrent | E156: NPV | F156: One Off | G156: Recurrent | H156: NPV | I156: One Off | J156: Recurrent | K156: NPV1 | L156: One Off | M156: Recurrent | N156: NPV1 | O156: Low | P156: High | Q156: Low | R156: High | S156: Mothership | T156: Low | U156: High | V156: Mothership | Y156: Low | Z156: High | AA156: Low | AB156: High | AC156: Low | AD156: High | AE156: Mothership | AF156: Low | AG156: High | AH156: Mothership
B158: 1 | C158: ='PSP Cost-1'!$E$74 -> 342915108.8 | D158: 0 | E158: =C158+D158 -> 342915108.8 | F158: =G147*WT_CX_PLAT+G148*WT_CX_TETHYS+G151+G154 -> 2080799581 | G158: 0 | H158: =F158+G158 -> 2080799581 | I158: =J147*WT_CX_PLAT+J148*WT_CX_TETHYS+J151+J154 -> 2080799581 | J158: 0 | K158: =(J158+I158)/((1+Discount_Rate)^($B158-1)) -> 2080799581 | L158: =M148*WT_CX_STD+M151 -> 2148058090 | M158: 0 | N158: =L158+M158 -> 2148058090
B159: 2 | D159: 0 | E159: =(D159+C159)/((1+Discount_Rate)^(B159-1)) -> 0 | G159: 0 | H159: =(G159+F159)/((1+Discount_Rate)^(E159-1)) -> 0 | J159: 0 | K159: =(J159+I159)/((1+Discount_Rate)^($B159-1)) -> 0 | M159: 0 | N159: =(M159+L159)/((1+Discount_Rate)^($B159-1)) -> 0
B160: 3 | C160: ='PSP Installation'!$K$9 -> 1627576.065 | D160: 0 | E160: =(D160+C160)/((1+Discount_Rate)^(B160-1)) -> 1519359.672 | G160: 0 | H160: =(G160+F160)/((1+Discount_Rate)^(B160-1)) -> 0 | J160: 0 | K160: =(J160+I160)/((1+Discount_Rate)^($B160-1)) -> 0 | M160: 0 | N160: 0
B161: 4 | D161: 0 | E161: 0 | F161: =G152+G148*WT_INST_TETHYS+G147*WT_INST_PL -> 273372871.8 | G161: 0 | H161: =(G161+F161)/((1+Discount_Rate)^(B161-1)) -> 246566667.7 | I161: =J152+J148*WT_INST_TETHYS+J147*WT_INST_PL -> 273372871.8 | J161: 0 | K161: =(J161+I161)/((1+Discount_Rate)^($B161-1)) -> 246566667.7 | L161: =M152+M148*WT_INST_STD -> 329771827.7 | M161: 0 | N161: 297435294.5 | O161: 0 | P161: 0 | Q161: 0 | R161: 0 | T161: =Q161+O161 -> 0 | U161: =R161+P161 -> 0
B162: 5 | D162: =PSP_OPEX -> 12612712.01 | E162: =(D162+C162)/((1+Discount_Rate)^(B162-1)) -> 10991249.85 | G162: =WT_OPEX_TETHYS*$G$97+WT_OPEX_PLAT*$G$96+$G$96*10810+548974+0.01*$G$154 -> 32881713.77 | H162: 28654513.9 | J162: =WT_OPEX_TETHYS*$J$97+WT_OPEX_PLAT*$J$96+$J$96*10810+548974+0.01*$J$154 -> 32881713.77 | K162: =(J162+I162)/((1+Discount_Rate)^($B162-1)) -> 28654513.9 | M162: =WT_OPEX_STD*$M$148+Mshpp_no_CTV+$M$148*10810+548974 -> 87912285.27 | N162: =(M162+L162)/((1+Discount_Rate)^($B162-1)) -> 76610477.72 | O162: =WEC_Yield_LO -> 34058.88 | P162: =WEC_Yield_Hi -> 93094.272 | Q162: =($G$147+$G$148)*WT_ANN_ENRGY_ADJ -> 3447074.049 | R162: =($J$147+$J$148)*WT_ANN_ENRGY_ADJ -> 3447074.049 | S162: =$M$148*WT_ANN_ENRGY_ADJ -> 3447074.049 | T162: =(Q162+O162)/((1+Discount_Rate)^($B61-1)) -> 3033606.235 | U162: =(R162+P162)/((1+Discount_Rate)^($B61-1)) -> 3085052.168 | V162: =S162/((1+Discount_Rate)^($B162-1)) -> 3003925.888 | Y162: =O162*Strike_Price_WEC -> 10387958.4 | Z162: =P162*Strike_Price_WEC -> 28393752.96 | AA162: =Q162*Strike_Price_WTs -> 534296477.6 | AB162: =R162*Strike_Price_WTs -> 534296477.6 | AC162: =(Y162+AA162)/1000000 -> 544.684436 | AD162: =(Z162+AB162)/1000000 -> 562.6902306 | AE162: =S162*Strike_Price_WTs/1000000 -> 534.2964776 | AF162: =AC162/((1+Discount_Rate)^($B162-1)) -> 474.6610183 | AG162: =AD162/((1+Discount_Rate)^($B162-1)) -> 490.352028 | AH162: =AE162/((1+Discount_Rate)^($B162-1)) -> 465.6085127
B163: 6 | D163: 12612712.01 | E163: 10619565.07 | G163: 32881713.77 | H163: 27685520.67 | J163: 32881713.77 | K163: 27685520.67 | M163: 87912285.27 | N163: 74019785.23 | O163: 34058.88 | P163: 93094.272 | Q163: =($G$147+$G$148)*WT_ANN_ENRGY_ADJ -> 3447074.049 | R163: 3447074.049 | S163: =$M$148*WT_ANN_ENRGY_ADJ -> 3447074.049 | T163: 2931020.517 | U163: 2980726.733 | V163: 2902343.854 | Y163: 10387958.4 | Z163: 28393752.96 | AA163: 534296477.6 | AB163: 534296477.6 | AC163: =(Y163+AA163)/1000000 -> 544.684436 | AD163: =(Z163+AB163)/1000000 -> 562.6902306 | AE163: 534.2964776 | AF163: 458.6096795 | AG163: 473.7700754 | AH163: 449.8632973
B164: 7 | D164: 12612712.01 | E164: 10260449.35 | G164: 32881713.77 | H164: 26749295.34 | J164: 32881713.77 | K164: 26749295.34 | M164: 87912285.27 | N164: 71516700.71 | O164: 34058.88 | P164: 93094.272 | Q164: 3447074.049 | R164: 3447074.049 | S164: 3447074.049 | T164: 2831903.881 | U164: 2879929.21 | V164: 2804196.96 | Y164: 10387958.4 | Z164: 28393752.96 | AA164: 534296477.6 | AB164: 534296477.6 | AC164: 544.684436 | AD164: 562.6902306 | AE164: 534.2964776 | AF164: 443.1011396 | AG164: 457.7488651 | AH164: 434.6505288
B165: 8 | D165: 12612712.01 | E165: 9913477.629 | G165: 32881713.77 | H165: 25844729.79 | J165: 32881713.77 | K165: 25844729.79 | M165: 87912285.27 | N165: 69098261.55 | O165: 34058.88 | P165: 93094.272 | Q165: 3447074.049 | R165: 3447074.049 | S165: 3447074.049 | T165: 2736139.015 | U165: 2782540.3 | V165: 2709369.043 | Y165: 10387958.4 | Z165: 28393752.96 | AA165: 534296477.6 | AB165: 534296477.6 | AC165: 544.684436 | AD165: 562.6902306 | AE165: 534.2964776 | AF165: 428.1170431 | AG165: 442.2694349 | AH165: 419.9522017
B166: 9 | D166: 12612712.01 | E166: 9578239.255 | G166: 32881713.77 | H166: 24970753.42 | J166: 32881713.77 | K166: 24970753.42 | M166: 87912285.27 | N166: 66761605.37 | O166: 34058.88 | P166: 93094.272 | Q166: 3447074.049 | R166: 3447074.049 | S166: 3447074.049 | T166: 2643612.575 | U166: 2688444.734 | V166: 2617747.868 | Y166: 10387958.4 | Z166: 28393752.96 | AA166: 534296477.6 | AB166: 534296477.6 | AC166: 544.684436 | AD166: 562.6902306 | AE166: 534.2964776 | AF166: 413.6396552 | AG166: 427.3134637 | AH166: 405.7509195
B167: 10 | D167: 12612712.01 | E167: 9254337.444 | G167: 32881713.77 | H167: 24126331.81 | J167: 32881713.77 | K167: 24126331.81 | M167: 87912285.27 | N167: 64503966.54 | O167: 34058.88 | P167: 93094.272 | Q167: 3447074.049 | R167: 3447074.049 | S167: 3447074.049 | T167: 2554215.048 | U167: 2597531.144 | V167: 2529224.993 | Y167: 10387958.4 | Z167: 28393752.96 | AA167: 534296477.6 | AB167: 534296477.6 | AC167: 544.684436 | AD167: 562.6902306 | AE167: 534.2964776 | AF167: 399.6518408 | AG167: 412.8632499 | AH167: 392.029874
B168: 11 | D168: 12612712.01 | E168: 8941388.835 | G168: 32881713.77 | H168: 23310465.52 | J168: 32881713.77 | K168: 23310465.52 | M168: 87912285.27 | N168: 62322672.98 | O168: 34058.88 | P168: 93094.272 | Q168: 3447074.049 | R168: 3447074.049 | S168: 3447074.049 | T168: 2467840.626 | U168: 2509691.927 | V168: 2443695.646 | Y168: 10387958.4 | Z168: 28393752.96 | AA168: 534296477.6 | AB168: 534296477.6 | AC168: 544.684436 | AD168: 562.6902306 | AE168: 534.2964776 | AF168: 386.1370442 | AG168: 398.9016907 | AH168: 378.7728251
B169: 12 | D169: 12612712.01 | E169: 8639023.029 | G169: 32881713.77 | H169: 22522188.91 | J169: 32881713.77 | K169: 22522188.91 | L169: 0 | M169: 87912285.27 | N169: 60215142.98 | O169: 34058.88 | P169: 93094.272 | Q169: 3447074.049 | R169: 3447074.049 | S169: 3447074.049 | T169: 2384387.079 | U169: 2424823.117 | V169: 2361058.595 | Y169: 10387958.4 | Z169: 28393752.96 | AA169: 534296477.6 | AB169: 534296477.6 | AC169: 544.684436 | AD169: 562.6902306 | AE169: 534.2964776 | AF169: 373.0792698 | AG169: 385.4122616 | AH169: 365.9640822
B170: 13 | D170: 12612712.01 | E170: 8346882.154 | G170: 32881713.77 | H170: 21760568.99 | J170: 32881713.77 | K170: 21760568.99 | M170: 87912285.27 | N170: 58178882.11 | O170: 34058.88 | P170: 93094.272 | Q170: 3447074.049 | R170: 3447074.049 | S170: 3447074.049 | T170: 2303755.632 | U170: 2342824.268 | V170: 2281216.034 | Y170: 10387958.4 | Z170: 28393752.96 | AA170: 534296477.6 | AB170: 534296477.6 | AC170: 544.684436 | AD170: 562.6902306 | AE170: 534.2964776 | AF170: 360.4630626 | AG170: 372.3789967 | AH170: 353.5884852
B171: 14 | D171: 12612712.01 | E171: 8064620.438 | G171: 32881713.77 | H171: 21024704.34 | J171: 32881713.77 | K171: 21024704.34 | M171: 87912285.27 | N171: 56211480.29 | O171: 34058.88 | P171: 93094.272 | Q171: 3447074.049 | R171: 3447074.049 | S171: 3447074.049 | T171: 2225850.852 | U171: 2263598.327 | V171: 2204073.462 | Y171: 10387958.4 | Z171: 28393752.96 | AA171: 534296477.6 | AB171: 534296477.6 | AC171: 544.684436 | AD171: 562.6902306 | AE171: 534.2964776 | AF171: 348.2734904 | AG171: 359.7864702 | AH171: 341.6313867
B172: 15 | D172: 12612712.01 | E172: 7791903.805 | G172: 32881713.77 | H172: 20313724 | J172: 32881713.77 | K172: 20313724 | M172: 87912285.27 | N172: 54310608.98 | O172: 34058.88 | P172: 93094.272 | Q172: 3447074.049 | R172: 3447074.049 | S172: 3447074.049 | T172: 2150580.533 | U172: 2187051.523 | V172: 2129539.577 | Y172: 10387958.4 | Z172: 28393752.96 | AA172: 534296477.6 | AB172: 534296477.6 | AC172: 544.684436 | AD172: 562.6902306 | AE172: 534.2964776 | AF172: 336.496126 | AG172: 347.619778 | AH172: 330.0786345
B173: 16 | D173: 12612712.01 | E173: 7528409.474 | G173: 32881713.77 | H173: 19626786.47 | J173: 32881713.77 | K173: 19626786.47 | M173: 87912285.27 | N173: 52474018.34 | O173: 34058.88 | P173: 93094.272 | Q173: 3447074.049 | R173: 3447074.049 | S173: 3447074.049 | T173: 2077855.588 | U173: 2113093.259 | V173: 2057526.162 | Y173: 10387958.4 | Z173: 28393752.96 | AA173: 534296477.6 | AB173: 534296477.6 | AC173: 544.684436 | AD173: 562.6902306 | AE173: 534.2964776 | AF173: 325.11703 | AG173: 335.8645198 | AH173: 318.9165551
B174: 17 | D174: 12612712.01 | E174: 7273825.578 | G174: 32881713.77 | H174: 18963078.72 | J174: 32881713.77 | K174: 18963078.72 | M174: 87912285.27 | N174: 50699534.63 | O174: 34058.88 | P174: 93094.272 | Q174: 3447074.049 | R174: 3447074.049 | S174: 3447074.049 | T174: 2007589.94 | U174: 2041635.999 | V174: 1987947.982 | Y174: 10387958.4 | Z174: 28393752.96 | AA174: 534296477.6 | AB174: 534296477.6 | AC174: 544.684436 | AD174: 562.6902306 | AE174: 534.2964776 | AF174: 314.1227343 | AG174: 324.5067824 | AH174: 308.1319372
B175: 18 | D175: 12612712.01 | E175: 7027850.8 | G175: 32881713.77 | H175: 18321815.19 | J175: 32881713.77 | K175: 18321815.19 | M175: 87912285.27 | N175: 48985057.61 | O175: 34058.88 | P175: 93094.272 | Q175: 3447074.049 | R175: 3447074.049 | S175: 3447074.049 | T175: 1939700.425 | U175: 1972595.168 | V175: 1920722.688 | Y175: 10387958.4 | Z175: 28393752.96 | AA175: 534296477.6 | AB175: 534296477.6 | AC175: 544.684436 | AD175: 562.6902306 | AE175: 534.2964776 | AF175: 303.5002263 | AG175: 313.5331231 | AH175: 297.7120167
B176: 19 | D176: 12612712.01 | E176: 6790194.01 | G176: 32881713.77 | H176: 17702236.9 | J176: 32881713.77 | K176: 17702236.9 | M176: 87912285.27 | N176: 47328558.08 | O176: 34058.88 | P176: 93094.272 | Q176: 3447074.049 | R176: 3447074.049 | S176: 3447074.049 | T176: 1874106.691 | U176: 1905889.052 | V176: 1855770.713 | Y176: 10387958.4 | Z176: 28393752.96 | AA176: 534296477.6 | AB176: 534296477.6 | AC176: 544.684436 | AD176: 562.6902306 | AE176: 534.2964776 | AF176: 293.2369337 | AG176: 302.9305537 | AH176: 287.6444605
B177: 20 | D177: 12612712.01 | E177: 6560573.923 | G177: 32881713.77 | H177: 17103610.53 | J177: 32881713.77 | K177: 17103610.53 | M177: 87912285.27 | N177: 45728075.44 | O177: 34058.88 | P177: 93094.272 | Q177: 3447074.049 | R177: 3447074.049 | S177: 3447074.049 | T177: 1810731.102 | U177: 1841438.697 | V177: 1793015.182 | Y177: 10387958.4 | Z177: 28393752.96 | AA177: 534296477.6 | AB177: 534296477.6 | AC177: 544.684436 | AD177: 562.6902306 | AE177: 534.2964776 | AF177: 283.3207089 | AG177: 292.6865254 | AH177: 277.9173532
B178: 21 | D178: 12612712.01 | E178: 6338718.766 | G178: 32881713.77 | H178: 16525227.56 | J178: 32881713.77 | K178: 16525227.56 | M178: 87912285.27 | N178: 44181715.4 | O178: 34058.88 | P178: 93094.272 | Q178: 3447074.049 | R178: 3447074.049 | S178: 3447074.049 | T178: 1749498.649 | U178: 1779167.823 | V178: 1732381.818 | Y178: 10387958.4 | Z178: 28393752.96 | AA178: 534296477.6 | AB178: 534296477.6 | AC178: 544.684436 | AD178: 562.6902306 | AE178: 534.2964776 | AF178: 273.7398153 | AG178: 282.7889134 | AH178: 268.5191818
B179: 22 | D179: 12612712.01 | E179: 6124365.957 | G179: 32881713.77 | H179: 15966403.44 | J179: 32881713.77 | K179: 15966403.44 | M179: 87912285.27 | N179: 42687647.73 | O179: 34058.88 | P179: 93094.272 | Q179: 3447074.049 | R179: 3447074.049 | S179: 3447074.049 | T179: 1690336.859 | U179: 1719002.728 | V179: 1673798.858 | Y179: 10387958.4 | Z179: 28393752.96 | AA179: 534296477.6 | AB179: 534296477.6 | AC179: 544.684436 | AD179: 562.6902306 | AE179: 534.2964776 | AF179: 264.4829134 | AG179: 273.2260033 | AH179: 259.438823
B180: 23 | D180: 12612712.01 | E180: 5917261.795 | G180: 32881713.77 | H180: 15426476.76 | J180: 32881713.77 | K180: 15426476.76 | M180: 87912285.27 | N180: 41244104.08 | O180: 34058.88 | P180: 93094.272 | Q180: 3447074.049 | R180: 3447074.049 | S180: 3447074.049 | T180: 1633175.709 | U180: 1660872.201 | V180: 1617196.964 | Y180: 10387958.4 | Z180: 28393752.96 | AA180: 534296477.6 | AB180: 534296477.6 | AC180: 544.684436 | AD180: 562.6902306 | AE180: 534.2964776 | AF180: 255.5390467 | AG180: 263.9864766 | AH180: 250.6655295
B181: 24 | C181: =C160+0.1*C158 -> 35919086.95 | D181: 12612712.01 | E181: 21998767.24 | F181: =(G148*WT_DX_Tethys+G147*WT_DX_PL)*WT_Rated_MW -> 54748232.64 | G181: 32881713.77 | H181: 39721395.78 | I181: =(J148*WT_DX_Tethys+J147*WT_DX_PL)*WT_Rated_MW -> 54748232.64 | J181: 32881713.77 | K181: 39721395.78 | L181: =WT_DX_STD*WT_Rated_MW*'TETHYS vs Mothership(50-200WTs)'!M148 -> 109496465.3 | M181: 87912285.27 | N181: 89482550.57 | O181: 34058.88 | P181: 93094.272 | Q181: =($G$147+$G$148)*WT_ANN_ENRGY_ADJ -> 3447074.049 | R181: 3447074.049 | S181: 3447074.049 | T181: 1577947.545 | U181: 1604707.44 | V181: 1562509.144 | Y181: 10387958.4 | Z181: 28393752.96 | AA181: 534296477.6 | AB181: 534296477.6 | AC181: 544.684436 | AD181: 562.6902306 | AE181: 534.2964776 | AF181: 246.8976297 | AG181: 255.0593977 | AH181: 242.1889174
B182: Total Discounted Costs for PSP | E182: =SUM(E158:E181) -> 522395572.9 | G182: Total Discounted Costs for WTs | H182: =SUM(H158:H181) -> 2773686077 | J182: Total Discounted Costs for WTs | K182: =SUM(K158:K181) -> 2773686077 | M182: Total Discounted Costs for WTs | N182: =SUM(N158:N181) -> 3622054231 | O182: =SUM(O161:O181) -> 681177.6 | P182: 1861885.44 | Q182: 68941480.98 | R182: 68941480.98 | S182: 68941480.98 | T182: 44623854.5 | U182: 45380615.82 | V182: =SUM(V162:V181) -> 44187261.43 | W182: Energy Equivalence Check | AE182: NPV | AF182: =SUM(AF162:AF181) -> 6982.186408 | AG182: =SUM(AG162:AG181) -> 7212.99861 | AH182: =SUM(AH162:AH181) -> 6849.025522
T183: =T182/U182 -> 0.9833241285 | U183: =U182/U182 -> 1 | V183: =V182/U182 -> 0.9737034334 | W183: =IF(_xlfn.STDEV.P(T183:V183)<0.01,"OK","Check") -> Check | AE183: Profit | AF183: =AF182-(E182+H182)/1000000 -> 3686.104758 | AG183: =AG182-(E182+K182)/1000000 -> 3916.91696 | AH183: =AH182-N182/1000000 -> 3226.971291
AE184: Proft % | AF184: =AF183/AF182 -> 0.5279298694 | AG184: =AG183/AG182 -> 0.5430358679 | AH184: =AH183/AH182 -> 0.4711577262
B185: LCOE
B186: Low | C186: High | D186: MOTHERSHIP
B187: =(E182+H182)/T182 -> 73.8636697 | C187: =(K182+E182)/U182 -> 72.63192863 | D187: =N182/V182 -> 81.97055245 | E187: per MWH
A188: Wind:Wave | B188: =O162/(O162+Q162) -> 0.009783849308 | C188: =P162/(P162+R162) -> 0.02629656659 | D188: =D187/Exch_Rate_Euro -> 105.9138643

Sheet PSP Weight-1
A1: Reinforced Concrete Volume Estimate for Simple PSP | F1: 1 ft | G1: 0.3048 | H1: m
A2: Float Incorporated | B2: Project: | C2: DEWA-generic | F2: 1inch | G2: 25.4 | H2: mm
A3: Floating Ocean Real Estate
C4: Metric imputs
A5: Platform Length, ft.: | B5: 2362.204724 | C5: 720 | D5: m
A6: Platform Breadth, ft.: | B6: 164.0419948 | C6: 50 | D6: m
A7: Platform Height, ft.: | B7: 124.671916 | C7: 38 | D7: m | E7: LNG tanker
A8: Platform area, acres: | B8: 8.895793733 | H8: Cylinder Length | I8: 37.6952 | J8: m
A9: hectares: | B9: 3.601308318
A11: Deck & equivalent bottom thickness, ft.: | B11: 1 | C11: 0.3048 | D11: m
A12: Wrapper, if any, thickness, ft.: | B12: 0.8333333333
A14: Cylinder pitches in breadth, whole number: | B14: 5
A15: Cylinder pitches in length, calculated: | B15: 72 | H15: Topsides Weight Estimate | I15: Accommodation & Helideck | J15: 500
I16: WECs | J16: 1500
A17: Longitudinal bulkheads, if any, whole number: | B17: 2 | I17: Workshop | J17: 200
A18: Longitudinal bulkheads, if any, thickness, ft.: | B18: 0.8333333333 | I18: Crane | J18: 290.0267248 | K18: 639400
A20: Inside-diameter/pitch ratio: | B20: 0.79 | D20: centre-centre | I20: Substation | J20: 1500 | K20: t
A21: Cylinder inside diameter, ft.: | B21: 25.91863517 | C21: 7.9 | D21: 8.38976378 | E21: m | J21: 3990.026725
A22: Calculated wall thickness at 2% of ID, inch: | B22: 6.220472441 | C22: 0.2449004898 | J22: 0.01465948119
A23: (must be =/> 5.0")
A24: Specified cylinder wall thickness, inch: | B24: 6.22 | C24: 0.2448818898 | D24: m
A25: Wall thickness, % of cylinder ID: | B25: 0.01999848101
A27: Volume of reinforced concrete, cuft.: | B27: 4005591.503
A28: Volume of reinforced concrete, yd^3: | B28: 148355.2409
A29: Volume of reinforced concrete, m^3: | B29: 113408.593 | C29: 272180.6231 | D29: Tonnes
A30: Volume density (V/LBH): | B30: 0.08291353809
A32: yd^3/acre: | B32: 16677.00998
A33: m^3/hectare: | B33: 31490.94244
A34: Light Weight (displacement), tonnes: | B34: 298194.0341
A35: Light Weight (displacement), LTons: | B35: 293934.1194
A36: Number of cylinder Moon Pools, whole no.: | B36: 0
A37: Light draft, fully inflated, ft.: | B37: 26.5488351
A38: Light draft, fully inflated, m.: | B38: 8.091690065
A39: Number of air-buoyancy cylinders: | B39: 78
A40: Light draft, deflated, ft.: | B40: 29.70342327
A41: Light draft, deflated, m.: | B41: 9.053161618
A43: Deck & tank load, Ltons: | B43: 38209.40207
A44: Deck & tank load, tonnes: | B44: 38763.16152
A45: Loaded displacement, Ltons: | B45: 332143.5214
A46: Loaded draft, fully inflated, ft.: | B46: 30
A47: Loaded draft, deflated, ft.: | B47: 33.5646628 | C47: 10.23050922
A48: Loaded displacement, tonnes: | B48: 336957.1957
A49: Loaded draft, fully inflated, m.: | B49: 9.143553795
A50: Loaded draft, deflated, m.: | B50: 10.23001
A52: Note: Survival wave loading not considered! | B52: Nor are Survival freeboard cylinder bulkheads.

Sheet PSP Cost-1
A1: Cost Breakdown for Concrete Floating Platform | D1: $/Euro: | E1: 1.6
A2: Float Incorporated | B2: Project: | C2: DEWA-generic
A3: Floating Ocean Real Estate
C4: rate | D4: amount/yd^3 | E4: $/yd^3
A5: Mild Reinforcing Steel | B5: $/lb: | C5: 0.55 | D5: 250 | E5: =D5*C5 -> 137.5
A6: Pre-stressing Steel (Including specialized Labor) | B6: $/lb: | C6: 1 | D6: 140 | E6: =D6*C6 -> 140
A7: 6000 psi concrete | B7: $/yd^3: | C7: =110 -> 110 | D7: 1 | E7: =D7*C7 -> 110
A9: Total, $/yd^3: | C9: =E9 -> 387.5 | E9: =SUM(E5:E7) -> 387.5
A10: $/m^3: | C10: =(35.32/27)*C9 -> 506.9074074
A11: $/tonne: | C11: =C9/2.011 -> 192.6902039 | F11: Concrete Cost Scaler | G11: 1
F12: 1
A13: Concrete, yd^3: | B13: ='PSP Weight-1'!B28 -> 148355.2409 | C13: =C7*F12 -> 110 | E13: =B13*C13 -> 16319076.49
A14: Reinforcing, lbs: | B14: =B13*D5 -> 37088810.22 | C14: =C5*F12 -> 0.55 | E14: =B14*C14 -> 20398845.62
A15: Pre-stressing Steel, lbs: | B15: =B13*D6 -> 20769733.72 | C15: =C6*F12 -> 1 | E15: =B15*C15 -> 20769733.72
A16: Labor, hrs at rate: | B16: =26*B13 -> 3857236.262 | C16: 17.5 | D16: =C16/E1 -> 10.9375 | E16: =B16*C16 -> 67501634.59
A17: Misc systems & fixtures: | E17: =65*B13 -> 9643090.656
A19: Basic construction materials and labor: | E19: =SUM(E13:E17) -> 134632381.1
A20: $/yd^3: | C20: =E19/B13 -> 907.5
A21: $/m^3: | C21: =(35.32/27)*C20 -> 1187.144444
A22: $/tonne: | C22: =C20/2.011 -> 451.2680259 | D22: =C22/E1 -> 282.0425162 | E22: /tonne
A24: Forms: | E24: =51.95*B13 -> 7707054.763
A25: Cranes & equipment rentals: | E25: =(20000000/77000)*B13 -> 38533828.8
A26: Construction facility lease & modify: | E26: =17000000*(B13/77000)^(2/3) -> 26322291.84
A28: Subtotal before Overhead: | E28: =E19+SUM(E24:E26) -> 207195556.5
A30: O/H on labor, materials & forms: | C30: 0.15 | E30: =(E19+E24)*C30 -> 21350915.38
A31: O/H on construction facility: | C31: 0.05 | E31: =E26*C31 -> 1316114.592
A32: O/H on equipment rentals: | C32: 0.05 | E32: =E25*C32 -> 1926691.44
A34: Subtotal after Overhead: | E34: =E28+SUM(E30:E32) -> 231789277.9
A36: Profit: | C36: 0.1 | E36: =E34*C36 -> 23178927.79
A37: Hull Classification: | C37: 0.04 | E37: =E$34*C37 -> 9271571.116
A38: Engineering & studies: | C38: 0.07 | E38: =E$34*C38 -> 16225249.45 | H38: WEC Cost
A39: Project Administration: | C39: 0.1 | E39: =E$34*C39 -> 23178927.79 | G39: Structure | H39: 30700 | I39: per m
A40: Contingencies: | C40: 0.15 | E40: =E$34*C40 -> 34768391.68 | G40: PTO | H40: 60000 | I40: Per m
G41: Total | H41: ='PSP Weight-1'!C5*(H39+H40) -> 65304000
A42: Total for Concrete Hull: | E42: =SUM(E34:E40) -> 338412345.7 | H42: =H41*Exch_Rate_US -> 46012937.18
A43: $/yd^3: | C43: =E42/B13 -> 2281.094647
A44: $/m^3: | C44: =(35.32/27)*C43 -> 2984.009738
A45: $/tonne: | C45: =C43/2.011 -> 1134.308626 | D45: =C45/E1 -> 708.9428911 | E45: /tonne
A46: mega$/acre: | C46: =E42/(1000000*'PSP Weight-1'!B8) -> 38.04183819 | D46: =E42/(E1*'PSP Weight-1'!B9)*10^(-4) -> 5873.079931 | E46: /m^2
A48: at 7 bbl/Lton, $/bbl capacity: | C48: =E42/(7*'PSP Weight-1'!B43) -> 1265.254576 | D48: =C48/E1 -> 790.78411 | E48: /bbl capacity
A50: Note: Does not include: deployment to site; moorings; electrical & piping to shore;
A51: outfitting: accommodations, mooring systems, cargo systems, on-board power.
M54: Component | N54: CAPEX (£m) | O54: References | P54: Notes
M55: PSP Concrete Hull | N55: =E58/1000000 -> 238.4439851 | O55: =F58 -> Float Inc Cost Estimation Calculator
M56: Mooring Cost | N56: =E59/1000000 -> 23.84439851 | O56: =F59 -> http://www.seasteading.org/semi-submersible-seastead-community-feasibility/ | P56: =G59 -> Estimated at 10% of Hull Cost
E57: Low | F57: Ref | L57: Accommodation | M57: =E60/1000000 -> 20 | N57: =F60 -> [4] Y. Dalgic
D58: PSP Concrete Hull | E58: =E42*Exch_Rate_US -> 238443985.1 | F58: Float Inc Cost Estimation Calculator | L58: WEC Cost | M58: 46.01293718 | N58: Float Inc Cost Estimation Calculator
D59: Mooring Cost | E59: =0.1*E58 -> 23844398.51 | F59: http://www.seasteading.org/semi-submersible-seastead-community-feasibility/ | G59: Estimated at 10% of Hull Cost | L59: Workshop | M59: 10 | N59: Assumed | O59: =G62 -> Assumed to be 50% of Accommodation Cost
D60: Accommodation | E60: 20000000 | F60: [4] Y. Dalgic | L60: Crane | M60: 1.409192 | N60: http://www.bigge.com/crane-sales/cranes/liebherr-lr1300/1780/ | O60: =G63 -> 2nd Hand Liebherr LR 1300 Crawler
D61: WEC Cost | E61: =H42 -> 46012937.18 | F61: Float Inc Cost Estimation Calculator | L61: HeliDeck | M61: 0.704596 | N61: http://www.seasteading.org/semi-submersible-seastead-community-feasibility/
D62: Workshop | E62: 10000000 | F62: Assumed | G62: Assumed to be 50% of Accommodation Cost | L62: Boat Landing Area | M62: 1.5 | N62: http://www.seasteading.org/semi-submersible-seastead-community-feasibility/
D63: Crane | E63: =2000000*Exch_Rate_US -> 1409192 | F63: http://www.bigge.com/crane-sales/cranes/liebherr-lr1300/1780/ | G63: 2nd Hand Liebherr LR 1300 Crawler | L63: Backup Electrics | M63: 1 | N63: http://www.seasteading.org/semi-submersible-seastead-community-feasibility/
D64: HeliDeck | E64: =1000000*Exch_Rate_US -> 704596 | F64: http://www.seasteading.org/semi-submersible-seastead-community-feasibility/
D65: Boat Landing Area | E65: 1500000 | F65: http://www.seasteading.org/semi-submersible-seastead-community-feasibility/
D66: Backup Electrics | E66: 1000000 | F66: http://www.seasteading.org/semi-submersible-seastead-community-feasibility/
D74: Total CAPEX | E74: =SUM(E58:E73) -> 342915108.8
B77: OPEX | D77: Fixed Annual Operating Costs | E77: =J87 -> 4764409.832 | G77: >>>> | H77: OPEX Breakdown | I77: Rate | J77: Annual Operating Cost
D78: Insurance | E78: =0.02*E74 -> 6858302.177 | G78: 2% of CAPEX | H78: PSP Concrete Hull | I78: 0.01 | J78: =I78*E58 -> 2384439.851
D79: Crew | E79: =K97 -> 990000 | H79: Mooring Cost | I79: 0.01 | J79: 238443.9851
B80: PSP OPEX | E80: =SUM(E77:E79) -> 12612712.01 | H80: Accomodation | I80: 0.03 | J80: 600000
H81: WEC Cost | I81: 0.03 | J81: 1380388.116
H82: Workshop | I82: 0.01 | J82: 100000
H83: Crane | I83: 0.01 | J83: 14091.92
H84: HeliDeck | I84: 0.01 | J84: 7045.96
H85: Boat Landing Area | I85: 0.02 | J85: 30000
H86: Backup Electrics | I86: 0.01 | J86: 10000
H87: Total | J87: =SUM(J78:J86) -> 4764409.832
H89: Staff
H90: Personnel Category | I90: Salary (£) | J90: Number of Personnel Required | K90: Annual Cost
H91: Offshore Installation Manager | I91: 100000 | J91: 2 | K91: =I91*J91 -> 200000
H92: Medic/Coordinator | I92: 50000 | J92: 2 | K92: 100000
H93: Stewards | I93: 35000 | J93: 6 | K93: 210000
H94: Crane Operator | I94: 35000 | J94: 2 | K94: 70000
H95: Cooks | I95: 35000 | J95: 6 | K95: 210000
H96: Maint Technician / Electrician | I96: 50000 | J96: 4 | K96: 200000
H97: Total | K97: =SUM(K91:K96) -> 990000

Sheet PSP Installation
O1: 1 | P1: kt | Q1: 1.852 | R1: kmh
D2: Day Rate | E2: Number | F2: Distance (KM) | G2: Speed (kts) | H2: Time (hrs) | I2: Total Days Required | J2: Fuel | K2: Total Cost
C3: Mooring Handling Vessels Transit | D3: =91000/Exch_Rate_Euro -> 117580.7819 | E3: 1 | F3: 250 | G3: 15 | H3: =2*F3/(G3*kt) -> 17.99856012 | I3: 1 | J3: =90*I3 -> 90 | K3: =D3*E3*I3+J3*Fuel_Cost -> 167080.7819
C4: Mooring Handling Vessels Inst | D4: =91000/Exch_Rate_Euro -> 117580.7819 | E4: 1 | I4: 6 | J4: =90*I4 -> 540 | K4: =D4*E4*I4+J4*Fuel_Cost -> 1002484.691
C6: Tugs To Site | D6: =17000*Exch_Rate_Euro -> 13156.912 | E6: 4 | F6: 250 | G6: 1.5 | H6: =F6/(G6*kt) -> 89.99280058 | I6: =ROUNDUP(H6/24,0) -> 4 | J6: =90*I6 -> 360 | K6: =D6*E6*I6+J6*Fuel_Cost -> 408510.592
C7: Tugs Transit Return | F7: 250 | G7: 15 | H7: =F7/(G7*kt) -> 8.999280058 | I7: =ROUNDUP(H7/24,0) -> 1 | J7: =90*I7 -> 90 | K7: =D7*E7*I7+J7*Fuel_Cost -> 49500
J9: Total | K9: =SUM(K3:K7) -> 1627576.065

Sheet Substation CAPEX
B1: Scaler | C1: 2
C2: HV DC Export Cable | D2: =C1*D14 -> 1772 | E2: per MW/KM
C3: Substation | D3: 286000 | E3: per MW
F9: References
C10: 500 MW Substation | D10: 143000000
C11: Therefore | D11: =D10/500 -> 286000 | E11: per MW
C13: HVDC Cable (500MW) | D13: 443000 | E13: per KM
C14: Therefore | D14: =D13/500 -> 886 | E14: per MW per KM

Sheet WT CAPEX
B2: STANDARD 6MW OFFSHORE FLOATING WIND TURBINE CAPEX CALCULATION
L3: Mooring Costs (Base Case) | N3: 200 | O3: m depth
B4: Catergory | C4: Subcategory | D4: Reference Cost | E4: Site Depth/Distance | F4: Reference Size (MW) | G4: £/MW | H4: Reference / Notes | N4: M/M req | P4: cost/m (cable) | Q4: Cost/m (water Depth)
B5: Development and Consenting | C5: - | D5: 104106000 | F5: 500 | G5: =Exch_Rate_Euro*D5/F5 -> 161142.7624 | H5: Myhr | L5: Steel Wire | M5: 1800 | N5: =M5/N3 -> 9 | O5: 81000 | P5: =O5/M5 -> 45 | Q5: =P5*N5 -> 405
B6: Production and Acquisition | C6: Tower & Turbine | D6: 7475000 | F6: 5 | G6: =Exch_Rate_Euro*D6/F6 -> 1157034.32 | H6: Myhr | L6: Chain | M6: 150 | N6: =M6/N3 -> 0.75 | O6: 37500 | P6: =O6/M6 -> 250 | Q6: =P6*N6 -> 187.5
C7: Floating Substructure | D7: =3740000 -> 3740000 | F7: 5 | G7: =Exch_Rate_Euro*D7/F7 -> 578904.128 | H7: Myhr
C8: Mooring | D8: =342000+Q5*Depth+Q6*Depth -> 401250 | E8: =Depth -> 100 | F8: 5 | G8: =Exch_Rate_Euro*D8/F8 -> 62108.364 | H8: See Mooring Costs >>
C9: Export Cable | D9: 443000 | E9: =Export_Cable_Length -> 75 | F9: 500 | G9: =Exch_Rate_Euro*E9*D9/F9 -> 51428.0472 | H9: Myhr
C10: Substation | D10: 161700000 | F10: 500 | G10: =Exch_Rate_Euro*D10/F10 -> 250290.9024 | H10: Myhr
C11: Substation Base Cost | D11: 23800000 | F11: 500 | G11: =Exch_Rate_Euro*D11/F11 -> 36839.3536 | H11: Myhr
C12: Inter Array Cable | D12: 281000 | E12: =85*1.9 -> 161.5 | F12: 500 | G12: =Exch_Rate_Euro*E12*D12/F12 -> 70244.75317 | H12: Needs to be Calculated per Turbine | L12: CAPEX
B13: Installation and Commissioning | C13: Construction Phase Insurance | D13: 50000 | F13: 1 | G13: =Exch_Rate_Euro*D13/F13 -> 38696.8 | H13: Myhr | K13: Std 6MW Floating OWT | L13: =G22 -> 2383177.255
C14: Exp Installation | D14: 590000 | E14: =Export_Cable_Length -> 75 | F14: 500 | G14: =Exch_Rate_Euro*E14*D14/F14 -> 68493.336 | H14: Myhr | K14: TETHYS 6MW Floating OWT | L14: =G39 -> 2266573.736
C15: Int Array Installation | D15: 190000 | E15: =85*1.9 -> 161.5 | F15: 500 | G15: =Exch_Rate_Euro*E15*D15/F15 -> 47496.45232 | H15: Needs to be Calculated per Turbine | K15: TETHYS Platfom 6MW OWT | L15: =G60 -> 1336874.32
C16: WT Installation | D16: 786000 | F16: 5 | G16: =Exch_Rate_Euro*D16/F16 -> 121662.7392 | H16: Myhr
C17: Mooring Installation | D17: 500000 | F17: 5 | G17: =Exch_Rate_Euro*D17/F17 -> 77393.6 | H17: Myhr
B18: Total Capex | G18: =SUM(G5:G17) -> 2721735.558 | H18: per MW
G19: =G18/Exch_Rate_Euro -> 3516745 | H19: per MW
B20: CAPEX (less Inter-Array Cable & Installation) | G20: =SUM(G5:G11)*WT_Rated_MW -> 13786487.27 | H20: Per Turbine | I20: 6 x (total capex - interarray cable costs)
B21: Installation (less Inter Array Cable) | G21: =(G13+WT_DX_STD+G17+G14)*WT_Rated_MW -> 1837478.851 | H21: Per Turbine
B22: CAPEX Less Susbtation (For Comparison) | G22: =G5+G6+G7+G8+G12+G13+G14+G15+WT_DX_STD+G17 -> 2383177.255
B23: TETHYS 6MW OFFSHORE FLOATING WIND TURBINE CAPEX CALCULATION
B25: Category | C25: Subcategory | D25: Reference Cost | E25: Site Depth/Distance | F25: Reference Size (MW) | G25: £/MW | H25: Reference / Notes
B26: Development and Consenting | C26: - | D26: 104106000 | F26: 500 | G26: =Exch_Rate_Euro*D26/F26 -> 161142.7624 | H26: Myhr
B27: Production and Acquisition | C27: Tower & Turbine | D27: 7475000 | F27: 5 | G27: =Exch_Rate_Euro*D27/F27 -> 1157034.32 | H27: Myhr
C28: Floating Substructure | D28: =3740000 -> 3740000 | F28: 5 | G28: =Exch_Rate_Euro*D28/F28 -> 578904.128 | H28: Myhr
C29: Mooring | D29: =342000+$Q$5*Depth+$Q$6*Depth -> 401250 | E29: =Depth -> 100 | F29: 5 | G29: =Exch_Rate_Euro*D29/F29 -> 62108.364 | H29: See Mooring Costs >>
C30: Export Cable | G30: 0 | H30: Calculated for total "system" | I30: NACHO Required.
C31: Substation | G31: 0 | H31: Calculated for total "system"
C32: Substation Base Cost | D32: 0 | F32: 500 | G32: =Exch_Rate_Euro*D32/F32 -> 0 | H32: No SS Base Required
C33: Inter Array Cable | D33: 281000 | E33: 85 | F33: 500 | G33: =Exch_Rate_Euro*E33*D33/F33 -> 36970.92272 | H33: Needs to be Calculated per Turbine
B34: Installation and Commissioning | C34: Construction Phase Insurance | D34: 50000 | F34: 1 | G34: =Exch_Rate_Euro*D34/F34 -> 38696.8 | H34: Myhr
C35: Exp Cable Installation | D35: 590000 | E35: =Export_Cable_Length -> 75 | F35: 500 | G35: =Exch_Rate_Euro*E35*D35/F35 -> 68493.336 | H35: Myhr
C36: Int Array Installation | D36: 190000 | E36: 85 | F36: 500 | G36: =Exch_Rate_Euro*E36*D36/F36 -> 24998.1328 | H36: Needs to be Calculated per Turbine
C37: WT Installation | D37: 786000 | F37: 5 | G37: =WT_DX_STD*0.5 -> 60831.3696 | H37: Myhr | I37: Would like to recalculate this using tug boats/distances etc.
C38: Mooring Installation | D38: 500000 | F38: 5 | G38: =Exch_Rate_Euro*D38/F38 -> 77393.6 | H38: Myhr
B39: Total Capex | G39: =SUM(G26:G38) -> 2266573.736 | H39: per MW
G40: =G39/Exch_Rate_Euro -> 2928632 | H40: per MW
B41: CAPEX (less Inter-Array Cable & Installation) | G41: =SUM(G27,G28,G29)*WT_Rated_MW -> 10788280.87 | H41: Per Turbine | I41: 6 x (total capex - interarray cable costs)
B42: Installation (less Inter Array Cable) | G42: =(G34+WT_DX_Tethys+G38+G35)*WT_Rated_MW -> 1472490.634 | H42: Per Turbine
B43: TETHYS 6MW OFFSHORE PLATFORM WIND TURBINE CAPEX CALCULATION
B45: Catergory | C45: Subcategory | D45: Reference Cost | E45: Site Depth/Distance | F45: Reference Size (MW) | G45: £/MW | H45: Reference / Notes
B46: Development and Consenting | C46: - | D46: 104106000 | F46: 500 | G46: =Exch_Rate_Euro*D46/F46 -> 161142.7624 | H46: Myhr
B47: Production and Acquisition | C47: Tower & Turbine | D47: 7475000 | F47: 5 | G47: =Exch_Rate_Euro*D47/F47 -> 1157034.32 | H47: Myhr
C48: Floating Substructure | D48: 0 | F48: 5 | G48: 0 | H48: N/A For Platform
C49: Mooring | D49: 0 | E49: =Depth -> 100 | F49: 5 | G49: 0 | H49: N/A For Platform
C50: Export Cable | G50: 0 | H50: Calculated for total "system" | I50: NACHO Required.
C51: Substation | G51: 0 | H51: Calculated for total "system"
C52: Substation Base Cost | D52: 0 | F52: 500 | G52: =Exch_Rate_Euro*D52/F52 -> 0 | H52: N/A For Platform
C53: Inter Array Cable | D53: 281000 | E53: =2*0.32 -> 0.64 | G53: =E53*D53 -> 179840 | H53: 2 x 320m
B54: Installation and Commissioning | C54: Construction Phase Insurance | D54: 50000 | F54: 1 | G54: =Exch_Rate_Euro*D54/F54 -> 38696.8 | H54: Myhr
C55: Exp Installation | D55: 590000 | E55: =Export_Cable_Length -> 75 | F55: 500 | G55: =Exch_Rate_Euro*E55*D55/F55 -> 68493.336 | H55: Myhr
C56: Int Array Installation | D56: 0 | E56: 85 | F56: 500 | G56: 0 | H56: N/A For Platform
C57: WT Installation | D57: 786000 | F57: 5 | G57: =WT_DX_Tethys -> 60831.3696 | H57: Myhr
C58: Mooring Installation | D58: 0 | F58: 5 | G58: 0 | H58: N/A For Platform
B60: Total Capex | G60: =G47+G53 -> 1336874.32 | H60: per MW
G61: =G60/Exch_Rate_Euro -> 1727370.635 | H61: per MW
B62: Total Capex | G62: =G60*WT_Rated_MW -> 8021245.92 | H62: Turbine
B63: Installation (less Inter Array Cable) | G63: =(G54+WT_DX_PL+G58+G55)*WT_Rated_MW -> 1008129.034 | H63: Per Turbine

Sheet Sensitivity
G5: Low | H5: High
E6: Export Cable | F6: 94 | G6: 1 | H6: 3
E7: Mothership Charter | F7: 90 | G7: 3 | H7: 3
E8: Mothership Fuel | F8: 91 | G8: 2 | H8: 5
E9: PSP Size | F9: 94 | G9: 1 | H9: 1
E10: Concrete Cost | F10: 95 | G10: 2 | H10: 1
E11: Discount Rate - TH | F11: 91 | G11: 4 | H11: 5
E12: Discount Rate - MS | F12: 90 | G12: 3 | H12: 3
E13: WT Installation | F13: 94 | G13: 1 | H13: 2
E14: Wind Yield TH | F14: 90 | G14: 5 | H14: 5
E15: Wind Yield MS | F15: 88 | G15: 5 | H15: 5
E16: WEC Climate | F16: 94 | G16: 1 | H16: 2

Sheet WT OPEX
B2: STANDARD 6MW OFFSHORE FLOATING WIND TURBINE OPEX CALCULATION
C4: Costs Per Turbine | G4: Reference | J4: Checking Against Myhr
C5: Insurance | E5: =20000*Exch_Rate_Euro*WT_Rated_MW -> 92872.32 | F5: Per Turbine | G5: Myhr | J5: =E5/WT_Rated_MW -> 15478.72
C6: Spares & Repairs | E6: =WT_Spares_Cost*WT_CX_STD -> 191331.4457 | F6: Per Turbine | J6: =E6/WT_Rated_MW -> 31888.57428
C7: Mothership | E7: ='MSHIP OPEX'!D20*WT_Rated_MW -> 164421.8601 | F7: Per Turbine | J7: =E7/WT_Rated_MW -> 27403.64334
C8: CTV & Personnel | E8: ='Wind Farm O&M'!R26/'Wind Farm O&M'!C26 -> 80512.3173 | F8: Per Turbine | G8: Calculated Each Iteration | J8: =E8/3.6 -> 22364.53258
C9: Total Fixed Costs | E9: =E5+E7+E6 -> 448625.6258 | F9: Per Turbine | J9: =SUM(J5:J8)/Exch_Rate_Euro -> 125508.4015 | K9: Should be 131
J10: =J9*Exch_Rate_Euro -> 97135.47021
B11: TETHYS 6MW OFFSHORE FLOATING WIND TURBINE OPEX CALCULATION
C13: Costs Per Turbine | G13: Reference
C14: Insurance | E14: =20000*Exch_Rate_Euro*WT_Rated_MW -> 92872.32 | F14: Per Turbine | G14: Myhr
C15: Spares & Repairs | E15: =WT_Spares_Cost*WT_CX_STD -> 191331.4457 | F15: Per Turbine
C16: CTV & Personnel | E16: =22000*6 -> 132000 | G16: Calculated Each Iteration
C17: Total Fixed Costs | E17: =E15+E14 -> 284203.7657 | F17: Per Turbine | J17: Total per MW | K17: =SUM(E14:E16)/6 -> 69367.29428
B18: TETHYS 6MW PLATFORM WIND TURBINE OPEX CALCULATION
C20: Costs Per Turbine | G20: Reference
C21: Insurance | E21: =20000*Exch_Rate_Euro*WT_Rated_MW -> 92872.32 | F21: Per Turbine | G21: Myhr
C22: Spares & Repairs | E22: =WT_Spares_Cost*WT_CX_STD -> 191331.4457 | F22: Per Turbine
C23: Total Fixed Costs | E23: =E22+E21 -> 284203.7657 | F23: Per Turbine | H23: =WT_OPEX_PLAT/6 -> 47367.29428

Sheet MSHIP OPEX
A1: Reference: Cost benefit analysis of mothership concept and investigation of optimum chartering strategy for offshore wind farms; Dalgic, Yalcin; Lazakis, Iraklis; Dinwoodie, Iain; Mcmillan, David; Revie, Matthew
C3: Charter Type | D3: Continuous | F3: Fuel Cost | G3: =550*J3 -> 550 | H3: per tonne | J3: 1
C5: Daily Rate | D5: 40000
C6: Annual Charter | D6: =D5*365 -> 14600000 | F6: Stationary | G6: 0.5 | H6: 1.51 | I6: tonne/hr
C7: Fuel Costs | D7: =(G6*H6+G7*H7)*Hrs_per_Yr*Fuel_Cost -> 10924815 | F7: Steaming | G7: 0.5 | H7: 3.025 | I7: tonne/hr
C8: Fixed & Operating | D8: 5000000
C10: Annual O&M Cost | D10: =SUM(D6:D8) -> 30524815 | H10: =D6/Fuel_Cost -> 26545.45455 | I10: tonnes/yr
C12: On the basis of 150 x 3.6 mW turbines
D13: 540 | E13: MW | F13: 1702944 | G13: MWH
D14: 49768.17593 | E14: per MW | F14: 15.78138506
D15: 64305.28613 | E15: per MW
C17: CTV Cost | D17: 12076847.59
C18: Mothership - CTV | D18: =Mshp_ann_cost-D17 -> 18447967.41 | F18: This is the mothership "fixed Rate" (still an oversimplifcation, but better)
D19: 540 | E19: MW
D20: 27403.64334 | E20: per MW
D21: 35408.15176 | E21: per MW
C23: Total | D23: 99713.43789 | E23: per MW
C24: Leaving | D24: 31286.56211 | E24: per MW | F24: For Spares etc.
D25: 187719.3726 | E25: per Turbine
D26: 0.01201483485 | E26: of CAPEX | F26: Acceptable…
C28: Therefore - for TETHYS let's assume OPEX = 1.2% of CAPEX for spare parts + CTV VESSEL COST

Sheet Wind Farm O&M
I1: Description | J1: Cost / Quantity | K1: Unit
F2: Per | I2: CTV Fuel Use Rate | J2: 446 | K2: litres Per Hour | S2: Number of Technicians | T2: Cost | U2: Number Required per Turbine
B3: 1 | C3: CTV Services | D3: 30 | E3: 3.6 | F3: MW | G3: Turbines | I3: CTV Fuel Cost | J3: 0.83 | K3: per litre | P3: Offshore O&M Technicians | S3: 60 | T3: =67000*Exch_Rate_Euro -> 51853.712 | U3: =S3/100 -> 0.6
B4: Therfore | C4: Number of CTVs | E4: =1/(E3*D3) -> 0.009259259259 | F4: MW | I4: CTV Charter Rate | J4: 3000 | K4: per day | N4: KM | P4: Offshore O&M Managers | S4: 2 | T4: =118000*Exch_Rate_Euro -> 91324.448 | U4: =S4/100 -> 0.02
C5: Number of Skippers | E5: =CTVs_Per_MW*2 -> 0.01851851852 | F5: MW | G5: 2 Skippers per Vessel | I5: CTV Skipper | J5: 60000 | K5: per year | P5: Offshore O&M Administrative | S5: 6 | T5: =60000*Exch_Rate_Euro -> 46436.16 | U5: =S5/100 -> 0.06
C6: Fuel Use | E6: =ROUNDUP(CTVs_Per_MW,0) -> 1 | I6: CTV Speed | J6: 15 | K6: kts | P6: Onshore O&M Ass | S6: 3 | T6: =50000*Exch_Rate_Euro -> 38696.8 | U6: =S6/100 -> 0.03
I9: CTV Speed | J9: =J6*kt -> 27.78 | K9: KMH
I10: CTV Distance | J10: (SQRT of #turbines) - 1
C18: Turbines Linked | D18: MW | E18: CTVs Required | F18: CTV Charter Cost | G18: CTV Skippers | H18: Skipper Cost | I18: Offshore O&M Technician Cost | J18: Offshore O&M Managers | K18: Offshore O&M Administrative | L18: Onshore O&M Ass | M18: Total Staffing | N18: Turbine Vists per Year | O18: KMs Travelled | P18: Transit Time | Q18: Fuel Use | R18: Total CTV Cost
C19: 6 | D19: =C19*WT_Rated_MW -> 36 | E19: =ROUNDUP(D19*CTVs_Per_MW,0) -> 1 | F19: =365*CTV_Charter_Rate*E19 -> 1095000 | G19: =E19*2 -> 2 | H19: =G19*CTV_Skipper -> 120000 | I19: =ROUND(C19*OM_Techs,0)*$T$3 -> 207414.848 | J19: =ROUND(C19*OM_Mgrs,0)*$T$4 -> 0 | K19: =ROUND(C19*OM_Adm,0)*$T$5 -> 0 | L19: =ROUND(C19*OM_Onshore,0)*$T$6 -> 0 | M19: =SUM(H19:L19) -> 327414.848 | N19: =C19*10 -> 60 | O19: =2*(SQRT(C19)-1)*N19 -> 173.9387691 | P19: =O19/CTV_Speed_KMH -> 6.261294785 | Q19: =P19*CTV_Fuel_Use_Rate*CTV_Fuel_Cost -> 2317.806104 | R19: =Q19+M19+F19 -> 1424732.654 | S19: =R19/D19 -> 39575.90706
C20: 16 | D20: 96 | E20: 1 | F20: 1095000 | G20: 2 | H20: 120000 | I20: 518537.12 | J20: 0 | K20: 46436.16 | L20: 0 | M20: =SUM(H20:L20) -> 684973.28 | N20: 160 | O20: 960 | P20: 34.55723542 | Q20: 12792.39741 | R20: =Q20+M20+F20 -> 1792765.677 | S20: =R20/D20 -> 18674.64247
C21: 50 | D21: 300 | E21: 3 | F21: 3285000 | G21: 6 | H21: 360000 | I21: 1555611.36 | J21: 91324.448 | K21: 139308.48 | L21: 77393.6 | M21: 2223637.888 | N21: 500 | O21: 6071.067812 | P21: 218.540958 | Q21: 80899.49181 | R21: 5589537.38 | S21: 18631.79127 | T21: =Q21/CTV_Fuel_Cost -> 97469.26725 | U21: litres per year | V21: =0.84*T21/1000 -> 81.87418449 | W21: t/year
C22: 100 | D22: 600 | E22: 6 | F22: 6570000 | G22: 12 | H22: 720000 | I22: 3111222.72 | J22: 182648.896 | K22: 278616.96 | L22: 116090.4 | M22: 4408578.976 | N22: 1000 | O22: 18000 | P22: 647.9481641 | Q22: 239857.4514 | R22: 11218436.43 | S22: 18697.39405
C23: 150 | D23: 900 | E23: 9 | F23: 9855000 | G23: 18 | H23: 1080000 | I23: 4666834.08 | J23: 273973.344 | K23: 417925.44 | L23: 193484 | M23: 6632216.864 | N23: 1500 | O23: 33742.34614 | P23: 1214.627291 | Q23: 449630.7306 | R23: 16936847.59 | S23: 18818.71955
C24: 200 | D24: 1200 | E24: 12 | F24: 13140000 | G24: 24 | H24: 1440000 | I24: 6222445.44 | J24: 365297.792 | K24: 557233.92 | L24: 232180.8 | M24: 8817157.952 | N24: 2000 | O24: 52568.54249 | P24: 1892.316145 | Q24: 700497.5904 | R24: 22657655.54 | S24: 18881.37962
C25: 250 | D25: 1500 | E25: 14 | F25: 15330000 | G25: 28 | H25: 1680000 | I25: 7778056.8 | J25: 456622.24 | K25: 696542.4 | L25: 309574.4 | M25: 10920795.84 | N25: 2500 | O25: 74056.9415 | P25: 2665.836627 | Q25: 986839.4027 | R25: 27237635.24 | S25: 18158.4235
A26: For Mothership Calc | C26: 150 | D26: =3.6*C26 -> 540 | E26: =ROUNDUP(D26*CTVs_Per_MW,0) -> 5 | F26: =365*CTV_Charter_Rate*E26 -> 5475000 | G26: 10 | H26: =G26*CTV_Skipper -> 600000 | I26: 4666834.08 | J26: 273973.344 | K26: 417925.44 | L26: 193484 | M26: =SUM(H26:L26) -> 6152216.864 | N26: 1500 | O26: 33742.34614 | P26: =O26/CTV_Speed_KMH -> 1214.627291 | Q26: =P26*CTV_Fuel_Use_Rate*CTV_Fuel_Cost -> 449630.7306 | R26: =Q26+M26+F26 -> 12076847.59 | S26: 22364.53258
S28: =AVERAGE(S19:S26) -> 21725.34876

Sheet WT Energy
B1: MOTHERSHIP
B2: Type | C2: Seimens 6.0 MW
F3: Rated power | G3: =Rated_Power -> 6000
B4: Rotor Diameter | C4: 153.890401 | D4: m | F4: hrs per year | G4: =365*24 -> 8760
B5: Swept Area | C5: =C4^2*PI()*0.25 -> 18600 | D5: m2 | F5: Energy @ Rated Power | G5: =G4*G3 -> 52560000
B6: Cut-in | C6: 4 | D6: m/s | F6: Capacity Factor | G6: ='Wind Yield 11.5 ms Ave'!T50 -> 0.5270553115
B7: Rated Speed | C7: 13 | D7: m/s | F7: Actual Energy Produced | G7: ='Wind Yield 11.5 ms Ave'!T49*WT_Availability -> 25762885.27 | H7: kWh | I7: (Adjusted for Availability)
B8: Cut Out | C8: 25 | D8: m/s | F8: Less Aerodynamics Losses | G8: =(WT_6MW_Ann_En-WT_6MW_Ann_En*'Global Parameters'!C16)/1000 -> 23959.4833 | H8: KWh
B9: Power Coefficient | C9: 0.2426905549 | D9: @ rated speed | F9: Less Electrical & Other Losses | G9: =G8-(WT_6MW_Ann_En*('Global Parameters'!C17+'Global Parameters'!C15)/1000) -> 22980.49366 | H9: KWH
F10: Load Factor | G10: =WT_ANN_ENRGY_ADJ/(G5/1000) -> 0.4372240042
B11: Air Density | C11: 1.21 | D11: kg/m3
B12: Rated Power | C12: =(0.5*Air_Density*Cp*Swept_Area*Rated_Speed^3)/1000 -> 6000 | D12: KW
B13: Rated Power (MW) | C13: =Rated_Power/1000 -> 6 | D13: MW

Sheet WEC Yield
C1: Orecca GIS Mean Wave Power | E1: Size | F1: Rated Power (MW) | G1: Cap Coefficient | H1: Annual Energy Capture | L1: Energy Sales
B3: North Galacia | C3: 40 | D3: 60 | E3: 1200 | F3: 72 | G3: =H3/(F3*8760) -> 0.4058853374 | H3: 256000 | I3: MWH | L3: =H3*Strike_Price_WEC -> 78080000 | M3: per year | O3: Base Case from FLOAT INC DATA
B4: N1 Orkney | C4: 30 | D4: 40 | E4: 720 | F4: =D4*E4/1000 -> 28.8 | G4: 0.15 | H4: =F4*8760*G4*WEC_Availability -> 34058.88 | I4: MWH | L4: =H4*Strike_Price_WEC -> 10387958.4 | M4: per year | N4: Low Case
C5: 30 | D5: 40 | E5: 720 | F5: =D5*E5*D9/1000 -> 28.8 | G5: 0.41 | H5: =F5*8760*G5*WEC_Availability -> 93094.272 | I5: MWH | L5: =H5*Strike_Price_WEC -> 28393752.96 | M5: per year | N5: High Case
D7: =D3*E3/1000 -> 72
C9: Scaler | D9: 1
H10: =WEC_Yield_LO/WEC_Availability -> 37843.2
H11: =WEC_Yield_Hi/WEC_Availability -> 103438.08

Sheet Wind Yield 11.5 ms Ave
B1: Hub Height Multiplier | C1: 1 | F1: =La*EXP(GAMMALN(1+1/k)) -> 11.5 | G1: m/s
B2: k | C2: 1.942495
B3: La | C3: 12.96803125 | E3: =SUM(E5:E528) -> 667.9740968 | F3: =SUM(F5:F528) -> 365 | Z3: Wind Shear
B4: x | C4: Plus Shear | E4: Cum | F4: Days per year | G4: 365 - DpY | H4: Cp (AF Estimate Based on 2.3MW Siemens) | K4: Block Average Power | L4: Block kWh | M4: Hours | Z4: 6.52 | AA4: 10 | AB4: m
A5: x | B5: 0.1 | C5: =B5*Wind_Shear_Multiplier -> 0.1 | D5: =(k/La*($C$5/La)^(k-1))*EXP(-$C$5/La)^k -> 0.001505245343 | E5: =E6+D5 -> 5.209237452 | F5: =E5*365/$E$3 -> 2.846475154 | G5: 365 | Z5: 0.001 | AA5: Roughness Length
B6: 0.2 | C6: 0.2 | D6: =(k/La*(C6/La)^(k-1))*EXP(-C6/La)^k -> 0.002849844839 | E6: 5.207732206 | F6: =E6*365/$E$3 -> 2.845652645 | G6: =G5-F6 -> 362.1543474 | Y6: =Z6/V0 -> 1.174742501 | Z6: =Vref*((LN(AA6/Roughness)/LN(Zref/Roughness))) -> 7.659321107 | AA6: 50
B7: 0.3 | C7: 0.3 | D7: 0.004114158357 | E7: 5.204882362 | F7: 2.844095409 | G7: =G6-F7 -> 359.3102519 | Y7: =Z7/Z4 -> 1.610429448 | Z7: 10.5 | AA7: 110
B8: 0.4 | C8: 0.4 | D8: 0.005315324655 | E8: 5.200768203 | F8: 2.841847316 | G8: 356.4684046
B9: 0.5 | C9: 0.5 | D9: 0.006461921176 | E9: 5.195452879 | F9: 2.838942872 | G9: 353.6294618
B10: 0.6 | C10: 0.6 | D10: 0.007559346314 | E10: 5.188990957 | F10: 2.835411895 | G10: 350.7940499
B11: 0.7 | C11: 0.7 | D11: 0.008611442655 | E11: 5.181431611 | F11: 2.831281253 | G11: 347.9627686
B12: 0.8 | C12: 0.8 | D12: 0.009621165635 | E12: 5.172820168 | F12: 2.826575717 | G12: 345.1361929
B13: 0.9 | C13: 0.9 | D13: 0.01059091166 | E13: 5.163199003 | F13: 2.821318439 | G13: 342.3148745
B14: 1 | C14: 1 | D14: 0.01152269878 | E14: 5.152608091 | F14: 2.815531264 | G14: 339.4993432
B15: 1.1 | C15: 1.1 | D15: 0.01241827478 | E15: 5.141085392 | F15: 2.809234935 | G15: 336.6901083
B16: 1.2 | C16: 1.2 | D16: 0.01327918594 | E16: 5.128667118 | F16: 2.802449237 | G16: 333.887659
B17: 1.3 | C17: 1.3 | D17: 0.01410682312 | E17: 5.115387932 | F17: 2.795193113 | G17: 331.0924659
B18: 1.4 | C18: 1.4 | D18: 0.01490245371 | E18: 5.101281109 | F18: 2.787484745 | G18: 328.3049812
B19: 1.5 | C19: 1.5 | D19: 0.01566724472 | E19: 5.086378655 | F19: 2.779341621 | G19: 325.5256395
B20: 1.6 | C20: 1.6 | D20: 0.01640227981 | E20: 5.07071141 | F20: 2.770780594 | G20: 322.7548589
B21: 1.7 | C21: 1.7 | D21: 0.0171085722 | E21: 5.05430913 | F21: 2.761817923 | G21: 319.993041
B22: 1.8 | C22: 1.8 | D22: 0.01778707466 | E22: 5.037200558 | F22: 2.752469313 | G22: 317.2405717
B23: 1.9 | C23: 1.9 | D23: 0.01843868737 | E23: 5.019413483 | F23: 2.742749951 | G23: 314.4978218 | N23: CP (Curve Fitted)
B24: 2 | C24: 2 | D24: 0.01906426424 | E24: 5.000974796 | F24: 2.732674529 | G24: 311.7651472
B25: 2.1 | C25: 2.1 | D25: 0.01966461802 | E25: 4.981910532 | F25: 2.722257274 | G25: 309.04289
B26: 2.2 | C26: 2.2 | D26: 0.02024052451 | E26: 4.962245914 | F26: 2.711511969 | G26: 306.331378
B27: 2.3 | C27: 2.3 | D27: 0.02079272607 | E27: 4.942005389 | F27: 2.700451972 | G27: 303.630926
B28: 2.4 | C28: 2.4 | D28: 0.0213219346 | E28: 4.921212663 | F28: 2.689090237 | G28: 300.9418358
B29: 2.5 | C29: 2.5 | D29: 0.02182883402 | E29: 4.899890729 | F29: 2.677439327 | G29: 298.2643965
B30: 2.6 | C30: 2.6 | D30: 0.02231408243 | E30: 4.878061895 | F30: 2.665511432 | G30: 295.598885
B31: 2.7 | C31: 2.7 | D31: 0.02277831402 | E31: 4.855747812 | F31: 2.653318384 | G31: 292.9455666
B32: 2.8 | C32: 2.8 | D32: 0.02322214065 | E32: 4.832969498 | F32: 2.640871667 | G32: 290.304695
B33: 2.9 | C33: 2.9 | D33: 0.0236461533 | E33: 4.809747357 | F33: 2.628182431 | G33: 287.6765125
B34: 3 | C34: 3 | D34: 0.02405092335 | E34: 4.786101204 | F34: 2.615261502 | G34: 285.061251 | M34: =(G34-G35)*24 -> 62.45086547 | N34: =-0.00002*C34^4 + 0.0015*C34^3 - 0.0346*C34^2 + 0.2903*C34 - 0.3302 -> 0.26818 | O34: =(0.5*N34*Air_Density*Swept_Area*C34^3)/1000 -> 81.48139758 | P34: =M34 -> 62.45086547 | Q34: =P34*O34 -> 5088.583799
B35: 3.1 | C35: 3.1 | D35: 0.02443700368 | E35: 4.762050281 | F35: 2.602119395 | G35: 282.4591316 | M35: 62.13039174 | N35: 0.280063458 | O35: 93.88794798 | P35: 62.13039174 | Q35: 5833.294988
B36: 3.2 | C36: 3.2 | D36: 0.02480492972 | E36: 4.737613277 | F36: 2.588766323 | G36: 279.8703653 | M36: 61.80509292 | N36: 0.291510848 | O36: 107.4912157 | P36: 61.80509292 | Q36: 6643.504574
B37: 3.3 | C37: 3.3 | D37: 0.02515522031 | E37: 4.712808347 | F37: 2.575212205 | G37: 277.2951531 | M37: 61.47520029 | N37: 0.302529658 | O37: 122.3427096 | P37: 61.47520029 | Q37: 7521.042578
B38: 3.4 | C38: 3.4 | D38: 0.02548837856 | E38: 4.687653127 | F38: 2.561466679 | G38: 274.7336864 | M38: 61.14093854 | N38: 0.313127328 | O38: 138.4924321 | P38: 61.14093854 | Q38: 8467.557278
B39: 3.5 | C39: 3.5 | D39: 0.02580489259 | E39: 4.662164749 | F39: 2.547539106 | G39: 272.1861473 | M39: 60.80252592 | N39: 0.32331125 | O39: 155.9887466 | P39: 60.80252592 | Q39: 9484.509812
B40: 3.6 | C40: 3.6 | D40: 0.02610523621 | E40: 4.636359856 | F40: 2.53343858 | G40: 269.6527087 | M40: 60.46017452 | N40: 0.333088768 | O40: 174.8782543 | P40: 60.46017452 | Q40: 10573.16978
B41: 3.7 | C41: 3.7 | D41: 0.02638986953 | E41: 4.61025462 | F41: 2.519173938 | G41: 267.1335348 | M41: 60.11409036 | N41: 0.342467178 | O41: 195.2056781 | P41: 60.11409036 | Q41: 11734.61177
B42: 3.8 | C42: 3.8 | D42: 0.02665923957 | E42: 4.58386475 | F42: 2.504753765 | G42: 264.628781 | M42: 59.7644736 | N42: 0.351453728 | O42: 217.0137557 | P42: 59.7644736 | Q42: 12969.71287
B43: 3.9 | C43: 3.9 | D43: 0.02691378079 | E43: 4.557205511 | F43: 2.4901864 | G43: 262.1385946 | M43: 59.41151871 | N43: 0.360055618 | O43: 240.3431405 | P43: 59.41151871 | Q43: 14279.15099
A44: Cut-IN | B44: 4 | C44: 4 | D44: 0.02715391554 | E44: 4.53029173 | F44: 2.475479946 | G44: 259.6631147 | H44: 0.35 | I44: =(H51-H44)/(ROW(H51)-ROW(H44)) -> 0.0112244898 | J44: =(0.5*H44*Air_Density*Swept_Area*C44^3)/1000 -> 252.0672 | K44: =AVERAGE(J44:J45) -> 265.6358423 | L44: =K44*M44 -> 15687.23481 | M44: =(G44-G45)*24 -> 59.05541464 | N44: =-0.00002*C44^4 + 0.0015*C44^3 - 0.0346*C44^2 + 0.2903*C44 - 0.3302 -> 0.36828 | O44: =(0.5*N44*Air_Density*Swept_Area*C44^3)/1000 -> 265.2323098 | P44: =M44 -> 59.05541464 | Q44: =P44*O44 -> 15663.40403
B45: 4.1 | C45: 4.1 | D45: 0.0273800546 | E45: 4.503137814 | F45: 2.460642276 | G45: 257.2024724 | H45: 0.36 | I45: =(H52-H45)/(ROW(H52)-ROW(H45)) -> 0.01142857143 | J45: =(0.5*H45*Air_Density*Swept_Area*C45^3)/1000 -> 279.2044847 | K45: =AVERAGE(J45:J46) -> 294.4345199 | L45: =K45*M45 -> 17282.23013 | M45: =(G45-G46)*24 -> 58.69634491 | N45: =-0.00002*C45^4 + 0.0015*C45^3 - 0.0346*C45^2 + 0.2903*C45 - 0.3302 -> 0.376133978 | O45: =(0.5*N45*Air_Density*Swept_Area*C45^3)/1000 -> 291.7174819 | P45: =M45 -> 58.69634491 | Q45: =P45*O45 -> 17122.74993
B46: 4.2 | C46: 4.2 | D46: 0.02759259752 | E46: 4.47575776 | F46: 2.445681038 | G46: 254.7567914 | H46: =H45+I45 -> 0.3714285714 | J46: 309.6645552 | K46: 326.1019409 | L46: 19022.9897 | M46: 58.33448783 | N46: 0.383624608 | O46: 319.8325405 | P46: 58.33448783 | Q46: =P46*O46 -> 18657.26744
B47: 4.3 | C47: 4.3 | D47: 0.0277919331 | E47: 4.448165162 | F47: 2.43060366 | G47: 252.3261877 | H47: =H46+$I$45 -> 0.3828571429 | J47: 342.5393266 | K47: 360.2459864 | L47: 20883.46582 | M47: 57.97001661 | N47: 0.390758898 | O47: 349.6089659 | P47: 57.97001661 | Q47: 20266.83756
B48: 4.4 | C48: 4.4 | D48: 0.02797843971 | E48: 4.420373229 | F48: 2.415417359 | G48: 249.9107704 | H48: =H47+$I$45 -> 0.3942857143 | J48: 377.9526462 | K48: 396.992047 | L48: 22867.97238 | M48: 57.60309949 | N48: 0.397543808 | O48: 381.0757752 | P48: 57.60309949 | Q48: 21951.14579 | S48: Scaler | T48: 1.29
B49: 4.5 | C49: 4.5 | D49: 0.0281524857 | E49: 4.392394789 | F49: 2.400129145 | G49: 247.5106412 | H49: =H48+$I$45 -> 0.4057142857 | J49: 416.0314478 | K49: 436.4685999 | L49: 24980.80015 | M49: 57.23389988 | N49: 0.40398625 | O49: 414.2594688 | P49: 57.23389988 | Q49: 23709.68496 | R49: Annual Energy | T49: =SUM(L45:L304)*T48 -> 27702027.17 | U49: kwh | V49: =T49/1000 -> 27702.02717 | W49: MWH
B50: 4.6 | C50: 4.6 | D50: 0.02831442969 | E50: 4.364242304 | F50: 2.384745828 | G50: 245.1258954 | H50: =H49+$I$45 -> 0.4171428571 | J50: 456.9057519 | K50: 478.8072086 | L50: 27226.21152 | M50: 56.86257649 | N50: 0.410093088 | O50: 449.1839846 | P50: 56.86257649 | Q50: 25541.75868 | R50: Cap Coefficient | T50: =T49/(6000*24*365) -> 0.5270553115
B51: 4.7 | C51: 4.7 | D51: 0.02846462088 | E51: 4.335927874 | F51: 2.369274021 | G51: 242.7566214 | H51: =H50+$I$45 -> 0.4285714286 | J51: 500.7086653 | K51: 524.1425234 | L51: 29608.43557 | M51: 56.48928346 | N51: 0.415871138 | O51: 485.870659 | P51: 56.48928346 | Q51: 27446.48538
B52: 4.8 | C52: 4.8 | D52: 0.02860339942 | E52: 4.307463253 | F52: 2.353720144 | G52: 240.4029012 | H52: 0.44 | I52: =(H59-H52)/(ROW(H59)-ROW(H52)) -> 0.002142857143 | J52: 547.5763814 | K52: 566.4655828 | L52: 31786.74626 | M52: 56.11417044 | N52: 0.421327168 | O52: 524.3381956 | P52: 56.11417044 | Q52: 29422.80287
B53: 4.9 | C53: 4.9 | D53: 0.02873109661 | E53: 4.278859854 | F53: 2.338090435 | G53: 238.0648108 | H53: =H52+I52 -> 0.4421428571 | J53: 585.3547842 | K53: 605.1490885 | L53: 33729.42638 | M53: 55.73738277 | N53: 0.426467898 | O53: 564.60264 | P53: 55.73738277 | Q53: 31469.47346
B54: 5 | C54: 5 | D54: 0.02884803523 | E54: 4.250128757 | F54: 2.322390949 | G54: 235.7424198 | H54: =H53+$I$52 -> 0.4442857143 | J54: 624.9433928 | K54: 645.6685051 | L54: 35743.6025 | M54: 55.35906153 | N54: 0.4313 | O54: 606.6773625 | P54: 55.35906153 | Q54: 33585.08944
B55: 5.1 | C55: 5.1 | D55: 0.02895452975 | E55: 4.221280722 | F55: 2.306627564 | G55: 233.4357923 | H55: =H54+$I$52 -> 0.4464285714 | J55: 666.3936174 | K55: 688.0755321 | L55: 37829.94116 | M55: 54.97934369 | N55: 0.435830098 | O55: 650.5730461 | P55: 54.97934369 | Q55: 35768.07909
B56: 5.2 | C56: 5.2 | D56: 0.02905088664 | E56: 4.192326192 | F56: 2.290805987 | G56: 231.1449863 | H56: =H55+$I$52 -> 0.4485714286 | J56: 709.7574467 | K56: 732.4224476 | L56: 39989.06608 | M56: 54.5983622 | N56: 0.440064768 | O56: 696.2976825 | P56: 54.5983622 | Q56: 38016.71306
B57: 5.3 | C57: 5.3 | D57: 0.02913740452 | E57: 4.163275305 | F57: 2.274931758 | G57: 228.8700545 | H57: =H56+$I$52 -> 0.4507142857 | J57: 755.0874485 | K57: 778.7621087 | L57: 42221.55813 | M57: 54.21624609 | N57: 0.444010538 | O57: 743.8565736 | P57: 54.21624609 | Q57: 40329.11105
B58: 5.4 | C58: 5.4 | D58: 0.02921437447 | E58: 4.134137901 | F58: 2.259010254 | G58: 226.6110443 | H58: =H57+$I$52 -> 0.4528571429 | J58: 802.4367689 | K58: 827.147951 | L58: 44527.95538 | M58: 53.83312057 | N58: 0.447673888 | O58: 793.2523399 | P58: 53.83312057 | Q58: 42703.24886
B59: 5.5 | C59: 5.5 | D59: 0.02928208019 | E59: 4.104923526 | F59: 2.24304669 | G59: 224.3679976 | H59: 0.455 | J59: 851.8591331 | K59: 875.5166245 | L59: 46795.58187 | M59: 53.44910714 | N59: 0.45106125 | O59: 844.4849349 | P59: 53.44910714 | Q59: 45136.96577
B60: 5.6 | C60: 5.6 | D60: 0.02934079821 | E60: 4.075641446 | F60: 2.227046131 | G60: 222.1409515 | H60: =H59 -> 0.455 | J60: 899.1741158 | K60: 923.6917865 | L60: 49015.07993 | M60: 53.06432367 | N60: 0.454179008 | O60: 897.5516658 | P60: 53.06432367 | Q60: 47627.97211
B61: 5.7 | C61: 5.7 | D61: 0.02939079811 | E61: 4.046300648 | F61: 2.211013486 | G61: 219.929938 | H61: =H60 -> 0.455 | J61: 948.2094572 | K61: 973.6026675 | L61: 51288.30246 | M61: 52.67888449 | N61: 0.457033498 | O61: 952.4472199 | P61: 52.67888449 | Q61: 50173.85708
B62: 5.8 | C62: 5.8 | D62: 0.0294323427 | E62: 4.01690985 | F62: 2.19495352 | G62: 217.7349845 | H62: =H61 -> 0.455 | J62: 998.9958779 | K62: 1025.279988 | L62: 53614.86438 | M62: 52.29290047 | N62: 0.459631008 | O62: 1009.163697 | P62: 52.29290047 | Q62: 52772.09679
B63: 5.9 | C63: 5.9 | D63: 0.0294656882 | E63: 3.987477507 | F63: 2.178870853 | G63: 215.5561136 | H63: =H62 -> 0.455 | J63: 1051.564099 | K63: 1078.754469 | L63: 55994.34638 | M63: 51.90647916 | N63: 0.461977778 | O63: 1067.69065 | P63: 51.90647916 | Q63: 55420.06246
B64: 6 | C64: 6 | D64: 0.02949108442 | E64: 3.958011819 | F64: 2.162769965 | G64: 213.3933436 | H64: 0.455 | I64: =(H64-H70)/(ROW(H64)-ROW(H70)) -> -0.0003333333333 | J64: 1105.94484 | K64: 1133.631129 | L64: 58404.36376 | M64: 51.51972479 | N64: 0.46408 | O64: 1128.015124 | P64: 51.51972479 | Q64: 58115.02874
B65: 6.1 | C65: 6.1 | D65: 0.02950877493 | E65: 3.928520735 | F65: 2.1466552 | G65: 211.2466884 | H65: =H64+I64 -> 0.4546666667 | J65: 1161.317417 | K65: 1189.898124 | L65: 60842.74953 | M65: 51.13273842 | N65: 0.465943818 | O65: 1190.121711 | P65: 51.13273842 | Q65: 60854.18214
B66: 6.2 | C66: 6.2 | D66: 0.0295189972 | E66: 3.89901196 | F66: 2.130530768 | G66: 209.1161577 | H66: =H65+$I$64 -> 0.4543333333 | J66: 1218.478831 | K66: 1247.967224 | L66: 63328.86801 | M66: 50.745618 | N66: 0.467575328 | O66: 1253.992603 | P66: 50.745618 | Q66: 63634.62958
B67: 6.3 | C67: 6.3 | D67: 0.02952198281 | E67: 3.869492963 | F67: 2.11440075 | G67: 207.0017569 | H67: =H66+$I$64 -> 0.454 | J67: 1277.455616 | K67: 1307.864917 | L67: 65862.06106 | M67: 50.35845842 | N67: 0.468980578 | O67: 1319.607651 | P67: 50.35845842 | Q67: 66453.40701
B68: 6.4 | C68: 6.4 | D68: 0.02951795755 | E68: 3.83997098 | F68: 2.098269101 | G68: 204.9034878 | H68: =H67+$I$64 -> 0.4536666667 | J68: 1338.274218 | K68: 1369.617604 | L68: 68441.64289 | M68: 49.97135163 | N68: 0.470165568 | O68: 1386.944433 | P68: 49.97135163 | Q68: 69307.48796
B69: 6.5 | C69: =B69*Wind_Shear_Multiplier -> 6.5 | D69: 0.0295071416 | E69: =E70+D69 -> 3.810453022 | F69: 2.082139651 | G69: 202.8213482 | H69: =H68+$I$64 -> 0.4533333333 | J69: 1400.96099 | K69: 1433.251593 | L69: 71066.90123 | M69: 49.58438669 | N69: 0.47113625 | O69: 1455.978325 | P69: 49.58438669 | Q69: 72193.79226
B70: 6.6 | C70: 6.6 | D70: =(k/La*(C70/La)^(k-1))*EXP(-C70/La)^k -> 0.02948974965 | E70: 3.780945881 | F70: =E70*365/$E$3 -> 2.066016112 | G70: 200.7553321 | H70: 0.453 | I70: =(H70-H76)/(ROW(H70)-ROW(H76)) -> 0 | J70: 1465.542197 | K70: 1499.357186 | L70: 73764.84981 | M70: 49.19764982 | N70: 0.471898528 | O70: 1526.682573 | P70: 49.19764982 | Q70: 75109.19461
B71: 6.7 | C71: 6.7 | D71: 0.02946599106 | E71: 3.751456131 | F71: 2.049902076 | G71: =G70-F71 -> 198.70543 | H71: =H70+I70 -> 0.453 | J71: 1533.172176 | K71: 1568.011784 | L71: 76536.57528 | M71: 48.81122454 | N71: 0.472458258 | O71: 1599.028378 | P71: 48.81122454 | Q71: 78050.53321
B72: 6.8 | C72: 6.8 | D72: 0.02943606997 | E72: 3.72199014 | F72: 2.033801022 | G72: 196.671629 | H72: =H71+$I$70 -> 0.453 | J72: 1602.851393 | K72: 1638.730914 | L72: 79355.85856 | M72: 48.42519164 | N72: 0.472821248 | O72: 1672.98498 | P72: 48.42519164 | Q72: 81014.61828
B73: 6.9 | C73: 6.9 | D73: 0.02940018547 | E73: 3.69255407 | F73: 2.017716319 | G73: 194.6539126 | H73: =H72+$I$70 -> 0.453 | J73: 1674.610435 | K73: 1711.545161 | L73: 82221.99515 | M73: 48.03962935 | N73: 0.472993258 | O73: 1748.519747 | P73: 48.03962935 | Q73: 83998.24057
B74: 7 | C74: 7 | D74: 0.02935853166 | E74: 3.663153884 | F74: 2.001651223 | G74: 192.6522614 | H74: =H73+$I$70 -> 0.453 | J74: 1748.479887 | K74: 1786.485111 | L74: 85134.25716 | M74: 47.65461332 | N74: 0.47298 | O74: 1825.598271 | P74: 47.65461332 | Q74: 86998.1797
B75: 7.1 | C75: 7.1 | D75: 0.02931129785 | E75: 3.633795353 | F75: 1.985608888 | G75: 190.6666525 | H75: =H74+$I$70 -> 0.453 | J75: 1824.490335 | K75: 1863.581349 | L75: 88091.89426 | M75: 47.27021672 | N75: 0.472787138 | O75: 1904.184467 | P75: 47.27021672 | Q75: 90011.21245
B76: 7.2 | C76: 7.2 | D76: 0.0292586686 | E76: 3.604484055 | F76: 1.969592363 | G76: 188.6970602 | H76: 0.453 | I76: =(H76-H83)/(ROW(H76)-ROW(H83)) -> -0.0005714285714 | J76: 1902.672364 | K76: 1941.613717 | L76: 91035.49158 | M76: 46.88651032 | N76: 0.472420288 | O76: 1984.240676 | P76: 46.88651032 | Q76: 93034.12093
B77: 7.3 | C77: 7.3 | D77: 0.02920082389 | E77: 3.575225386 | F77: 1.953604597 | G77: 186.7434556 | H77: =H76+I76 -> 0.4524285714 | J77: 1980.55507 | K77: 2020.508584 | L77: 93960.84722 | M77: 46.50356251 | N77: 0.471885018 | O77: 2065.727772 | P77: 46.50356251 | Q77: 96063.70057
B78: 7.4 | C78: 7.4 | D78: 0.02913793922 | E78: 3.546024562 | F78: 1.937648438 | G78: 184.8058071 | H78: =H77+$I$76 -> 0.4518571429 | J78: 2060.462097 | K78: 2101.438782 | L78: 96921.3814 | M78: 46.12143939 | N78: 0.471186848 | O78: 2148.605276 | P78: 46.12143939 | Q78: 99096.76799
B79: 7.5 | C79: 7.5 | D79: 0.02907018572 | E79: 3.516886623 | F79: 1.921726641 | G79: 182.8840805 | H79: =H78+$I$76 -> 0.4512857143 | J79: 2142.415466 | K79: 2184.426255 | L79: 99916.10429 | M79: 45.7402048 | N79: 0.47033125 | O79: 2232.831469 | P79: 45.7402048 | Q79: 102130.1687
B80: 7.6 | C80: 7.6 | D80: 0.02899773021 | E80: 3.487816437 | F80: 1.905841867 | G80: 180.9782386 | H80: =H79+$I$76 -> 0.4507142857 | J80: 2226.437044 | K80: 2269.492793 | L80: 102944.0125 | M80: 45.35992042 | N80: 0.469323648 | O80: 2318.363515 | P80: 45.35992042 | Q80: 105160.7845
B81: 7.7 | C81: 7.7 | D81: 0.02892073538 | E81: 3.458818707 | F81: 1.889996684 | G81: 179.0882419 | H81: =H80+$I$76 -> 0.4501428571 | J81: 2312.548541 | K81: 2356.660029 | L81: 106004.09 | M81: 44.98064577 | N81: 0.468169418 | O81: 2405.15758 | P81: 44.98064577 | Q81: 108185.5411
B82: 7.8 | C82: 7.8 | D82: 0.02883935982 | E82: 3.429897972 | F82: 1.874193574 | G82: 177.2140484 | H82: =H81+$I$76 -> 0.4495714286 | J82: 2400.771516 | K82: 2445.949444 | L82: 109095.3092 | M82: 44.6024383 | N82: 0.466873888 | O82: 2493.168962 | P82: 44.6024383 | Q82: 111201.4148
B83: 7.9 | C83: 7.9 | D83: 0.02875375817 | E83: 3.401058612 | F83: 1.858434929 | G83: 175.3556134 | H83: 0.449 | I83: =(H83-H87)/(ROW(H83)-ROW(H87)) -> -0.00225 | J83: 2491.127372 | K83: 2532.54679 | L83: 112002.7769 | M83: 44.22535344 | N83: 0.465442338 | O83: 2582.352224 | P83: 44.22535344 | Q83: 114205.4398
B84: 8 | C84: 8 | D84: 0.02866408119 | E84: 3.372304854 | F84: 1.84272306 | G84: 173.5128904 | H84: =H83+I83 -> 0.44675 | J84: 2573.966208 | K84: 2616.106018 | L84: 114714.7959 | M84: 43.84944462 | N84: 0.46388 | O84: 2672.66132 | P84: 43.84944462 | Q84: 117194.7145
B85: 8.1 | C85: 8.1 | D85: 0.02857047581 | E85: 3.343640773 | F85: 1.827060193 | G85: 171.6858302 | H85: =H84+I83 -> 0.4445 | J85: 2658.245827 | K85: 2701.102729 | L85: 117429.802 | M85: 43.47476338 | N85: 0.462192058 | O85: 2764.04974 | P85: 43.47476338 | Q85: 120166.4084
B86: 8.2 | C86: 8.2 | D86: 0.02847308532 | E86: 3.315070297 | F86: 1.811448474 | G86: 169.8743817 | H86: =H85+I83 -> 0.44225 | J86: 2743.95963 | K86: 2787.530019 | L86: 120146.333 | M86: 43.10135933 | N86: 0.460383648 | O86: 2856.470649 | P86: 43.10135933 | Q86: 123117.7679
B87: 8.3 | C87: 8.3 | D87: 0.02837204937 | E87: 3.286597212 | F87: 1.795889972 | G87: 168.0784917 | H87: 0.44 | I87: =(H87-H99)/(ROW(H87)-ROW(H99)) -> -0.0025 | J87: 2831.100409 | K87: 2874.546666 | L87: 122827.3103 | M87: 42.72928031 | N87: 0.458459858 | O87: 2949.877026 | P87: 42.72928031 | Q87: 126046.1223
B88: 8.4 | C88: 8.4 | D88: 0.02826750406 | E88: 3.258225162 | F88: 1.780386679 | G88: 166.2981051 | H88: =H87+$I$87 -> 0.4375 | J88: 2917.992924 | K88: 2962.084288 | L88: 125469.6615 | M88: 42.35857232 | N88: 0.456425728 | O88: 3044.221816 | P88: 42.35857232 | Q88: 128948.8899
B89: 8.5 | C89: 8.5 | D89: 0.0281595821 | E89: 3.229957658 | F89: 1.764940513 | G89: 164.5331645 | H89: 0.435 | J89: 3006.175652 | K89: 3050.905455 | L89: 128105.3223 | M89: 41.98927964 | N89: 0.45428625 | O89: 3139.458077 | P89: 41.98927964 | Q89: 131823.5831
B90: 8.6 | C90: 8.6 | D90: 0.02804841278 | E90: 3.201798076 | F90: 1.749553318 | G90: 162.7836112 | H90: 0.4325 | J90: 3095.635258 | K90: 3140.996494 | L90: 130732.8125 | M90: 41.62144488 | N90: 0.452046368 | O90: 3235.539133 | P90: 41.62144488 | Q90: 134667.8137
B91: 8.7 | C91: 8.7 | D91: 0.02793412215 | E91: 3.173749663 | F91: 1.73422687 | G91: 161.0493844 | H91: 0.43 | J91: 3186.357731 | K91: 3232.34306 | L91: 133350.6651 | M91: 41.25510895 | N91: 0.449710978 | O91: 3332.418725 | P91: 41.25510895 | Q91: 137479.2976
B92: 8.8 | C92: 8.8 | D92: 0.02781683301 | E92: 3.145815541 | F92: 1.718962873 | G92: 159.3304215 | H92: 0.4275 | J92: 3278.328388 | K92: 3324.930127 | L92: 135957.4276 | M92: 40.89031119 | N92: 0.447284928 | O92: 3430.051174 | P92: 40.89031119 | Q92: 140255.8599
B93: 8.9 | C93: 8.9 | D93: 0.02769666505 | E93: 3.117998708 | F93: 1.703762966 | G93: 157.6266585 | H93: 0.425 | J93: 3371.531867 | K93: 3418.742 | L93: 138551.6624 | M93: 40.52708934 | N93: 0.444773018 | O93: 3528.391538 | P93: 40.52708934 | Q93: 142995.4391
B94: 9 | C94: 9 | D94: 0.02757373491 | E94: 3.090302043 | F94: 1.688628722 | G94: 155.9380298 | H94: 0.4225 | J94: 3465.952132 | K94: 3513.762303 | L94: 141131.9482 | M94: 40.16547963 | N94: 0.44218 | O94: 3627.395773 | P94: 40.16547963 | Q94: 145696.091
B95: 9.1 | C95: 9.1 | D95: 0.0274481562 | E95: 3.062728308 | F95: 1.673561651 | G95: 154.2644681 | H95: 0.42 | J95: 3561.572474 | K95: 3609.973991 | L95: 143696.8803 | M95: 39.8055168 | N95: 0.439510578 | O95: 3727.020897 | P95: 39.8055168 | Q95: 148355.9929
B96: 9.2 | C96: 9.2 | D96: 0.02732003964 | E96: 3.035280152 | F96: 1.6585632 | G96: 152.6059049 | H96: 0.4175 | J96: 3658.375507 | K96: 3707.359337 | L96: 146245.0718 | M96: 39.44723412 | N96: 0.436769408 | O96: 3827.22516 | P96: 39.44723412 | Q96: 150973.4469
B97: 9.3 | C97: 9.3 | D97: 0.02718949309 | E97: 3.007960112 | F97: 1.643634755 | G97: 150.9622702 | H97: 0.415 | J97: 3756.343168 | K97: 3805.899945 | L97: 148775.154 | M97: 39.09066347 | N97: 0.433961098 | O97: 3927.968207 | P97: 39.09066347 | Q97: 153546.8833
B98: 9.4 | C98: 9.4 | D98: 0.02705662161 | E98: 2.980770619 | F98: 1.628777645 | G98: 149.3334925 | H98: 0.4125 | J98: 3855.456723 | K98: 3905.576741 | L98: 151285.7775 | M98: 38.73583533 | N98: 0.431090208 | O98: 4029.21125 | P98: 38.73583533 | Q98: 156074.8635
B99: 9.5 | C99: 9.5 | D99: 0.02692152755 | E99: 2.953713998 | F99: 1.613993139 | G99: 147.7194994 | H99: 0.41 | I99: =(H99-H108)/(ROW(H99)-ROW(H108)) -> -0.002222222222 | J99: 3955.696759 | K99: 4006.369974 | L99: 153775.6127 | M99: 38.38277885 | N99: 0.42816125 | O99: 4130.917241 | P99: 38.38277885 | Q99: 158556.0829
B100: 9.6 | C100: 9.6 | D100: 0.02678431059 | E100: 2.92679247 | F100: 1.599282452 | G100: 146.1202169 | H100: =H99+$I$87 -> 0.4075 | J100: 4057.04319 | K100: 4108.259222 | L100: 156243.3505 | M100: 38.03152188 | N100: 0.425178688 | O100: 4233.051044 | P100: 38.03152188 | Q100: 160989.3734
B101: 9.7 | C101: 9.7 | D101: 0.0266450678 | E101: 2.900008159 | F101: 1.584646745 | G101: 144.5355702 | H101: 0.405 | J101: 4159.475254 | K101: 4211.223384 | L101: 158687.7027 | M101: 37.68209097 | N101: 0.422146938 | O101: 4335.57961 | P101: 37.68209097 | Q101: 163373.7053
B102: 9.8 | C102: 9.8 | D102: 0.02650389373 | E102: 2.873363092 | F102: 1.570087124 | G102: 142.9654831 | H102: 0.4025 | J102: 4262.971514 | K102: 4315.240686 | L102: 161107.4029 | M102: 37.33451146 | N102: 0.419070368 | O102: 4438.472152 | P102: 37.33451146 | Q102: 165708.1894
B103: 9.9 | C103: 9.9 | D103: 0.02636088045 | E103: 2.846859198 | F103: 1.555604644 | G103: 141.4098784 | H103: 0.4 | J103: 4367.509859 | K103: 4420.288679 | L103: 163501.2069 | M103: 36.98880747 | N103: 0.415953298 | O103: 4541.700324 | P103: 36.98880747 | Q103: 167992.0789
B104: 10 | C104: 10 | D104: 0.02621611758 | E104: 2.820498317 | F104: 1.541200311 | G104: 139.8686781 | H104: 0.3975 | J104: 4473.0675 | K104: 4526.344238 | L104: 165867.8934 | M104: 36.64500194 | N104: 0.4128 | O104: 4645.2384 | P104: 36.64500194 | Q104: 170224.7702
B105: 10.1 | C105: 10.1 | D105: 0.02606969239 | E105: 2.7942822 | F105: 1.526875081 | G105: 138.341803 | H105: 0.395 | J105: 4579.620975 | K105: 4633.383561 | L105: 168206.264 | M105: 36.30311666 | N105: 0.409614698 | O105: 4749.06345 | P105: 36.30311666 | Q105: 172405.8045
B106: 10.2 | C106: 10.2 | D106: 0.02592168984 | E106: 2.768212508 | F106: 1.512629861 | G106: 136.8291732 | H106: 0.3925 | J106: 4687.146147 | K106: 4741.382175 | L106: 170515.1443 | M106: 35.96317234 | N106: 0.406401568 | O106: 4853.155525 | P106: 35.96317234 | Q106: 174534.8686
B107: 10.3 | C107: 10.3 | D107: 0.02577219262 | E107: 2.742290818 | F107: 1.498465514 | G107: 135.3307077 | H107: 0.39 | J107: 4795.618203 | K107: 4866.137547 | L107: 173357.0677 | M107: 35.62518856 | N107: 0.403164738 | O107: 4957.497837 | P107: 35.62518856 | Q107: 176611.7952
B108: 10.4 | C108: 10.4 | D108: 0.0256212812 | E108: 2.716518625 | F108: 1.484382857 | G108: 133.8463248 | H108: 0.39 | I108: =(H108-H124)/(ROW(H108)-ROW(H124)) -> -0.005090019204 | J108: 4936.656891 | K108: 4975.392285 | L108: 175577.5333 | M108: 35.28918388 | N108: 0.399908288 | O108: 5062.076938 | P108: 35.28918388 | Q108: 178636.5639
B109: 10.5 | C109: 10.5 | D109: 0.02546903391 | E109: 2.690897344 | F109: 1.470382662 | G109: 132.3759422 | H109: =H108+$I$108 -> 0.3849099808 | J109: =(0.5*H109*Air_Density*Swept_Area*C109^3)/1000 -> 5014.12768 | K109: =AVERAGE(J109:J110) -> 5052.332936 | L109: =K109*M109 -> 176605.1861 | M109: =(G109-G110)*24 -> 34.95517582 | N109: =-0.00002*C109^4 + 0.0015*C109^3 - 0.0346*C109^2 + 0.2903*C109 - 0.3302 -> 0.39663625 | O109: =(0.5*N109*Air_Density*Swept_Area*C109^3)/1000 -> 5166.882906 | P109: =M109 -> 34.95517582 | Q109: 180609.3004
B110: 10.6 | C110: 10.6 | D110: 0.02531552697 | E110: 2.66542831 | F110: 1.456465659 | G110: 130.9194765 | H110: =H109+$I$108 -> 0.3798199616 | J110: 5090.538193 | K110: 5128.171834 | L110: 177553.621 | M110: 34.62318088 | N110: 0.393352608 | O110: 5271.909528 | P110: 34.62318088 | Q110: =P110*O110 -> 182530.2772
B111: 10.7 | C111: 10.7 | D111: 0.02516083453 | E111: 2.640112783 | F111: 1.442632537 | G111: 129.476844 | H111: 0.3747299424 | J111: 5165.805475 | K111: 5202.825336 | L111: 178421.6059 | M111: 34.29321463 | N111: 0.390061298 | O111: 5377.154481 | P111: 34.29321463 | Q111: 184399.9127
B112: 10.8 | C112: 10.8 | D112: 0.02500502873 | E112: 2.614951948 | F112: 1.428883943 | G112: 128.04796 | H112: 0.3696399232 | J112: 5239.845197 | K112: 5276.208427 | L112: 179207.958 | M112: 33.96529166 | N112: 0.386766208 | O112: 5482.619518 | P112: 33.96529166 | Q112: 186218.771
B113: 10.9 | C113: 10.9 | D113: 0.02484817975 | E113: 2.58994692 | F113: 1.415220486 | G113: 126.6327395 | H113: 0.364549904 | J113: 5312.571656 | K113: 5348.234714 | L113: 179911.544 | M113: 33.63942564 | N113: 0.383471178 | O113: 5588.310651 | P113: 33.63942564 | Q113: 187987.5606
B114: 11 | C114: 11 | D114: 0.02469035584 | E114: 2.56509874 | F114: 1.401642735 | G114: 125.2310968 | H114: 0.3594598848 | J114: 5383.897773 | K114: 5418.816434 | L114: 180531.28 | M114: 33.31562938 | N114: 0.38018 | O114: 5694.238334 | P114: 33.31562938 | Q114: 189707.1339
B115: 11.1 | C115: 11.1 | D115: 0.02453162338 | E115: 2.540408384 | F115: 1.388151224 | G115: 123.8429456 | H115: 0.3543698656 | J115: 5453.735095 | K115: 5487.864444 | L115: 181066.1318 | M115: 32.99391478 | N115: 0.376896418 | O115: 5800.417647 | P115: 32.99391478 | Q115: 191378.4855
B116: 11.2 | C116: 11.2 | D116: 0.02437204692 | E116: 2.515876761 | F116: 1.374746449 | G116: 122.4681991 | H116: 0.3492798464 | J116: 5521.993794 | K116: 5555.288231 | L116: 181515.1148 | M116: 32.67429291 | N116: 0.373624128 | O116: 5906.868483 | P116: 32.67429291 | Q116: 193002.751
B117: 11.3 | C117: 11.3 | D117: 0.02421168919 | E117: 2.491504714 | F117: 1.361428871 | G117: 121.1067702 | H117: 0.3441898272 | J117: 5588.582668 | K117: 5620.995904 | L117: 181877.2942 | M117: 32.35677401 | N117: 0.370366778 | O117: 6013.615723 | P117: 32.35677401 | Q117: 194581.2049
B118: 11.4 | C118: 11.4 | D118: 0.02405061121 | E118: 2.467293025 | F118: 1.348198917 | G118: 119.7585713 | H118: 0.339099808 | J118: 5653.40914 | K118: 5684.894199 | L118: 182151.7844 | M118: 32.04136754 | N118: 0.367127968 | O118: 6120.689429 | P118: 32.04136754 | Q118: 196115.2596
B119: 11.5 | C119: 11.5 | D119: 0.02388887228 | E119: 2.443242413 | F119: 1.335056981 | G119: 118.4235143 | H119: 0.3340097888 | J119: 5716.379258 | K119: 5746.888477 | L119: 182337.7497 | M119: 31.72808215 | N119: 0.36391125 | O119: 6228.125017 | P119: 31.72808215 | Q119: 197606.4622
B120: 11.6 | C120: 11.6 | D120: 0.02372653 | E120: 2.419353541 | F120: 1.322003423 | G120: 117.1015109 | H120: 0.3289197695 | J120: 5777.397695 | K120: 5806.882723 | L120: 182434.4035 | M120: 31.41692577 | N120: 0.360720128 | O120: 6335.963445 | P120: 31.41692577 | Q120: 199056.4932
B121: 11.7 | C121: 11.7 | D121: 0.02356364038 | E121: 2.395627011 | F121: 1.309038574 | G121: 115.7924724 | H121: 0.3238297503 | J121: 5836.367751 | K121: 5864.779551 | L121: 182441.0085 | M121: 31.10790557 | N121: 0.357558058 | O121: 6444.251391 | P121: 31.10790557 | Q121: 200467.1637
B122: 11.8 | C122: 11.8 | D122: 0.0234002578 | E122: 2.372063371 | F122: 1.296162732 | G122: 114.4963096 | H122: 0.3187397311 | J122: 5893.19135 | K122: 5920.480196 | L122: 182356.8764 | M122: 30.80102801 | N122: 0.354428448 | O122: 6553.041432 | P122: 30.80102801 | Q122: 201840.4127
B123: 11.9 | C123: 11.9 | D123: 0.02323643512 | E123: 2.348663113 | F123: 1.283376167 | G123: 113.2129335 | H123: 0.3136497119 | J123: 5947.769042 | K123: 5973.884521 | L123: 182181.3678 | M123: 30.49629888 | N123: 0.351334658 | O123: 6662.392225 | P123: 30.49629888 | Q123: 203178.3045
A124: Rated Power | B124: 12 | C124: 12 | D124: 0.02307222366 | E124: 2.325426678 | F124: 1.27067912 | G124: 111.9422543 | H124: 0.3085596927 | J124: 6000 | K124: 6000 | L124: 181162.3395 | M124: 30.19372325 | N124: 0.3085596927 | O124: 6000 | P124: 30.19372325 | Q124: 181162.3395
B125: 12.1 | C125: 12.1 | D125: 0.02290767323 | E125: 2.302354454 | F125: 1.258071802 | G125: 110.6841825 | H125: 0.3009725034 | J125: 6000 | K125: 6000 | L125: 179359.8335 | M125: 29.89330559 | N125: 0.3009725034 | O125: 6000 | P125: 29.89330559 | Q125: 179359.8335
B126: 12.2 | C126: 12.2 | D126: 0.02274283224 | E126: 2.279446781 | F126: 1.245554399 | G126: 109.4386281 | H126: 0.2936320381 | J126: 6000 | K126: 6000 | L126: 177570.2982 | M126: 29.5950497 | N126: 0.2936320381 | O126: 6000 | P126: 29.5950497 | Q126: 177570.2982
B127: 12.3 | C127: 12.3 | D127: 0.02257774765 | E127: 2.256703949 | F127: 1.233127071 | G127: 108.2055011 | H127: 0.2865283489 | J127: 6000 | K127: 6000 | L127: 175793.7526 | M127: 29.29895877 | N127: 0.2865283489 | O127: 6000 | P127: 29.29895877 | Q127: 175793.7526
B128: 12.4 | C128: 12.4 | D128: 0.02241246505 | E128: 2.234126201 | F128: 1.220789949 | G128: 106.9847111 | H128: 0.2796519655 | J128: 6000 | K128: 6000 | L128: 174030.2124 | M128: 29.0050354 | N128: 0.2796519655 | O128: 6000 | P128: 29.0050354 | Q128: 174030.2124
B129: 12.5 | C129: 12.5 | D129: 0.02224702866 | E129: 2.211713736 | F129: 1.208543142 | G129: 105.776168 | H129: 0.2729938683 | J129: 6000 | K129: 6000 | L129: 172279.6897 | M129: 28.71328162 | N129: 0.2729938683 | O129: 6000 | P129: 28.71328162 | Q129: 172279.6897
B130: 12.6 | C130: 12.6 | D130: 0.0220814814 | E130: 2.189466707 | F130: 1.196386734 | G130: 104.5797812 | H130: 0.266545464 | J130: 6000 | K130: 6000 | L130: 170542.1932 | M130: 28.42369887 | N130: 0.266545464 | O130: 6000 | P130: 28.42369887 | Q130: 170542.1932
B131: 12.7 | C131: 12.7 | D131: 0.02191586489 | E131: 2.167385226 | F131: 1.184320786 | G131: 103.3954605 | H131: 0.2602985619 | J131: 6000 | K131: 6000 | L131: 168817.7283 | M131: 28.13628806 | N131: 0.2602985619 | O131: 6000 | P131: 28.13628806 | Q131: 168817.7283
B132: 12.8 | C132: 12.8 | D132: 0.0217502195 | E132: 2.145469361 | F132: 1.172345336 | G132: 102.2231151 | H132: 0.2542453523 | J132: 6000 | K132: 6000 | L132: 167106.2974 | M132: 27.85104957 | N132: 0.2542453523 | O132: 6000 | P132: 27.85104957 | Q132: 167106.2974
B133: 12.9 | C133: =B133*Wind_Shear_Multiplier -> 12.9 | D133: 0.02158458436 | E133: =E134+D133 -> 2.123719142 | F133: 1.160460399 | G133: 101.0626547 | H133: 0.248378386 | J133: 6000 | K133: 6000 | L133: 165407.8996 | M133: 27.56798326 | N133: 0.248378386 | O133: 6000 | P133: 27.56798326 | Q133: 165407.8996
B134: 13 | C134: 13 | D134: =(k/La*(C134/La)^(k-1))*EXP(-C134/La)^k -> 0.02141899742 | E134: 2.102134557 | F134: =E134*365/$E$3 -> 1.148665969 | G134: 99.91398875 | H134: 0.2426905549 | J134: 6000 | K134: 6000 | L134: 163722.5311 | M134: 27.28708851 | N134: 0.2426905549 | O134: 6000 | P134: 27.28708851 | Q134: 163722.5311
B135: 13.1 | C135: 13.1 | D135: 0.02125349542 | E135: 2.08071556 | F135: 1.136962021 | G135: =G134-F135 -> 98.77702673 | H135: 0.2371750739 | J135: 6000 | K135: 6000 | L135: 162050.1852 | M135: 27.0083642 | N135: 0.2371750739 | O135: 6000 | P135: 27.0083642 | Q135: 162050.1852
B136: 13.2 | C136: 13.2 | D136: 0.021088114 | E136: 2.059462064 | F136: 1.125348508 | G136: 97.65167822 | H136: 0.2318254641 | J136: 6000 | K136: 6000 | L136: 160390.8525 | M136: 26.73180875 | N136: 0.2318254641 | O136: 6000 | P136: 26.73180875 | Q136: 160390.8525
B137: 13.3 | C137: 13.3 | D137: 0.02092288766 | E137: 2.03837395 | F137: 1.113825364 | G137: 96.53785285 | H137: 0.2266355367 | J137: 6000 | K137: 6000 | L137: 158744.5207 | M137: 26.45742012 | N137: 0.2266355367 | O137: 6000 | P137: 26.45742012 | Q137: 158744.5207
B138: 13.4 | C138: 13.4 | D138: 0.0207578498 | E138: 2.017451063 | F138: 1.102392505 | G138: 95.43546035 | H138: 0.2215993777 | J138: 6000 | K138: 6000 | L138: 157111.1751 | M138: 26.18519585 | N138: 0.2215993777 | O138: 6000 | P138: 26.18519585 | Q138: 157111.1751
B139: 13.5 | C139: 13.5 | D139: 0.02059303278 | E139: 1.996693213 | F139: 1.091049827 | G139: 94.34441052 | H139: 0.2167113343 | J139: 6000 | K139: 6000 | L139: 155490.7982 | M139: 25.91513303 | N139: 0.2167113343 | O139: 6000 | P139: 25.91513303 | Q139: 155490.7982
B140: 13.6 | C140: 13.6 | D140: 0.0204284679 | E140: 1.97610018 | F140: 1.079797209 | G140: 93.26461331 | H140: 0.211966001 | J140: 6000 | K140: 6000 | L140: 153883.3702 | M140: 25.64722836 | N140: 0.211966001 | O140: 6000 | P140: 25.64722836 | Q140: 153883.3702
B141: 13.7 | C141: 13.7 | D141: 0.02026418546 | E141: 1.955671712 | F141: 1.068634515 | G141: 92.1959788 | H141: 0.2073582075 | J141: 6000 | K141: 6000 | L141: 152288.8688 | M141: 25.38147814 | N141: 0.2073582075 | O141: 6000 | P141: 25.38147814 | Q141: 152288.8688
B142: 13.8 | C142: 13.8 | D142: 0.02010021475 | E142: 1.935407527 | F142: 1.057561589 | G142: 91.13841721 | H142: 0.2028830066 | J142: 6000 | K142: 6000 | L142: 150707.2696 | M142: 25.11787827 | N142: 0.2028830066 | O142: 6000 | P142: 25.11787827 | Q142: 150707.2696
B143: 13.9 | C143: 13.9 | D143: 0.01993658412 | E143: 1.915307312 | F143: 1.046578261 | G143: 90.09183895 | H143: 0.1985356631 | J143: 6000 | K143: 6000 | L143: 149138.5458 | M143: 24.85642431 | N143: 0.1985356631 | O143: 6000 | P143: 24.85642431 | Q143: 149138.5458
B144: 14 | C144: 14 | D144: 0.01977332095 | E144: 1.895370728 | F144: 1.035684346 | G144: 89.0561546 | H144: 0.1943116432 | J144: 6000 | K144: 6000 | L144: 147582.6685 | M144: 24.59711142 | N144: 0.1943116432 | O144: 6000 | P144: 24.59711142 | Q144: 147582.6685
B145: 14.1 | C145: 14.1 | D145: 0.01961045173 | E145: 1.875597407 | F145: 1.024879642 | G145: 88.03127496 | H145: 0.1902066048 | J145: 6000 | K145: 6000 | L145: 146039.6067 | M145: 24.33993444 | N145: 0.1902066048 | O145: 6000 | P145: 24.33993444 | Q145: 146039.6067
B146: 14.2 | C146: 14.2 | D146: 0.01944800201 | E146: 1.855986955 | F146: 1.014163935 | G146: 87.01711102 | H146: 0.186216388 | J146: 6000 | K146: 6000 | L146: 144509.3273 | M146: 24.08488788 | N146: 0.186216388 | O146: 6000 | P146: 24.08488788 | Q146: 144509.3273
B147: 14.3 | C147: 14.3 | D147: 0.0192859965 | E147: 1.836538953 | F147: 1.003536995 | G147: 86.01357403 | H147: 0.1823370059 | J147: 6000 | K147: 6000 | L147: 142991.7954 | M147: 23.8319659 | N147: 0.1823370059 | O147: 6000 | P147: 23.8319659 | Q147: 142991.7954
B148: 14.4 | C148: 14.4 | D148: 0.01912445904 | E148: 1.817252957 | F148: 0.9929985793 | G148: 85.02057545 | H148: 0.178564637 | J148: 6000 | K148: 6000 | L148: 141486.9742 | M148: 23.58116237 | N148: 0.178564637 | O148: 6000 | P148: 23.58116237 | Q148: 141486.9742
B149: 14.5 | C149: 14.5 | D149: 0.01896341263 | E149: 1.798128498 | F149: 0.9825484323 | G149: 84.03802702 | H149: 0.1748956166 | J149: 6000 | K149: 6000 | L149: 139994.8251 | M149: 23.33247085 | N149: 0.1748956166 | O149: 6000 | P149: 23.33247085 | Q149: 139994.8251
B150: 14.6 | C150: 14.6 | D150: 0.01880287947 | E150: 1.779165085 | F150: 0.9721862855 | G150: 83.06584073 | H150: 0.1713264295 | J150: 6000 | K150: 6000 | L150: 138515.3076 | M150: 23.08588461 | N150: 0.1713264295 | O150: 6000 | P150: 23.08588461 | Q150: 138515.3076
B151: 14.7 | C151: 14.7 | D151: 0.01864288094 | E151: 1.760362206 | F151: 0.9619118587 | G151: 82.10392887 | H151: 0.1678537033 | J151: 6000 | K151: 6000 | L151: 137048.3798 | M151: 22.84139663 | N151: 0.1678537033 | O151: 6000 | P151: 22.84139663 | Q151: 137048.3798
B152: 14.8 | C152: 14.8 | D152: 0.01848343768 | E152: 1.741719325 | F152: 0.9517248595 | G152: 81.15220401 | H152: 0.164474201 | J152: 6000 | K152: 6000 | L152: 135593.9978 | M152: 22.59899963 | N152: 0.164474201 | O152: 6000 | P152: 22.59899963 | Q152: 135593.9978
B153: 14.9 | C153: 14.9 | D153: 0.01832456954 | E153: 1.723235887 | F153: 0.9416249847 | G153: 80.21057903 | H153: 0.1611848154 | J153: 6000 | K153: 6000 | L153: 134152.1165 | M153: 22.35868608 | N153: 0.1611848154 | O153: 6000 | P153: 22.35868608 | Q153: 134152.1165
B154: 15 | C154: 15 | D154: 0.01816629566 | E154: 1.704911317 | F154: 0.93161192 | G154: 79.27896711 | H154: 0.1579825627 | J154: 6000 | K154: 6000 | L154: 132722.689 | M154: 22.12044817 | N154: 0.1579825627 | O154: 6000 | P154: 22.12044817 | Q154: 132722.689
B155: 15.1 | C155: 15.1 | D155: 0.01800863444 | E155: 1.686745022 | F155: 0.9216853406 | G155: 78.35728177 | H155: 0.1548645766 | J155: 6000 | K155: 6000 | L155: 131305.6673 | M155: 21.88427788 | N155: 0.1548645766 | O155: 6000 | P155: 21.88427788 | Q155: 131305.6673
B156: 15.2 | C156: 15.2 | D156: 0.01785160358 | E156: 1.668736387 | F156: 0.9118449117 | G156: 77.44543685 | H156: 0.1518281037 | J156: 6000 | K156: 6000 | L156: 129901.0016 | M156: 21.65016694 | N156: 0.1518281037 | O156: 6000 | P156: 21.65016694 | Q156: 129901.0016
B157: 15.3 | C157: 15.3 | D157: 0.01769522011 | E157: 1.650884784 | F157: 0.902090289 | G157: 76.54334657 | H157: 0.1488704973 | J157: 6000 | K157: 6000 | L157: 128508.6411 | M157: 21.41810685 | N157: 0.1488704973 | O157: 6000 | P157: 21.41810685 | Q157: 128508.6411
B158: 15.4 | C158: 15.4 | D158: 0.01753950039 | E158: 1.633189564 | F158: 0.8924211186 | G158: 75.65092545 | H158: 0.1459892136 | J158: 6000 | K158: 6000 | L158: 127128.5335 | M158: 21.18808891 | N158: 0.1459892136 | O158: 6000 | P158: 21.18808891 | Q158: 127128.5335
B159: 15.5 | C159: 15.5 | D159: 0.01738446011 | E159: 1.615650063 | F159: 0.8828370379 | G159: 74.76808841 | H159: 0.1431818063 | J159: 6000 | K159: 6000 | L159: =K159*M159 -> 125760.6253 | M159: 20.96010422 | N159: 0.1431818063 | O159: 6000 | P159: 20.96010422 | Q159: 125760.6253
B160: 15.6 | C160: 15.6 | D160: 0.01723011435 | E160: 1.598265603 | F160: 0.8733376757 | G160: 73.89475073 | H160: 0.140445923 | J160: 6000 | K160: 6000 | L160: =K160*M160 -> 124404.8619 | M160: 20.73414365 | N160: 0.140445923 | O160: 6000 | P160: 20.73414365 | Q160: 124404.8619
B161: 15.7 | C161: 15.7 | D161: 0.01707647756 | E161: 1.581035489 | F161: 0.8639226523 | G161: 73.03082808 | H161: 0.1377793001 | J161: 6000 | K161: 6000 | L161: 123061.1876 | M161: 20.51019793 | N161: 0.1377793001 | O161: 6000 | P161: 20.51019793 | Q161: 123061.1876
B162: 15.8 | C162: 15.8 | D162: 0.01692356358 | E162: 1.563959011 | F162: 0.8545915804 | G162: 72.1762365 | H162: 0.1351797599 | J162: 6000 | K162: 6000 | L162: 121729.5454 | M162: 20.28825756 | N162: 0.1351797599 | O162: 6000 | P162: 20.28825756 | Q162: 121729.5454
B163: 15.9 | C163: 15.9 | D163: 0.01677138568 | E163: 1.547035448 | F163: 0.8453440651 | G163: 71.33089244 | H163: 0.132645206 | J163: 6000 | K163: 6000 | L163: 120409.8774 | M163: 20.0683129 | N163: 0.132645206 | O163: 6000 | P163: 20.0683129 | Q163: 120409.8774
B164: 16 | C164: 16 | D164: 0.01661995655 | E164: 1.530264062 | F164: 0.836179704 | G164: 70.49471273 | H164: 0.1301736204 | J164: 6000 | K164: 6000 | L164: 119102.1247 | M164: 19.85035412 | N164: 0.1301736204 | O164: 6000 | P164: 19.85035412 | Q164: 119102.1247
B165: 16.1 | C165: 16.1 | D165: 0.01646928832 | E165: 1.513644105 | F165: 0.8270980882 | G165: 69.66761464 | H165: 0.1277630596 | J165: 6000 | K165: 6000 | L165: 117806.2275 | M165: 19.63437124 | N165: 0.1277630596 | O165: 6000 | P165: 19.63437124 | Q165: 117806.2275
B166: 16.2 | C166: 16.2 | D166: 0.01631939256 | E166: 1.497174817 | F166: 0.8180988018 | G166: 68.84951584 | H166: 0.1254116518 | J166: 6000 | K166: 6000 | L166: 116522.1249 | M166: 19.42035414 | N166: 0.1254116518 | O166: 6000 | P166: 19.42035414 | Q166: 116522.1249
B167: 16.3 | C167: 16.3 | D167: 0.01617028035 | E167: 1.480855424 | F167: 0.8091814226 | G167: 68.04033442 | H167: 0.1231175936 | J167: 6000 | K167: 6000 | L167: 115249.7553 | M167: 19.20829254 | N167: 0.1231175936 | O167: 6000 | P167: 19.20829254 | Q167: 115249.7553
B168: 16.4 | C168: 16.4 | D168: 0.01602196222 | E168: 1.464685144 | F168: 0.8003455226 | G168: 67.2399889 | H168: 0.1208791472 | J168: 6000 | K168: 6000 | L168: 113989.0562 | M168: 18.99817603 | N168: 0.1208791472 | O168: 6000 | P168: 18.99817603 | Q168: 113989.0562
B169: 16.5 | C169: 16.5 | D169: 0.0158744482 | E169: 1.448663182 | F169: 0.7915906678 | G169: 66.44839823 | H169: 0.1186946376 | J169: 6000 | K169: 6000 | L169: 112739.9643 | M169: 18.78999405 | N169: 0.1186946376 | O169: 6000 | P169: 18.78999405 | Q169: 112739.9643
B170: 16.6 | C170: 16.6 | D170: 0.01572774785 | E170: 1.432788734 | F170: 0.7829164189 | G170: 65.66548181 | H170: 0.1165624501 | J170: 6000 | K170: 6000 | L170: 111502.4157 | M170: 18.58373595 | N170: 0.1165624501 | O170: 6000 | P170: 18.58373595 | Q170: 111502.4157
B171: 16.7 | C171: 16.7 | D171: 0.01558187024 | E171: 1.417060986 | F171: 0.7743223312 | G171: 64.89115948 | H171: 0.1144810273 | J171: 6000 | K171: 6000 | L171: 110276.3455 | M171: 18.37939092 | N171: 0.1144810273 | O171: 6000 | P171: 18.37939092 | Q171: 110276.3455
B172: 16.8 | C172: 16.8 | D172: 0.01543682397 | E172: 1.401479116 | F172: 0.7658079552 | G172: 64.12535152 | H172: 0.1124488676 | J172: 6000 | K172: 6000 | L172: 109061.6885 | M172: 18.17694808 | N172: 0.1124488676 | O172: 6000 | P172: 18.17694808 | Q172: 109061.6885
B173: 16.9 | C173: 16.9 | D173: 0.0152926172 | E173: 1.386042292 | F173: 0.7573728365 | G173: 63.36797869 | H173: 0.110464522 | J173: =(0.5*H173*Air_Density*Swept_Area*C173^3)/1000 -> 6000 | K173: =AVERAGE(J173:J174) -> 6000 | L173: 107858.3784 | M173: =(G173-G174)*24 -> 17.9763964 | N173: 0.110464522 | O173: 6000 | P173: =M173 -> 17.9763964 | Q173: 107858.3784
B174: 17 | C174: 17 | D174: 0.01514925763 | E174: 1.370749674 | F174: 0.7490165166 | G174: 62.61896217 | H174: 0.1085265925 | J174: 6000 | K174: 6000 | L174: 106666.3487 | M174: 17.77772478 | N174: 0.1085265925 | O174: 6000 | P174: 17.77772478 | Q174: =P174*O174 -> 106666.3487
B175: 17.1 | C175: 17.1 | D175: 0.01500675256 | E175: 1.355600417 | F175: 0.7407385323 | G175: 61.87822364 | H175: 0.1066337299 | J175: 6000 | K175: 6000 | L175: 105485.532 | M175: 17.58092201 | N175: 0.1066337299 | O175: 6000 | P175: 17.58092201 | Q175: 105485.532
B176: 17.2 | C176: 17.2 | D176: 0.01486510885 | E176: 1.340593664 | F176: 0.7325384169 | G176: 61.14568522 | H176: 0.1047846316 | J176: 6000 | K176: 6000 | L176: 104315.8608 | M176: 17.38597679 | N176: 0.1047846316 | O176: 6000 | P176: 17.38597679 | Q176: 104315.8608
B177: 17.3 | C177: 17.3 | D177: 0.01472433296 | E177: 1.325728555 | F177: 0.7244156997 | G177: 60.42126952 | H177: 0.1029780401 | J177: 6000 | K177: 6000 | L177: 103157.2665 | M177: 17.19287775 | N177: 0.1029780401 | O177: 6000 | P177: 17.19287775 | Q177: 103157.2665
B178: 17.4 | C178: 17.4 | D178: 0.01458443095 | E178: 1.311004222 | F178: 0.7163699063 | G178: 59.70489962 | H178: 0.1012127411 | J178: 6000 | K178: 6000 | L178: 102009.6806 | M178: 17.00161343 | N178: 0.1012127411 | O178: 6000 | P178: 17.00161343 | Q178: 102009.6806
B179: 17.5 | C179: 17.5 | D179: 0.01444540851 | E179: 1.296419791 | F179: 0.7084005595 | G179: 58.99649906 | H179: 0.09948756134 | J179: 6000 | K179: 6000 | L179: 100873.0337 | M179: 16.81217228 | N179: 0.09948756134 | O179: 6000 | P179: 16.81217228 | Q179: 100873.0337
B180: 17.6 | C180: 17.6 | D180: 0.01430727094 | E180: 1.281974383 | F180: 0.7005071784 | G180: 58.29599188 | H180: 0.09780136767 | J180: 6000 | K180: 6000 | L180: 99747.25626 | M180: 16.62454271 | N180: 0.09780136767 | O180: 6000 | P180: 16.62454271 | Q180: 99747.25626
B181: 17.7 | C181: 17.7 | D181: 0.01417002318 | E181: 1.267667112 | F181: 0.6926892796 | G181: 57.6033026 | H181: 0.09615306499 | J181: 6000 | K181: 6000 | L181: 98632.27826 | M181: 16.43871304 | N181: 0.09615306499 | O181: 6000 | P181: 16.43871304 | Q181: 98632.27826
B182: 17.8 | C182: 17.8 | D182: 0.01403366983 | E182: 1.253497089 | F182: 0.6849463768 | G182: 56.91835622 | H182: 0.09454159492 | J182: 6000 | K182: 6000 | L182: 97528.02933 | M182: 16.25467155 | N182: 0.09454159492 | O182: 6000 | P182: 16.25467155 | Q182: 97528.02933
B183: 17.9 | C183: 17.9 | D183: 0.01389821512 | E183: 1.239463419 | F183: 0.6772779814 | G183: 56.24107824 | H183: 0.09296593437 | J183: 6000 | K183: 6000 | L183: 96434.43874 | M183: 16.07240646 | N183: 0.09296593437 | O183: 6000 | P183: 16.07240646 | Q183: 96434.43874
B184: 18 | C184: 18 | D184: 0.01376366295 | E184: 1.225565204 | F184: 0.6696836023 | G184: 55.57139464 | H184: 0.09142509414 | J184: 6000 | K184: 6000 | L184: 95351.43547 | M184: 15.89190591 | N184: 0.09142509414 | O184: 6000 | P184: 15.89190591 | Q184: 95351.43547
B185: 18.1 | C185: 18.1 | D185: 0.01363001693 | E185: 1.211801541 | F185: 0.6621627464 | G185: 54.90923189 | H185: 0.08991811768 | J185: 6000 | K185: 6000 | L185: 94278.94824 | M185: 15.71315804 | N185: 0.08991811768 | O185: 6000 | P185: 15.71315804 | Q185: 94278.94824
B186: 18.2 | C186: 18.2 | D186: 0.0134972803 | E186: 1.198171524 | F186: 0.6547149184 | G186: 54.25451697 | H186: 0.08844407976 | J186: 6000 | K186: 6000 | L186: 93216.90548 | M186: 15.53615091 | N186: 0.08844407976 | O186: 6000 | P186: 15.53615091 | Q186: 93216.90548
B187: 18.3 | C187: 18.3 | D187: 0.01336545603 | E187: 1.184674244 | F187: 0.6473396214 | G187: 53.60717735 | H187: 0.08700208535 | J187: 6000 | K187: 6000 | L187: 92165.23541 | M187: 15.36087257 | N187: 0.08700208535 | O187: 6000 | P187: 15.36087257 | Q187: 92165.23541
B188: 18.4 | C188: 18.4 | D188: 0.01323454677 | E188: 1.171308788 | F188: 0.640036357 | G188: 52.96714099 | H188: 0.08559126843 | J188: 6000 | K188: 6000 | L188: 91123.86602 | M188: 15.187311 | N188: 0.08559126843 | O188: 6000 | P188: 15.187311 | Q188: 91123.86602
B189: 18.5 | C189: 18.5 | D189: 0.0131045549 | E189: 1.158074241 | F189: 0.6328046251 | G189: 52.33433637 | H189: 0.08421079092 | J189: 6000 | K189: 6000 | L189: 90092.72513 | M189: 15.01545419 | N189: 0.08421079092 | O189: 6000 | P189: 15.01545419 | Q189: 90092.72513
B190: 18.6 | C190: 18.6 | D190: 0.0129754825 | E190: 1.144969686 | F190: 0.6256439245 | G190: 51.70869244 | H190: 0.08285984163 | J190: 6000 | K190: 6000 | L190: 89071.74039 | M190: 14.84529006 | N190: 0.08285984163 | O190: 6000 | P190: 14.84529006 | Q190: 89071.74039
B191: 18.7 | C191: =B191*Wind_Shear_Multiplier -> 18.7 | D191: =(k/La*(C191/La)^(k-1))*EXP(-C191/La)^k -> 0.01284733138 | E191: 1.131994204 | F191: 0.6185537527 | G191: 51.09013869 | H191: 0.08153763525 | J191: 6000 | K191: 6000 | L191: 88060.8393 | M191: 14.67680655 | N191: 0.08153763525 | O191: 6000 | P191: 14.67680655 | Q191: 88060.8393
B192: 18.8 | C192: =B192*Wind_Shear_Multiplier -> 18.8 | D192: =(k/La*(C192/La)^(k-1))*EXP(-C192/La)^k -> 0.01272010308 | E192: 1.119146872 | F192: 0.6115336063 | G192: 50.47860509 | H192: 0.08024341142 | J192: 6000 | K192: 6000 | L192: 87059.94927 | M192: 14.50999154 | N192: 0.08024341142 | O192: 6000 | P192: 14.50999154 | Q192: 87059.94927
B193: 18.9 | C193: =B193*Wind_Shear_Multiplier -> 18.9 | D193: =(k/La*(C193/La)^(k-1))*EXP(-C193/La)^k -> 0.0125937989 | E193: 1.106426769 | F193: 0.604582981 | G193: 49.8740221 | H193: 0.07897643377 | J193: 6000 | K193: 6000 | L193: 86068.99756 | M193: 14.34483293 | N193: 0.07897643377 | O193: 6000 | P193: 14.34483293 | Q193: 86068.99756
B194: 19 | C194: =B194*Wind_Shear_Multiplier -> 19 | D194: =(k/La*(C194/La)^(k-1))*EXP(-C194/La)^k -> 0.01246841987 | E194: 1.09383297 | F194: 0.597701372 | G194: 49.27632073 | H194: 0.07773598907 | J194: 6000 | K194: 6000 | L194: 85087.91139 | M194: 14.18131857 | N194: 0.07773598907 | O194: 6000 | P194: 14.18131857 | Q194: 85087.91139
B195: 19.1 | C195: 19.1 | D195: 0.01234396678 | E195: 1.08136455 | F195: 0.5908882736 | G195: 48.68543246 | H195: 0.07652138638 | J195: 6000 | K195: 6000 | L195: 84116.6179 | M195: 14.01943632 | N195: 0.07652138638 | O195: 6000 | P195: 14.01943632 | Q195: 84116.6179
B196: 19.2 | C196: 19.2 | D196: 0.01222044019 | E196: 1.069020584 | F196: 0.5841431799 | G196: 48.10128928 | H196: 0.07533195623 | J196: 6000 | K196: 6000 | L196: 83155.04418 | M196: 13.85917403 | N196: 0.07533195623 | O196: 6000 | P196: 13.85917403 | Q196: 83155.04418
B197: 19.3 | C197: 19.3 | D197: 0.01209784042 | E197: =E198+D197 -> 1.056800143 | F197: 0.5774655846 | G197: 47.52382369 | H197: 0.07416704987 | J197: 6000 | K197: 6000 | L197: 82203.11731 | M197: 13.70051955 | N197: 0.07416704987 | O197: 6000 | P197: 13.70051955 | Q197: 82203.11731
B198: 19.4 | C198: 19.4 | D198: 0.01197616759 | E198: 1.044702303 | F198: =E198*365/$E$3 -> 0.5708549813 | G198: 46.95296871 | H198: 0.07302603849 | J198: 6000 | K198: 6000 | L198: 81260.76435 | M198: 13.54346072 | N198: 0.07302603849 | O198: 6000 | P198: 13.54346072 | Q198: 81260.76435
B199: 19.5 | C199: 19.5 | D199: 0.01185542156 | E199: 1.032726135 | F199: 0.5643108635 | G199: =G198-F199 -> 46.38865785 | H199: 0.07190831255 | J199: 6000 | K199: 6000 | L199: 80327.91237 | M199: 13.38798539 | N199: 0.07190831255 | O199: 6000 | P199: 13.38798539 | Q199: 80327.91237
B200: 19.6 | C200: 19.6 | D200: 0.01173560204 | E200: 1.020870714 | F200: 0.5578327248 | G200: 45.83082512 | H200: 0.07081328106 | J200: 6000 | K200: 6000 | L200: 79404.48847 | M200: 13.23408141 | N200: 0.07081328106 | O200: 6000 | P200: 13.23408141 | Q200: 79404.48847
... 328 more rows

Sheet CO2 Calcs
D1: Combined MWh/year | E1: Tons CO2 avoided/year | F1: Mothership Fuel Co2/year | G1: Tons CO2 avoided project | H1: Tons CO2 platform | I1: TONS CO2 EMISSIONS AVOIDED PROJECT | L1: Co2 Dispaced | M1: 420 | N1: gC02/kWh
C2: Low Case | D2: =LOW_MWH_YR -> 171941.842 | E2: =D2*tC02_MWh -> 72215.57363 | F2: n/a | G2: =20*E2 -> 1444311.473 | H2: =('[1]PSP Weight-1'!$C$29*_C02_Concrete) -> 31300.77166 | I2: =G2-H2 -> 1413010.701 | M2: =M1/1000 -> 0.42 | N2: ton C02 / MWh
C3: High Case | D3: =HIGH_MWh_Yr -> 460782.1706 | E3: =D3*tC02_MWh -> 193528.5116 | F3: n/a | G3: =20*E3 -> 3870570.233 | H3: =('[1]PSP Weight-1'!$C$29*_C02_Concrete) -> 31300.77166 | I3: =G3-H3 -> 3839269.461 | L3: C02 Concrete | M3: 0.115 | N3: ton CO2/T Concrete
C4: 50 Turbine Tethys | D4: ='TETHYS vs Mothership(50-200WTs)'!P61+'TETHYS vs Mothership(50-200WTs)'!R61 -> 1242118.955 | E4: =D4*tC02_MWh -> 521689.9611 | F4: n/a | G4: =20*E4 -> 10433799.22 | H4: =('[1]PSP Weight-1'!$C$29*_C02_Concrete) -> 31300.77166 | I4: =G4-H4 -> 10402498.45 | L4: Heavy Fuel Oil | M4: 3.111 | N4: ton CO2/T Fuel | O4: http://www.shippingefficiency.org/sites/shippingefficiency.org/files/edvi-methodology.pdf
C5: 50 Turbine Mothership | D5: ='TETHYS vs Mothership(50-200WTs)'!S61 -> 1149024.683 | E5: =D5*tC02_MWh -> 482590.3669 | F5: ='MSHIP OPEX'!H10*'CO2 Calcs'!M4 -> 82582.90909 | G5: =20*(E5-F5) -> 8000149.156 | H5: 0 | I5: =G5-H5 -> 8000149.156

Sheet ESRI_MAPINFO_SHEET (hidden)
